Body,Body Name,Date,TransNo,Amount � (Excl VAT),Supplier name,Supplier ID,Expense Area,Expense Type,Expense Code
http://opendatacommunities.org/id/london-borough-council/sutton,London Borough of Sutton,12/08/2019,5018465,-629.4,Flightpath Residents Asscoiation,99891,"Environment, Housing & Regeneration Directorate",Furniture & Fittings,Y500
http://opendatacommunities.org/id/london-borough-council/sutton,London Borough of Sutton,31/03/2020,6970016,"25,100.00",31ten Consulting Ltd,34321,Resources Directorate,Fees - Consultants (Ad Hoc),F283
http://opendatacommunities.org/id/london-borough-council/sutton,London Borough of Sutton,20/03/2020,6970646,760,ABC Taxis,19355,Peoples Services Directorate,Hired Peoples Transport (Children),E072
http://opendatacommunities.org/id/london-borough-council/sutton,London Borough of Sutton,21/04/2020,6970201,"2,340.00",Abdul Ismail,99898,"Environment, Housing & Regeneration Directorate",Repairs to Fixtures and Fittings,D701
http://opendatacommunities.org/id/london-borough-council/sutton,London Borough of Sutton,14/04/2020,1291499,"9,040.00",Absolute Care Services Ltd,10021,Peoples Services Directorate,Home Care,G334
http://opendatacommunities.org/id/london-borough-council/sutton,London Borough of Sutton,30/03/2020,6969429,"4,851.00",Absolute Care Services Ltd,10021,Peoples Services Directorate,Homecare Core Services,G336
http://opendatacommunities.org/id/london-borough-council/sutton,London Borough of Sutton,30/03/2020,6969430,"5,766.81",Absolute Care Services Ltd,10021,Peoples Services Directorate,Homecare Core Services,G336
http://opendatacommunities.org/id/london-borough-council/sutton,London Borough of Sutton,13/04/2020,6969961,"15,022.51",Absolute Care Services Ltd,10021,Peoples Services Directorate,Homecare Core Services,G336
http://opendatacommunities.org/id/london-borough-council/sutton,London Borough of Sutton,13/04/2020,6969968,"13,207.87",Absolute Care Services Ltd,10021,Peoples Services Directorate,Homecare Core Services,G336
http://opendatacommunities.org/id/london-borough-council/sutton,London Borough of Sutton,13/04/2020,6969969,"12,636.86",Absolute Care Services Ltd,10021,Peoples Services Directorate,Homecare Core Services,G336
http://opendatacommunities.org/id/london-borough-council/sutton,London Borough of Sutton,05/04/2020,40403743,663.13,Absolute Care Services Ltd,10021,Peoples Services Directorate,Home Care,G334
http://opendatacommunities.org/id/london-borough-council/sutton,London Borough of Sutton,05/04/2020,40403756,672,Absolute Care Services Ltd,10021,Peoples Services Directorate,Home Care,G334
http://opendatacommunities.org/id/london-borough-council/sutton,London Borough of Sutton,05/04/2020,40403757,672,Absolute Care Services Ltd,10021,Peoples Services Directorate,Home Care,G334
http://opendatacommunities.org/id/london-borough-council/sutton,London Borough of Sutton,05/04/2020,40403805,723.37,Absolute Care Services Ltd,10021,Peoples Services Directorate,Home Care,G334
http://opendatacommunities.org/id/london-borough-council/sutton,London Borough of Sutton,05/04/2020,40403814,504,Absolute Care Services Ltd,10021,Peoples Services Directorate,Home Care,G334
http://opendatacommunities.org/id/london-borough-council/sutton,London Borough of Sutton,05/04/2020,40403953,505.75,Absolute Care Services Ltd,10021,Peoples Services Directorate,Home Care,G334
http://opendatacommunities.org/id/london-borough-council/sutton,London Borough of Sutton,01/03/2020,40404926,680,Absolute Care Services Ltd,10021,Peoples Services Directorate,Home Care,G334
http://opendatacommunities.org/id/london-borough-council/sutton,London Borough of Sutton,08/03/2020,40404927,672,Absolute Care Services Ltd,10021,Peoples Services Directorate,Home Care,G334
http://opendatacommunities.org/id/london-borough-council/sutton,London Borough of Sutton,01/03/2020,40404928,672,Absolute Care Services Ltd,10021,Peoples Services Directorate,Home Care,G334
http://opendatacommunities.org/id/london-borough-council/sutton,London Borough of Sutton,08/03/2020,40404929,672,Absolute Care Services Ltd,10021,Peoples Services Directorate,Home Care,G334
http://opendatacommunities.org/id/london-borough-council/sutton,London Borough of Sutton,01/03/2020,40404969,695.1,Absolute Care Services Ltd,10021,Peoples Services Directorate,Home Care,G334
http://opendatacommunities.org/id/london-borough-council/sutton,London Borough of Sutton,08/03/2020,40404970,695.1,Absolute Care Services Ltd,10021,Peoples Services Directorate,Home Care,G334
http://opendatacommunities.org/id/london-borough-council/sutton,London Borough of Sutton,01/03/2020,40404991,504,Absolute Care Services Ltd,10021,Peoples Services Directorate,Home Care,G334
http://opendatacommunities.org/id/london-borough-council/sutton,London Borough of Sutton,08/03/2020,40404992,504,Absolute Care Services Ltd,10021,Peoples Services Directorate,Home Care,G334
http://opendatacommunities.org/id/london-borough-council/sutton,London Borough of Sutton,01/03/2020,40405047,468.58,Absolute Care Services Ltd,10021,Peoples Services Directorate,Home Care,G334
http://opendatacommunities.org/id/london-borough-council/sutton,London Borough of Sutton,08/03/2020,40405048,462.08,Absolute Care Services Ltd,10021,Peoples Services Directorate,Home Care,G334
http://opendatacommunities.org/id/london-borough-council/sutton,London Borough of Sutton,01/03/2020,40405055,521.33,Absolute Care Services Ltd,10021,Peoples Services Directorate,Home Care,G334
http://opendatacommunities.org/id/london-borough-council/sutton,London Borough of Sutton,08/03/2020,40405056,521.33,Absolute Care Services Ltd,10021,Peoples Services Directorate,Home Care,G334
http://opendatacommunities.org/id/london-borough-council/sutton,London Borough of Sutton,12/04/2020,40405762,672,Absolute Care Services Ltd,10021,Peoples Services Directorate,Home Care,G334
http://opendatacommunities.org/id/london-borough-council/sutton,London Borough of Sutton,12/04/2020,40405763,672,Absolute Care Services Ltd,10021,Peoples Services Directorate,Home Care,G334
http://opendatacommunities.org/id/london-borough-council/sutton,London Borough of Sutton,12/04/2020,40405802,734.65,Absolute Care Services Ltd,10021,Peoples Services Directorate,Home Care,G334
http://opendatacommunities.org/id/london-borough-council/sutton,London Borough of Sutton,12/04/2020,40405810,504,Absolute Care Services Ltd,10021,Peoples Services Directorate,Home Care,G334
http://opendatacommunities.org/id/london-borough-council/sutton,London Borough of Sutton,12/04/2020,40405861,673.47,Absolute Care Services Ltd,10021,Peoples Services Directorate,Home Care,G334
http://opendatacommunities.org/id/london-borough-council/sutton,London Borough of Sutton,12/04/2020,40406011,505.75,Absolute Care Services Ltd,10021,Peoples Services Directorate,Home Care,G334
http://opendatacommunities.org/id/london-borough-council/sutton,London Borough of Sutton,23/02/2020,40407497,672,Absolute Care Services Ltd,10021,Peoples Services Directorate,Home Care,G334
http://opendatacommunities.org/id/london-borough-council/sutton,London Borough of Sutton,23/02/2020,40407498,672,Absolute Care Services Ltd,10021,Peoples Services Directorate,Home Care,G334
http://opendatacommunities.org/id/london-borough-council/sutton,London Borough of Sutton,23/02/2020,40407548,695.1,Absolute Care Services Ltd,10021,Peoples Services Directorate,Home Care,G334
http://opendatacommunities.org/id/london-borough-council/sutton,London Borough of Sutton,23/02/2020,40407591,504,Absolute Care Services Ltd,10021,Peoples Services Directorate,Home Care,G334
http://opendatacommunities.org/id/london-borough-council/sutton,London Borough of Sutton,23/02/2020,40407648,521.33,Absolute Care Services Ltd,10021,Peoples Services Directorate,Home Care,G334
http://opendatacommunities.org/id/london-borough-council/sutton,London Borough of Sutton,19/04/2020,40408116,672,Absolute Care Services Ltd,10021,Peoples Services Directorate,Home Care,G334
http://opendatacommunities.org/id/london-borough-council/sutton,London Borough of Sutton,19/04/2020,40408117,672,Absolute Care Services Ltd,10021,Peoples Services Directorate,Home Care,G334
http://opendatacommunities.org/id/london-borough-council/sutton,London Borough of Sutton,19/04/2020,40408127,734.65,Absolute Care Services Ltd,10021,Peoples Services Directorate,Home Care,G334
http://opendatacommunities.org/id/london-borough-council/sutton,London Borough of Sutton,19/04/2020,40408135,504,Absolute Care Services Ltd,10021,Peoples Services Directorate,Home Care,G334
http://opendatacommunities.org/id/london-borough-council/sutton,London Borough of Sutton,19/04/2020,40408163,673.47,Absolute Care Services Ltd,10021,Peoples Services Directorate,Home Care,G334
http://opendatacommunities.org/id/london-borough-council/sutton,London Borough of Sutton,19/04/2020,40408338,505.75,Absolute Care Services Ltd,10021,Peoples Services Directorate,Home Care,G334
http://opendatacommunities.org/id/london-borough-council/sutton,London Borough of Sutton,15/03/2020,40408660,672,Absolute Care Services Ltd,10021,Peoples Services Directorate,Home Care,G334
http://opendatacommunities.org/id/london-borough-council/sutton,London Borough of Sutton,15/03/2020,40408661,680,Absolute Care Services Ltd,10021,Peoples Services Directorate,Home Care,G334
http://opendatacommunities.org/id/london-borough-council/sutton,London Borough of Sutton,15/03/2020,40408741,529.6,Absolute Care Services Ltd,10021,Peoples Services Directorate,Home Care,G334
http://opendatacommunities.org/id/london-borough-council/sutton,London Borough of Sutton,15/03/2020,40408752,504,Absolute Care Services Ltd,10021,Peoples Services Directorate,Home Care,G334
http://opendatacommunities.org/id/london-borough-council/sutton,London Borough of Sutton,15/03/2020,40408818,468.58,Absolute Care Services Ltd,10021,Peoples Services Directorate,Home Care,G334
http://opendatacommunities.org/id/london-borough-council/sutton,London Borough of Sutton,15/03/2020,40408822,521.33,Absolute Care Services Ltd,10021,Peoples Services Directorate,Home Care,G334
http://opendatacommunities.org/id/london-borough-council/sutton,London Borough of Sutton,22/03/2020,40411606,672,Absolute Care Services Ltd,10021,Peoples Services Directorate,Home Care,G334
http://opendatacommunities.org/id/london-borough-council/sutton,London Borough of Sutton,22/03/2020,40411607,672,Absolute Care Services Ltd,10021,Peoples Services Directorate,Home Care,G334
http://opendatacommunities.org/id/london-borough-council/sutton,London Borough of Sutton,22/03/2020,40411642,662,Absolute Care Services Ltd,10021,Peoples Services Directorate,Home Care,G334
http://opendatacommunities.org/id/london-borough-council/sutton,London Borough of Sutton,22/03/2020,40411653,504,Absolute Care Services Ltd,10021,Peoples Services Directorate,Home Care,G334
http://opendatacommunities.org/id/london-borough-council/sutton,London Borough of Sutton,22/03/2020,40411692,492.08,Absolute Care Services Ltd,10021,Peoples Services Directorate,Home Care,G334
http://opendatacommunities.org/id/london-borough-council/sutton,London Borough of Sutton,22/03/2020,40411697,521.33,Absolute Care Services Ltd,10021,Peoples Services Directorate,Home Care,G334
http://opendatacommunities.org/id/london-borough-council/sutton,London Borough of Sutton,26/04/2020,40412557,734.65,Absolute Care Services Ltd,10021,Peoples Services Directorate,Home Care,G334
http://opendatacommunities.org/id/london-borough-council/sutton,London Borough of Sutton,26/04/2020,40412565,504,Absolute Care Services Ltd,10021,Peoples Services Directorate,Home Care,G334
http://opendatacommunities.org/id/london-borough-council/sutton,London Borough of Sutton,26/04/2020,40412604,673.47,Absolute Care Services Ltd,10021,Peoples Services Directorate,Home Care,G334
http://opendatacommunities.org/id/london-borough-council/sutton,London Borough of Sutton,26/04/2020,40412706,672,Absolute Care Services Ltd,10021,Peoples Services Directorate,Home Care,G334
http://opendatacommunities.org/id/london-borough-council/sutton,London Borough of Sutton,26/04/2020,40412707,672,Absolute Care Services Ltd,10021,Peoples Services Directorate,Home Care,G334
http://opendatacommunities.org/id/london-borough-council/sutton,London Borough of Sutton,26/04/2020,40412768,531.23,Absolute Care Services Ltd,10021,Peoples Services Directorate,Home Care,G334
http://opendatacommunities.org/id/london-borough-council/sutton,London Borough of Sutton,26/04/2020,40412811,"1,570.20",Absolute Care Services Ltd,10021,Peoples Services Directorate,Home Care,G334
http://opendatacommunities.org/id/london-borough-council/sutton,London Borough of Sutton,01/04/2020,6969375,492,Access Independent Ltd,24086,Chief Executive's Directorate,Mobility Scheme for the Disabled,H401
http://opendatacommunities.org/id/london-borough-council/sutton,London Borough of Sutton,31/03/2020,1291225,650,Achieving For Children Limited,28009,Peoples Services Directorate,Special Educational Needs,G331
http://opendatacommunities.org/id/london-borough-council/sutton,London Borough of Sutton,02/03/2020,1291221,"4,423.13",Acorn Homes UK Ltd,25726,Peoples Services Directorate,Independent Schools,G325
http://opendatacommunities.org/id/london-borough-council/sutton,London Borough of Sutton,02/04/2020,1292446,"12,500.00",Acorn Homes UK Ltd,25726,Peoples Services Directorate,Independent Schools,G325
http://opendatacommunities.org/id/london-borough-council/sutton,London Borough of Sutton,17/04/2020,40406885,"2,903.20",Acorn Lodge,15804,Peoples Services Directorate,Residential Care - Ext Provider,G310
http://opendatacommunities.org/id/london-borough-council/sutton,London Borough of Sutton,17/04/2020,40407258,"3,042.36",Acorn Residential Home,15828,Peoples Services Directorate,Residential Care - Ext Provider,G310
http://opendatacommunities.org/id/london-borough-council/sutton,London Borough of Sutton,01/04/2020,6969344,"16,528.30",ADAM HTT LTD,34364,Peoples Services Directorate,Hired Peoples Transport (Children),E072
http://opendatacommunities.org/id/london-borough-council/sutton,London Borough of Sutton,01/04/2020,6969344,"22,954.53",ADAM HTT LTD,34364,Peoples Services Directorate,Hired Peoples Transport (Children),E072
http://opendatacommunities.org/id/london-borough-council/sutton,London Borough of Sutton,08/04/2020,6969601,"53,530.80",ADAM HTT LTD,34364,Peoples Services Directorate,Hired Peoples Transport (Children),E072
http://opendatacommunities.org/id/london-borough-council/sutton,London Borough of Sutton,08/04/2020,6969601,"99,136.80",ADAM HTT LTD,34364,Peoples Services Directorate,Hired Peoples Transport (Children),E072
http://opendatacommunities.org/id/london-borough-council/sutton,London Borough of Sutton,15/04/2020,6969828,"36,623.29",ADAM HTT LTD,34364,Peoples Services Directorate,Hired Peoples Transport (Children),E072
http://opendatacommunities.org/id/london-borough-council/sutton,London Borough of Sutton,15/04/2020,6969828,"24,428.70",ADAM HTT LTD,34364,Peoples Services Directorate,Hired Peoples Transport (Children),E072
http://opendatacommunities.org/id/london-borough-council/sutton,London Borough of Sutton,06/04/2020,1290922,"197,411.47",Adecco Uk Ltd,10059,Resources Directorate,Suspense/Holding Accounts,X550
http://opendatacommunities.org/id/london-borough-council/sutton,London Borough of Sutton,21/04/2020,1291555,"141,687.28",Adecco Uk Ltd,10059,Resources Directorate,Suspense/Holding Accounts,X550
http://opendatacommunities.org/id/london-borough-council/sutton,London Borough of Sutton,27/04/2020,1292278,"173,172.07",Adecco Uk Ltd,10059,Resources Directorate,Suspense/Holding Accounts,X550
http://opendatacommunities.org/id/london-borough-council/sutton,London Borough of Sutton,01/04/2020,6970012,"1,414.41",AdEPT Education,10310,Peoples Services Directorate,Telephones - Rentals,F370
http://opendatacommunities.org/id/london-borough-council/sutton,London Borough of Sutton,31/03/2020,6970110,"2,171.46",Advanced Demand Side Management Ltd,26989,Resources Directorate,Water - Metered,D690
http://opendatacommunities.org/id/london-borough-council/sutton,London Borough of Sutton,31/03/2020,6970111,"2,507.87",Advanced Demand Side Management Ltd,26989,Resources Directorate,Water - Metered,D690
http://opendatacommunities.org/id/london-borough-council/sutton,London Borough of Sutton,22/04/2020,6970276,"8,349.41",Advanced Demand Side Management Ltd,26989,Resources Directorate,Water - Metered,D690
http://opendatacommunities.org/id/london-borough-council/sutton,London Borough of Sutton,23/04/2020,6970336,"32,000.00",Age UK Sutton,10092,Chief Executive's Directorate,Provider Contract Payments,F470
http://opendatacommunities.org/id/london-borough-council/sutton,London Borough of Sutton,23/10/2019,6967822,"1,750.00",Ahad Group,35210,Chief Executive's Directorate,Corporate Publicity,F356
http://opendatacommunities.org/id/london-borough-council/sutton,London Borough of Sutton,07/03/2020,6969463,"1,025.00",Ahad Group,35210,Chief Executive's Directorate,Corporate Publicity,F356
http://opendatacommunities.org/id/london-borough-council/sutton,London Borough of Sutton,17/04/2020,40407263,"7,511.00",Aims Care Partnership (Leighton House Ltd),12628,Peoples Services Directorate,Residential Care - Ext Provider,G310
http://opendatacommunities.org/id/london-borough-council/sutton,London Borough of Sutton,17/04/2020,40406888,"5,278.00",Aitch Care Homes,20446,Peoples Services Directorate,Residential Care - Ext Provider,G310
http://opendatacommunities.org/id/london-borough-council/sutton,London Borough of Sutton,17/04/2020,40407059,"8,400.16",Aitch Care Homes,20446,Peoples Services Directorate,Residential Care - Ext Provider,G310
http://opendatacommunities.org/id/london-borough-council/sutton,London Borough of Sutton,31/03/2020,6969338,"3,095.00",AKSWard Ltd,35270,Resources Directorate,External Fees  - Engineers,Y110
http://opendatacommunities.org/id/london-borough-council/sutton,London Borough of Sutton,22/04/2020,6970261,997.1,Alfred O Okrah & Rebecca M Quansah,34836,"Environment, Housing & Regeneration Directorate",Temporary Protection - Homeless Persons,H300
http://opendatacommunities.org/id/london-borough-council/sutton,London Borough of Sutton,22/04/2020,6970262,997.1,Alfred O Okrah & Rebecca M Quansah,34836,"Environment, Housing & Regeneration Directorate",Temporary Protection - Homeless Persons,H300
http://opendatacommunities.org/id/london-borough-council/sutton,London Borough of Sutton,21/03/2020,6969420,"1,750.00",ALKINT SERVICES LTD,34352,Peoples Services Directorate,Fees - Other,F299
http://opendatacommunities.org/id/london-borough-council/sutton,London Borough of Sutton,21/03/2020,6969421,"1,575.00",ALKINT SERVICES LTD,34352,Peoples Services Directorate,Fees - Other,F299
http://opendatacommunities.org/id/london-borough-council/sutton,London Borough of Sutton,21/03/2020,6969422,"1,750.00",ALKINT SERVICES LTD,34352,Peoples Services Directorate,Fees - Other,F299
http://opendatacommunities.org/id/london-borough-council/sutton,London Borough of Sutton,01/04/2020,1290949,"15,291.68",All Saints Benhilton C Of E,10115,Peoples Services Directorate,Top-up Funding,G064
http://opendatacommunities.org/id/london-borough-council/sutton,London Borough of Sutton,30/04/2020,1292458,600,All Saints Benhilton C Of E,10115,Peoples Services Directorate,Payments to Schools,G065
http://opendatacommunities.org/id/london-borough-council/sutton,London Borough of Sutton,01/04/2020,1290950,"23,658.32",All Saints Carshalton Primary School,16772,Peoples Services Directorate,Top-up Funding,G064
http://opendatacommunities.org/id/london-borough-council/sutton,London Borough of Sutton,01/04/2020,6969383,964.32,All Security Ltd,97190,Chief Executive's Directorate,Agency Services,G431
http://opendatacommunities.org/id/london-borough-council/sutton,London Borough of Sutton,01/04/2020,6969356,"1,850.00",Allen Lane Ltd,18334,Resources Directorate,Agency Staff - Other,A301
http://opendatacommunities.org/id/london-borough-council/sutton,London Borough of Sutton,07/04/2020,6969566,"1,850.00",Allen Lane Ltd,18334,Resources Directorate,Agency Staff - Other,A301
http://opendatacommunities.org/id/london-borough-council/sutton,London Borough of Sutton,14/04/2020,6969794,"2,760.00",Allen Lane Ltd,18334,Resources Directorate,Agency Staff - Other,A301
http://opendatacommunities.org/id/london-borough-council/sutton,London Borough of Sutton,14/04/2020,6969795,"1,480.00",Allen Lane Ltd,18334,Resources Directorate,Agency Staff - Other,A301
http://opendatacommunities.org/id/london-borough-council/sutton,London Borough of Sutton,15/04/2020,6969847,"2,760.00",Allen Lane Ltd,18334,Resources Directorate,Agency Staff - Other,A301
http://opendatacommunities.org/id/london-borough-council/sutton,London Borough of Sutton,21/04/2020,6970195,"2,760.00",Allen Lane Ltd,18334,Resources Directorate,Agency Staff - Other,A301
http://opendatacommunities.org/id/london-borough-council/sutton,London Borough of Sutton,21/04/2020,6970196,"2,587.50",Allen Lane Ltd,18334,Resources Directorate,Agency Staff - Other,A301
http://opendatacommunities.org/id/london-borough-council/sutton,London Borough of Sutton,21/04/2020,6970196,"2,587.50",Allen Lane Ltd,18334,Resources Directorate,Agency Staff - Other,A301
http://opendatacommunities.org/id/london-borough-council/sutton,London Borough of Sutton,21/04/2020,6970197,"1,480.00",Allen Lane Ltd,18334,Resources Directorate,Agency Staff - Other,A301
http://opendatacommunities.org/id/london-borough-council/sutton,London Borough of Sutton,22/04/2020,6970236,"2,760.00",Allen Lane Ltd,18334,Resources Directorate,Agency Staff - Other,A301
http://opendatacommunities.org/id/london-borough-council/sutton,London Borough of Sutton,14/01/2020,6970291,"1,480.00",Allen Lane Ltd,18334,Resources Directorate,Agency Staff - Other,A301
http://opendatacommunities.org/id/london-borough-council/sutton,London Borough of Sutton,21/01/2020,6970523,"3,450.00",Allen Lane Ltd,18334,Resources Directorate,Agency Staff - Other,A301
http://opendatacommunities.org/id/london-borough-council/sutton,London Borough of Sutton,28/04/2020,6970534,"3,450.00",Allen Lane Ltd,18334,Resources Directorate,Agency Staff - Other,A301
http://opendatacommunities.org/id/london-borough-council/sutton,London Borough of Sutton,28/04/2020,6970535,"1,850.00",Allen Lane Ltd,18334,Resources Directorate,Agency Staff - Other,A301
http://opendatacommunities.org/id/london-borough-council/sutton,London Borough of Sutton,28/04/2020,6970536,"3,450.00",Allen Lane Ltd,18334,Resources Directorate,Agency Staff - Other,A301
http://opendatacommunities.org/id/london-borough-council/sutton,London Borough of Sutton,28/01/2020,6970537,"3,450.00",Allen Lane Ltd,18334,Resources Directorate,Agency Staff - Other,A301
http://opendatacommunities.org/id/london-borough-council/sutton,London Borough of Sutton,07/01/2020,6970538,"4,830.00",Allen Lane Ltd,18334,Resources Directorate,Agency Staff - Other,A301
http://opendatacommunities.org/id/london-borough-council/sutton,London Borough of Sutton,14/01/2020,6970539,"3,450.00",Allen Lane Ltd,18334,Resources Directorate,Agency Staff - Other,A301
http://opendatacommunities.org/id/london-borough-council/sutton,London Borough of Sutton,17/04/2020,40406963,"3,625.00",Alliance Care (Dale Homes) Ltd T/A Uplands Care Home,26835,Peoples Services Directorate,Nursing Care - Ext Provider,G311
http://opendatacommunities.org/id/london-borough-council/sutton,London Borough of Sutton,17/04/2020,40406887,"4,454.16",Allied Care (Mhs) Ltd,10145,Peoples Services Directorate,Residential Care - Ext Provider,G310
http://opendatacommunities.org/id/london-borough-council/sutton,London Borough of Sutton,29/04/2020,6970653,501.46,Allied Publicity Services (Manchester) Ltd,34039,Chief Executive's Directorate,Mobility Scheme for the Disabled,H401
http://opendatacommunities.org/id/london-borough-council/sutton,London Borough of Sutton,01/03/2020,6969285,"1,436.03",Allstar Business Solutions,24482,"Environment, Housing & Regeneration Directorate",Fuel Etc,E030
http://opendatacommunities.org/id/london-borough-council/sutton,London Borough of Sutton,01/04/2020,6969462,995.08,Allstar Business Solutions,24482,"Environment, Housing & Regeneration Directorate",Fuel Etc,E030
http://opendatacommunities.org/id/london-borough-council/sutton,London Borough of Sutton,17/04/2020,40407226,"4,400.00",Allswell Care Services Ltd,20761,Peoples Services Directorate,Residential Care - Ext Provider,G310
http://opendatacommunities.org/id/london-borough-council/sutton,London Borough of Sutton,17/04/2020,40407264,"6,370.00",Allswell Care Services Ltd,20761,Peoples Services Directorate,Residential Care - Ext Provider,G310
http://opendatacommunities.org/id/london-borough-council/sutton,London Borough of Sutton,17/04/2020,40407316,"3,480.00",Allswell Care Services Ltd,20761,Peoples Services Directorate,Residential Care - Ext Provider,G310
http://opendatacommunities.org/id/london-borough-council/sutton,London Borough of Sutton,12/04/2020,40406131,495.06,Alpenbest Limited,27945,Peoples Services Directorate,Home Care,G334
http://opendatacommunities.org/id/london-borough-council/sutton,London Borough of Sutton,12/04/2020,40406131,883.11,Alpenbest Limited,27945,Peoples Services Directorate,Home Care,G334
http://opendatacommunities.org/id/london-borough-council/sutton,London Borough of Sutton,19/04/2020,40408624,504.52,Alpenbest Limited,27945,Peoples Services Directorate,Home Care,G334
http://opendatacommunities.org/id/london-borough-council/sutton,London Borough of Sutton,19/04/2020,40408624,883.11,Alpenbest Limited,27945,Peoples Services Directorate,Home Care,G334
http://opendatacommunities.org/id/london-borough-council/sutton,London Borough of Sutton,26/04/2020,40411869,480.87,Alpenbest Limited,27945,Peoples Services Directorate,Home Care,G334
http://opendatacommunities.org/id/london-borough-council/sutton,London Borough of Sutton,26/04/2020,40411869,856.53,Alpenbest Limited,27945,Peoples Services Directorate,Home Care,G334
http://opendatacommunities.org/id/london-borough-council/sutton,London Borough of Sutton,27/04/2020,6970593,"13,750.00",Alzheimers Society Sutton Branch,10114,Peoples Services Directorate,Provider Contract Payments,F470
http://opendatacommunities.org/id/london-borough-council/sutton,London Borough of Sutton,07/04/2020,6970481,"22,754.40",Ambient Support Limited,21702,Peoples Services Directorate,Provider Contract Payments,F470
http://opendatacommunities.org/id/london-borough-council/sutton,London Borough of Sutton,05/04/2020,40403594,542.75,Ambient Support Limited,21702,Peoples Services Directorate,Home Care,G334
http://opendatacommunities.org/id/london-borough-council/sutton,London Borough of Sutton,05/04/2020,40403693,697.8,Ambient Support Limited,21702,Peoples Services Directorate,Home Care,G334
http://opendatacommunities.org/id/london-borough-council/sutton,London Borough of Sutton,12/04/2020,40405580,542.75,Ambient Support Limited,21702,Peoples Services Directorate,Home Care,G334
http://opendatacommunities.org/id/london-borough-council/sutton,London Borough of Sutton,12/04/2020,40405678,697.8,Ambient Support Limited,21702,Peoples Services Directorate,Home Care,G334
http://opendatacommunities.org/id/london-borough-council/sutton,London Borough of Sutton,12/01/2020,40407815,588.95,Ambient Support Limited,21702,Peoples Services Directorate,Home Care,G334
http://opendatacommunities.org/id/london-borough-council/sutton,London Borough of Sutton,02/02/2020,40407816,580.26,Ambient Support Limited,21702,Peoples Services Directorate,Home Care,G334
http://opendatacommunities.org/id/london-borough-council/sutton,London Borough of Sutton,09/02/2020,40407817,543.53,Ambient Support Limited,21702,Peoples Services Directorate,Home Care,G334
http://opendatacommunities.org/id/london-borough-council/sutton,London Borough of Sutton,19/04/2020,40407935,542.75,Ambient Support Limited,21702,Peoples Services Directorate,Home Care,G334
http://opendatacommunities.org/id/london-borough-council/sutton,London Borough of Sutton,19/04/2020,40407971,697.8,Ambient Support Limited,21702,Peoples Services Directorate,Home Care,G334
http://opendatacommunities.org/id/london-borough-council/sutton,London Borough of Sutton,26/04/2020,40412119,542.75,Ambient Support Limited,21702,Peoples Services Directorate,Home Care,G334
http://opendatacommunities.org/id/london-borough-council/sutton,London Borough of Sutton,26/04/2020,40412166,697.8,Ambient Support Limited,21702,Peoples Services Directorate,Home Care,G334
http://opendatacommunities.org/id/london-borough-council/sutton,London Borough of Sutton,17/04/2020,40407199,"3,180.00",ANA Treatment Centres Ltd,10196,Peoples Services Directorate,Interim Placements - Ext Provider,G317
http://opendatacommunities.org/id/london-borough-council/sutton,London Borough of Sutton,17/04/2020,40407288,"3,180.00",ANA Treatment Centres Ltd,10196,Peoples Services Directorate,Interim Placements - Ext Provider,G317
http://opendatacommunities.org/id/london-borough-council/sutton,London Borough of Sutton,17/04/2020,40407289,"1,135.71",ANA Treatment Centres Ltd,10196,Peoples Services Directorate,Interim Placements - Ext Provider,G317
http://opendatacommunities.org/id/london-borough-council/sutton,London Borough of Sutton,17/04/2020,40407290,908.57,ANA Treatment Centres Ltd,10196,Peoples Services Directorate,Interim Placements - Ext Provider,G317
http://opendatacommunities.org/id/london-borough-council/sutton,London Borough of Sutton,17/04/2020,40407061,"2,600.00",Anchor Trust,17878,Peoples Services Directorate,Residential Care - Ext Provider,G310
http://opendatacommunities.org/id/london-borough-council/sutton,London Borough of Sutton,08/03/2020,6969639,"2,400.00",Anglocypria,99863,Peoples Services Directorate,C.C.A Rent & Utilities,H211
http://opendatacommunities.org/id/london-borough-council/sutton,London Borough of Sutton,04/11/2019,6969038,629.97,Aon UK Limited,26323,Resources Directorate,Insurance Premiums (Other),F330
http://opendatacommunities.org/id/london-borough-council/sutton,London Borough of Sutton,04/11/2019,6969039,"4,250.00",Aon UK Limited,26323,Resources Directorate,Insurance Premiums (Other),F330
http://opendatacommunities.org/id/london-borough-council/sutton,London Borough of Sutton,02/04/2020,6970460,"283,086.72",Aon UK Limited,26323,Resources Directorate,Insurance Premiums (Other),F330
http://opendatacommunities.org/id/london-borough-council/sutton,London Borough of Sutton,28/03/2020,6970461,"105,814.24",Aon UK Limited,26323,Resources Directorate,Insurance Premiums (Other),F330
http://opendatacommunities.org/id/london-borough-council/sutton,London Borough of Sutton,28/03/2020,6970462,"29,064.00",Aon UK Limited,26323,Resources Directorate,Insurance Premiums (Other),F330
http://opendatacommunities.org/id/london-borough-council/sutton,London Borough of Sutton,28/03/2020,6970463,560,Aon UK Limited,26323,Resources Directorate,Insurance Premiums (Other),F330
http://opendatacommunities.org/id/london-borough-council/sutton,London Borough of Sutton,28/03/2020,6970464,"537,877.76",Aon UK Limited,26323,Resources Directorate,Insurance Premiums (Other),F330
http://opendatacommunities.org/id/london-borough-council/sutton,London Borough of Sutton,28/03/2020,6970465,"5,600.00",Aon UK Limited,26323,Resources Directorate,Insurance Premiums (Other),F330
http://opendatacommunities.org/id/london-borough-council/sutton,London Borough of Sutton,28/03/2020,6970466,"1,848.00",Aon UK Limited,26323,Resources Directorate,Insurance Premiums (Other),F330
http://opendatacommunities.org/id/london-borough-council/sutton,London Borough of Sutton,28/03/2020,6970467,"13,032.32",Aon UK Limited,26323,Resources Directorate,Insurance Premiums (Other),F330
http://opendatacommunities.org/id/london-borough-council/sutton,London Borough of Sutton,03/04/2020,6970468,851.2,Aon UK Limited,26323,Resources Directorate,Insurance Premiums (Other),F330
http://opendatacommunities.org/id/london-borough-council/sutton,London Borough of Sutton,28/03/2020,6970469,"1,344.00",Aon UK Limited,26323,Resources Directorate,Insurance Premiums (Other),F330
http://opendatacommunities.org/id/london-borough-council/sutton,London Borough of Sutton,03/04/2020,6970470,"1,624.00",Aon UK Limited,26323,Resources Directorate,Insurance Premiums (Other),F330
http://opendatacommunities.org/id/london-borough-council/sutton,London Borough of Sutton,28/03/2020,6970471,"3,080.00",Aon UK Limited,26323,Resources Directorate,Insurance Premiums (Other),F330
http://opendatacommunities.org/id/london-borough-council/sutton,London Borough of Sutton,28/03/2020,6970474,"6,826.40",Aon UK Limited,26323,Resources Directorate,Insurance Premiums (Other),F330
http://opendatacommunities.org/id/london-borough-council/sutton,London Borough of Sutton,31/03/2020,6969486,"10,087.26",Apetito Ltd,10206,Chief Executive's Directorate,Provisions - General,F150
http://opendatacommunities.org/id/london-borough-council/sutton,London Borough of Sutton,31/03/2020,6969611,"16,117.40",Apex Housing Solutions Ltd,29950,"Environment, Housing & Regeneration Directorate",Bed and Breakfast Accommodation,G400
http://opendatacommunities.org/id/london-borough-council/sutton,London Borough of Sutton,31/03/2020,6969598,"3,654.70",APL Properties,26226,"Environment, Housing & Regeneration Directorate",Bed and Breakfast Accommodation,G400
http://opendatacommunities.org/id/london-borough-council/sutton,London Borough of Sutton,12/02/2020,6969770,968.65,AQA Education,10283,Peoples Services Directorate,Fees - Exams,F285
http://opendatacommunities.org/id/london-borough-council/sutton,London Borough of Sutton,31/03/2020,6969355,787.5,Architype Ltd,25419,Peoples Services Directorate,External Fees  - Architects,Y100
http://opendatacommunities.org/id/london-borough-council/sutton,London Borough of Sutton,03/04/2020,6969835,"78,574.51",Arthur J Gallagher Insurance Brokers Ltd,30209,Resources Directorate,Insurance Premiums (Other),F330
http://opendatacommunities.org/id/london-borough-council/sutton,London Borough of Sutton,25/03/2020,6969837,"256,498.00",Arthur J Gallagher Insurance Brokers Ltd,30209,Resources Directorate,Insurance Premiums (Other),F330
http://opendatacommunities.org/id/london-borough-council/sutton,London Borough of Sutton,27/03/2020,6969838,"3,153.16",Arthur J Gallagher Insurance Brokers Ltd,30209,Resources Directorate,Insurance Premiums (Other),F330
http://opendatacommunities.org/id/london-borough-council/sutton,London Borough of Sutton,25/03/2020,6969325,"1,240.50",Arthur Rai Medical Services Ltd,35084,Chief Executive's Directorate,Agency Staff - Other,A301
http://opendatacommunities.org/id/london-borough-council/sutton,London Borough of Sutton,25/03/2020,6969326,744.3,Arthur Rai Medical Services Ltd,35084,Chief Executive's Directorate,Agency Staff - Other,A301
http://opendatacommunities.org/id/london-borough-council/sutton,London Borough of Sutton,25/03/2020,6969327,496.2,Arthur Rai Medical Services Ltd,35084,Chief Executive's Directorate,Agency Staff - Other,A301
http://opendatacommunities.org/id/london-borough-council/sutton,London Borough of Sutton,25/03/2020,6969329,496.2,Arthur Rai Medical Services Ltd,35084,Chief Executive's Directorate,Agency Staff - Other,A301
http://opendatacommunities.org/id/london-borough-council/sutton,London Borough of Sutton,25/03/2020,6969330,744.3,Arthur Rai Medical Services Ltd,35084,Chief Executive's Directorate,Agency Staff - Other,A301
http://opendatacommunities.org/id/london-borough-council/sutton,London Borough of Sutton,25/03/2020,6969332,744.3,Arthur Rai Medical Services Ltd,35084,Chief Executive's Directorate,Agency Staff - Other,A301
http://opendatacommunities.org/id/london-borough-council/sutton,London Borough of Sutton,25/03/2020,6969333,744.3,Arthur Rai Medical Services Ltd,35084,Chief Executive's Directorate,Agency Staff - Other,A301
http://opendatacommunities.org/id/london-borough-council/sutton,London Borough of Sutton,01/04/2020,6969500,"1,157.80",Arthur Rai Medical Services Ltd,35084,Chief Executive's Directorate,Agency Staff - Other,A301
http://opendatacommunities.org/id/london-borough-council/sutton,London Borough of Sutton,08/04/2020,6969933,"1,240.50",Arthur Rai Medical Services Ltd,35084,Chief Executive's Directorate,Agency Staff - Other,A301
http://opendatacommunities.org/id/london-borough-council/sutton,London Borough of Sutton,22/04/2020,6970424,988.84,Arthur Rai Medical Services Ltd,35084,Chief Executive's Directorate,Agency Staff - Other,A301
http://opendatacommunities.org/id/london-borough-council/sutton,London Borough of Sutton,22/04/2020,6970425,"1,005.60",Arthur Rai Medical Services Ltd,35084,Chief Executive's Directorate,Agency Staff - Other,A301
http://opendatacommunities.org/id/london-borough-council/sutton,London Borough of Sutton,17/04/2020,40406874,"6,848.00",Ashcroft Care Services,22571,Peoples Services Directorate,Residential Care - Ext Provider,G310
http://opendatacommunities.org/id/london-borough-council/sutton,London Borough of Sutton,17/04/2020,40406924,"7,534.40",Ashcroft Care Services,22571,Peoples Services Directorate,Residential Care - Ext Provider,G310
http://opendatacommunities.org/id/london-borough-council/sutton,London Borough of Sutton,23/03/2020,40400728,"1,264.80",Ashlong House Ltd,23101,Peoples Services Directorate,Supported Living - Ext Provider,G306
http://opendatacommunities.org/id/london-borough-council/sutton,London Borough of Sutton,23/03/2020,40400730,"1,845.60",Ashlong House Ltd,23101,Peoples Services Directorate,Supported Living - Ext Provider,G306
http://opendatacommunities.org/id/london-borough-council/sutton,London Borough of Sutton,31/03/2020,40402822,"2,058.44",Ashlong House Ltd,23101,Peoples Services Directorate,Supported Living - Ext Provider,G306
http://opendatacommunities.org/id/london-borough-council/sutton,London Borough of Sutton,31/03/2020,40402825,"1,808.41",Ashlong House Ltd,23101,Peoples Services Directorate,Supported Living - Ext Provider,G306
http://opendatacommunities.org/id/london-borough-council/sutton,London Borough of Sutton,17/04/2020,40407284,"5,492.48",Aspens Charities,30002,Peoples Services Directorate,Residential Care - Ext Provider,G310
http://opendatacommunities.org/id/london-borough-council/sutton,London Borough of Sutton,05/04/2020,40402924,560,Aspirations Care Ltd,25173,Peoples Services Directorate,Home Care,G334
http://opendatacommunities.org/id/london-borough-council/sutton,London Borough of Sutton,05/04/2020,40402924,"1,661.10",Aspirations Care Ltd,25173,Peoples Services Directorate,Home Care,G334
http://opendatacommunities.org/id/london-borough-council/sutton,London Borough of Sutton,12/04/2020,40406104,560,Aspirations Care Ltd,25173,Peoples Services Directorate,Home Care,G334
http://opendatacommunities.org/id/london-borough-council/sutton,London Borough of Sutton,12/04/2020,40406104,"1,661.10",Aspirations Care Ltd,25173,Peoples Services Directorate,Home Care,G334
http://opendatacommunities.org/id/london-borough-council/sutton,London Borough of Sutton,19/04/2020,40408546,560,Aspirations Care Ltd,25173,Peoples Services Directorate,Home Care,G334
http://opendatacommunities.org/id/london-borough-council/sutton,London Borough of Sutton,19/04/2020,40408546,"1,661.10",Aspirations Care Ltd,25173,Peoples Services Directorate,Home Care,G334
http://opendatacommunities.org/id/london-borough-council/sutton,London Borough of Sutton,26/04/2020,40411858,560,Aspirations Care Ltd,25173,Peoples Services Directorate,Home Care,G334
http://opendatacommunities.org/id/london-borough-council/sutton,London Borough of Sutton,26/04/2020,40411858,"1,661.10",Aspirations Care Ltd,25173,Peoples Services Directorate,Home Care,G334
http://opendatacommunities.org/id/london-borough-council/sutton,London Borough of Sutton,31/03/2020,6969478,"20,556.75",Assetgrove Lettings Ltd,28820,"Environment, Housing & Regeneration Directorate",Bed and Breakfast Accommodation,G400
http://opendatacommunities.org/id/london-borough-council/sutton,London Borough of Sutton,10/02/2020,6970131,"1,893.60",Astor-Bannerman (Medical) Ltd,99815,"Environment, Housing & Regeneration Directorate",Grants -Made,Y610
http://opendatacommunities.org/id/london-borough-council/sutton,London Borough of Sutton,14/04/2020,6970228,"65,292.45",Atalian Servest Limited,23051,Resources Directorate,FM - Building Cleaning Contract - Servest,G611
http://opendatacommunities.org/id/london-borough-council/sutton,London Borough of Sutton,17/04/2020,40406895,"4,580.72",Autism & Aspergers Care Services,10327,Peoples Services Directorate,Residential Care - Ext Provider,G310
http://opendatacommunities.org/id/london-borough-council/sutton,London Borough of Sutton,01/04/2020,1290951,"36,866.65",Avenue Primary Acadamy,26025,Peoples Services Directorate,Top-up Funding,G064
http://opendatacommunities.org/id/london-borough-council/sutton,London Borough of Sutton,01/04/2020,1290951,"102,569.48",Avenue Primary Acadamy,26025,Peoples Services Directorate,Place Funding,G063
http://opendatacommunities.org/id/london-borough-council/sutton,London Borough of Sutton,01/04/2020,6969514,"1,525.00",Axcis Education Recruitment,21583,Peoples Services Directorate,One to One Care,G335
http://opendatacommunities.org/id/london-borough-council/sutton,London Borough of Sutton,08/04/2020,6969769,"1,068.75",Axcis Education Recruitment,21583,Peoples Services Directorate,One to One Care,G335
http://opendatacommunities.org/id/london-borough-council/sutton,London Borough of Sutton,15/04/2020,6969954,750,Axcis Education Recruitment,21583,Peoples Services Directorate,One to One Care,G335
http://opendatacommunities.org/id/london-borough-council/sutton,London Borough of Sutton,22/04/2020,6970328,750,Axcis Education Recruitment,21583,Peoples Services Directorate,One to One Care,G335
http://opendatacommunities.org/id/london-borough-council/sutton,London Borough of Sutton,27/04/2020,6970441,444,B.E.S.T in Horticulture Limited,99879,"Environment, Housing & Regeneration Directorate",Alts To Undertakers Plant-Other,Y250
http://opendatacommunities.org/id/london-borough-council/sutton,London Borough of Sutton,30/09/2019,6970616,"4,290.00",Baily Garner LLP,21501,"Environment, Housing & Regeneration Directorate",External Fees  - Other,Y130
http://opendatacommunities.org/id/london-borough-council/sutton,London Borough of Sutton,30/09/2019,6970617,"3,500.00",Baily Garner LLP,21501,"Environment, Housing & Regeneration Directorate",External Fees  - Other,Y130
http://opendatacommunities.org/id/london-borough-council/sutton,London Borough of Sutton,27/02/2020,6970618,"4,120.00",Baily Garner LLP,21501,"Environment, Housing & Regeneration Directorate",External Fees  - Other,Y130
http://opendatacommunities.org/id/london-borough-council/sutton,London Borough of Sutton,28/04/2020,6970540,"3,437.50",Baltimore Consulting Ltd,35386,Chief Executive's Directorate,Agency Staff - Other,A301
http://opendatacommunities.org/id/london-borough-council/sutton,London Borough of Sutton,01/04/2020,1290952,"5,391.66",Bandon Hill Primary,10372,Peoples Services Directorate,Top-up Funding,G064
http://opendatacommunities.org/id/london-borough-council/sutton,London Borough of Sutton,01/04/2020,1290952,"14,104.16",Bandon Hill Primary,10372,Peoples Services Directorate,Top-up Funding,G064
http://opendatacommunities.org/id/london-borough-council/sutton,London Borough of Sutton,01/04/2020,1290952,"243,949.86",Bandon Hill Primary,10372,Peoples Services Directorate,Place Funding,G063
http://opendatacommunities.org/id/london-borough-council/sutton,London Borough of Sutton,01/04/2020,1290953,"23,500.00",Bandon Hill Primary,10372,Peoples Services Directorate,Top-up Funding,G064
http://opendatacommunities.org/id/london-borough-council/sutton,London Borough of Sutton,01/04/2020,1290954,"22,775.01",Bandon Hill Primary,10372,Peoples Services Directorate,Top-up Funding,G064
http://opendatacommunities.org/id/london-borough-council/sutton,London Borough of Sutton,01/04/2020,1290954,"5,808.33",Bandon Hill Primary,10372,Peoples Services Directorate,Place Funding,G063
http://opendatacommunities.org/id/london-borough-council/sutton,London Borough of Sutton,02/04/2020,6969448,"1,000.00",Banksearch Information Consultancy Ltd,24740,"Environment, Housing & Regeneration Directorate",Fees - Room Hire,F290
http://opendatacommunities.org/id/london-borough-council/sutton,London Borough of Sutton,31/03/2020,40404540,"3,607.47",Banya,10375,Peoples Services Directorate,Foster Parents,G326
http://opendatacommunities.org/id/london-borough-council/sutton,London Borough of Sutton,17/04/2020,40407298,"3,502.24",Barchester Healthcare (Epsom Beaumont Care Home),19157,Peoples Services Directorate,Nursing Care - Ext Provider,G311
http://opendatacommunities.org/id/london-borough-council/sutton,London Borough of Sutton,17/04/2020,40406869,"5,200.00",Barchester Healthcare Homes Ltd,34661,Peoples Services Directorate,Nursing Care - Ext Provider,G311
http://opendatacommunities.org/id/london-borough-council/sutton,London Borough of Sutton,23/04/2020,6970430,"2,511.00",Barnardo's,10370,Peoples Services Directorate,Play Groups,G322
http://opendatacommunities.org/id/london-borough-council/sutton,London Borough of Sutton,18/02/2020,40405204,735,Barnardo's,10370,Peoples Services Directorate,Provider Contract Payments,F470
http://opendatacommunities.org/id/london-borough-council/sutton,London Borough of Sutton,18/02/2020,40405205,477,Barnardo's,10370,Peoples Services Directorate,Provider Contract Payments,F470
http://opendatacommunities.org/id/london-borough-council/sutton,London Borough of Sutton,18/02/2020,40405207,441,Barnardo's,10370,Peoples Services Directorate,Provider Contract Payments,F470
http://opendatacommunities.org/id/london-borough-council/sutton,London Borough of Sutton,18/02/2020,40405210,510,Barnardo's,10370,Peoples Services Directorate,Provider Contract Payments,F470
http://opendatacommunities.org/id/london-borough-council/sutton,London Borough of Sutton,18/02/2020,40405211,609.5,Barnardo's,10370,Peoples Services Directorate,Provider Contract Payments,F470
http://opendatacommunities.org/id/london-borough-council/sutton,London Borough of Sutton,18/02/2020,40405212,539,Barnardo's,10370,Peoples Services Directorate,Provider Contract Payments,F470
http://opendatacommunities.org/id/london-borough-council/sutton,London Borough of Sutton,18/02/2020,40405213,980,Barnardo's,10370,Peoples Services Directorate,Provider Contract Payments,F470
http://opendatacommunities.org/id/london-borough-council/sutton,London Borough of Sutton,18/02/2020,40405215,490,Barnardo's,10370,Peoples Services Directorate,Provider Contract Payments,F470
http://opendatacommunities.org/id/london-borough-council/sutton,London Borough of Sutton,18/02/2020,40405216,416.5,Barnardo's,10370,Peoples Services Directorate,Provider Contract Payments,F470
http://opendatacommunities.org/id/london-borough-council/sutton,London Borough of Sutton,18/02/2020,40405221,490,Barnardo's,10370,Peoples Services Directorate,Provider Contract Payments,F470
http://opendatacommunities.org/id/london-borough-council/sutton,London Borough of Sutton,21/04/2020,40410946,477,Barnardo's,10370,Peoples Services Directorate,Provider Contract Payments,F470
http://opendatacommunities.org/id/london-borough-council/sutton,London Borough of Sutton,21/04/2020,40410949,808.5,Barnardo's,10370,Peoples Services Directorate,Provider Contract Payments,F470
http://opendatacommunities.org/id/london-borough-council/sutton,London Borough of Sutton,21/04/2020,40410952,535.5,Barnardo's,10370,Peoples Services Directorate,Provider Contract Payments,F470
http://opendatacommunities.org/id/london-borough-council/sutton,London Borough of Sutton,21/04/2020,40410959,563.5,Barnardo's,10370,Peoples Services Directorate,Provider Contract Payments,F470
http://opendatacommunities.org/id/london-borough-council/sutton,London Borough of Sutton,21/04/2020,40410966,446.25,Barnardo's,10370,Peoples Services Directorate,Provider Contract Payments,F470
http://opendatacommunities.org/id/london-borough-council/sutton,London Borough of Sutton,31/03/2020,6969453,"3,345.00",Barnett Waddingham LLP,28449,Non-Service Cost Centres,Investment Expenses,A931
http://opendatacommunities.org/id/london-borough-council/sutton,London Borough of Sutton,31/03/2020,6969697,578.01,Barts Health Nhs Trust,28991,Chief Executive's Directorate,Provider Contract Payments,F470
http://opendatacommunities.org/id/london-borough-council/sutton,London Borough of Sutton,14/04/2020,6969829,"10,000.00",BDC Brickwork & Property Developments,99815,"Environment, Housing & Regeneration Directorate",Grants -Made,Y610
http://opendatacommunities.org/id/london-borough-council/sutton,London Borough of Sutton,31/03/2020,6969225,"4,166.67",Bdc Brickwork And Property Development,99815,"Environment, Housing & Regeneration Directorate",Grants -Made,Y610
http://opendatacommunities.org/id/london-borough-council/sutton,London Borough of Sutton,01/04/2020,1290956,"8,291.66",Beddington Infants School,10445,Peoples Services Directorate,Top-up Funding,G064
http://opendatacommunities.org/id/london-borough-council/sutton,London Borough of Sutton,01/04/2020,1290956,"3,198.85",Beddington Infants School,10445,Peoples Services Directorate,Day Nurseries,G320
http://opendatacommunities.org/id/london-borough-council/sutton,London Borough of Sutton,14/04/2020,1291322,"1,729.17",Beddington Infants School,10445,Peoples Services Directorate,Top-up Funding,G064
http://opendatacommunities.org/id/london-borough-council/sutton,London Borough of Sutton,01/04/2020,1290957,"1,729.16",Beddington Park Primary (Academy),25879,Peoples Services Directorate,Top-up Funding,G064
http://opendatacommunities.org/id/london-borough-council/sutton,London Borough of Sutton,15/04/2020,6969908,"1,433.00",Beeches Tree Care,10451,"Environment, Housing & Regeneration Directorate",Trees,G401
http://opendatacommunities.org/id/london-borough-council/sutton,London Borough of Sutton,15/04/2020,6969911,"3,989.50",Beeches Tree Care,10451,"Environment, Housing & Regeneration Directorate",Emergency Repairs,D540
http://opendatacommunities.org/id/london-borough-council/sutton,London Borough of Sutton,15/04/2020,6969912,"1,691.00",Beeches Tree Care,10451,"Environment, Housing & Regeneration Directorate",Trees - SCH,D875
http://opendatacommunities.org/id/london-borough-council/sutton,London Borough of Sutton,15/04/2020,6969913,"2,020.00",Beeches Tree Care,10451,"Environment, Housing & Regeneration Directorate",Trees - SCH,D875
http://opendatacommunities.org/id/london-borough-council/sutton,London Borough of Sutton,15/04/2020,6969914,"3,647.00",Beeches Tree Care,10451,"Environment, Housing & Regeneration Directorate",Emergency Repairs,D540
http://opendatacommunities.org/id/london-borough-council/sutton,London Borough of Sutton,17/04/2020,6969971,865,Beeches Tree Care,10451,"Environment, Housing & Regeneration Directorate",Emergency Repairs,D540
http://opendatacommunities.org/id/london-borough-council/sutton,London Borough of Sutton,17/04/2020,6969972,"1,700.00",Beeches Tree Care,10451,"Environment, Housing & Regeneration Directorate",Emergency Repairs,D540
http://opendatacommunities.org/id/london-borough-council/sutton,London Borough of Sutton,17/04/2020,6970030,433,Beeches Tree Care,10451,"Environment, Housing & Regeneration Directorate",Trees,G401
http://opendatacommunities.org/id/london-borough-council/sutton,London Borough of Sutton,17/04/2020,6970031,460,Beeches Tree Care,10451,"Environment, Housing & Regeneration Directorate",Emergency Repairs,D540
http://opendatacommunities.org/id/london-borough-council/sutton,London Borough of Sutton,22/04/2020,6970258,"5,031.00",Beeches Tree Care,10451,"Environment, Housing & Regeneration Directorate",Emergency Repairs,D540
http://opendatacommunities.org/id/london-borough-council/sutton,London Borough of Sutton,24/04/2020,6970412,"2,530.00",Beeches Tree Care,10451,"Environment, Housing & Regeneration Directorate",Trees - SCH,D875
http://opendatacommunities.org/id/london-borough-council/sutton,London Borough of Sutton,24/04/2020,6970413,"1,704.00",Beeches Tree Care,10451,"Environment, Housing & Regeneration Directorate",Emergency Repairs,D540
http://opendatacommunities.org/id/london-borough-council/sutton,London Borough of Sutton,28/04/2020,6970512,"1,120.00",Beeches Tree Care,10451,"Environment, Housing & Regeneration Directorate",Emergency Repairs,D540
http://opendatacommunities.org/id/london-borough-council/sutton,London Borough of Sutton,28/04/2020,6970514,720,Beeches Tree Care,10451,"Environment, Housing & Regeneration Directorate",Emergency Repairs,D540
http://opendatacommunities.org/id/london-borough-council/sutton,London Borough of Sutton,28/04/2020,6970515,800,Beeches Tree Care,10451,"Environment, Housing & Regeneration Directorate",Fly Tipping - DD,D865
http://opendatacommunities.org/id/london-borough-council/sutton,London Borough of Sutton,28/04/2020,6970516,960,Beeches Tree Care,10451,"Environment, Housing & Regeneration Directorate",Emergency Repairs,D540
http://opendatacommunities.org/id/london-borough-council/sutton,London Borough of Sutton,28/04/2020,6970517,"3,840.00",Beeches Tree Care,10451,"Environment, Housing & Regeneration Directorate",Emergency Repairs,D540
http://opendatacommunities.org/id/london-borough-council/sutton,London Borough of Sutton,28/04/2020,6970519,"3,080.00",Beeches Tree Care,10451,"Environment, Housing & Regeneration Directorate",Emergency Repairs,D540
http://opendatacommunities.org/id/london-borough-council/sutton,London Borough of Sutton,28/04/2020,6970524,"2,880.00",Beeches Tree Care,10451,"Environment, Housing & Regeneration Directorate",Emergency Repairs,D540
http://opendatacommunities.org/id/london-borough-council/sutton,London Borough of Sutton,28/04/2020,6970526,"2,236.37",Beeches Tree Care,10451,"Environment, Housing & Regeneration Directorate",Emergency Repairs,D540
http://opendatacommunities.org/id/london-borough-council/sutton,London Borough of Sutton,28/04/2020,6970528,720,Beeches Tree Care,10451,"Environment, Housing & Regeneration Directorate",Emergency Repairs,D540
http://opendatacommunities.org/id/london-borough-council/sutton,London Borough of Sutton,28/04/2020,6970532,"1,920.00",Beeches Tree Care,10451,"Environment, Housing & Regeneration Directorate",Emergency Repairs,D540
http://opendatacommunities.org/id/london-borough-council/sutton,London Borough of Sutton,28/04/2020,6970533,720,Beeches Tree Care,10451,"Environment, Housing & Regeneration Directorate",Emergency Repairs,D540
http://opendatacommunities.org/id/london-borough-council/sutton,London Borough of Sutton,28/04/2020,6970654,"3,144.00",Beeches Tree Care,10451,"Environment, Housing & Regeneration Directorate",Emergency Repairs,D540
http://opendatacommunities.org/id/london-borough-council/sutton,London Borough of Sutton,16/04/2020,6969899,"1,024.83",Bellville-Homes Ltd,26490,"Environment, Housing & Regeneration Directorate",Temporary Protection - Homeless Persons,H300
http://opendatacommunities.org/id/london-borough-council/sutton,London Borough of Sutton,14/04/2020,1291512,"3,600.00",Best at Home Domiciliary Care Services Ltd,30159,Peoples Services Directorate,Home Care,G334
http://opendatacommunities.org/id/london-borough-council/sutton,London Borough of Sutton,05/04/2020,40402883,488.5,Best at Home Domiciliary Care Services Ltd,30159,Peoples Services Directorate,Home Care,G334
http://opendatacommunities.org/id/london-borough-council/sutton,London Borough of Sutton,05/04/2020,40402911,446.5,Best at Home Domiciliary Care Services Ltd,30159,Peoples Services Directorate,Home Care,G334
http://opendatacommunities.org/id/london-borough-council/sutton,London Borough of Sutton,05/04/2020,40402913,614,Best at Home Domiciliary Care Services Ltd,30159,Peoples Services Directorate,Home Care,G334
http://opendatacommunities.org/id/london-borough-council/sutton,London Borough of Sutton,05/04/2020,40402981,912,Best at Home Domiciliary Care Services Ltd,30159,Peoples Services Directorate,Home Care,G334
http://opendatacommunities.org/id/london-borough-council/sutton,London Borough of Sutton,05/04/2020,40403042,884,Best at Home Domiciliary Care Services Ltd,30159,Peoples Services Directorate,Home Care,G334
http://opendatacommunities.org/id/london-borough-council/sutton,London Borough of Sutton,05/04/2020,40403058,656,Best at Home Domiciliary Care Services Ltd,30159,Peoples Services Directorate,Home Care,G334
http://opendatacommunities.org/id/london-borough-council/sutton,London Borough of Sutton,10/03/2020,40404171,488.5,Best at Home Domiciliary Care Services Ltd,30159,Peoples Services Directorate,Home Care,G334
http://opendatacommunities.org/id/london-borough-council/sutton,London Borough of Sutton,10/03/2020,40404178,502.5,Best at Home Domiciliary Care Services Ltd,30159,Peoples Services Directorate,Home Care,G334
http://opendatacommunities.org/id/london-borough-council/sutton,London Borough of Sutton,10/03/2020,40404215,614,Best at Home Domiciliary Care Services Ltd,30159,Peoples Services Directorate,Home Care,G334
http://opendatacommunities.org/id/london-borough-council/sutton,London Borough of Sutton,10/03/2020,40404233,884,Best at Home Domiciliary Care Services Ltd,30159,Peoples Services Directorate,Home Care,G334
http://opendatacommunities.org/id/london-borough-council/sutton,London Borough of Sutton,10/03/2020,40404235,912,Best at Home Domiciliary Care Services Ltd,30159,Peoples Services Directorate,Home Care,G334
http://opendatacommunities.org/id/london-borough-council/sutton,London Borough of Sutton,16/03/2020,40404647,502.5,Best at Home Domiciliary Care Services Ltd,30159,Peoples Services Directorate,Home Care,G334
http://opendatacommunities.org/id/london-borough-council/sutton,London Borough of Sutton,16/03/2020,40404648,884,Best at Home Domiciliary Care Services Ltd,30159,Peoples Services Directorate,Home Care,G334
http://opendatacommunities.org/id/london-borough-council/sutton,London Borough of Sutton,16/03/2020,40404662,614,Best at Home Domiciliary Care Services Ltd,30159,Peoples Services Directorate,Home Care,G334
http://opendatacommunities.org/id/london-borough-council/sutton,London Borough of Sutton,16/03/2020,40404666,912,Best at Home Domiciliary Care Services Ltd,30159,Peoples Services Directorate,Home Care,G334
http://opendatacommunities.org/id/london-borough-council/sutton,London Borough of Sutton,16/03/2020,40404692,488.5,Best at Home Domiciliary Care Services Ltd,30159,Peoples Services Directorate,Home Care,G334
http://opendatacommunities.org/id/london-borough-council/sutton,London Borough of Sutton,12/04/2020,40406232,471.5,Best at Home Domiciliary Care Services Ltd,30159,Peoples Services Directorate,Home Care,G334
http://opendatacommunities.org/id/london-borough-council/sutton,London Borough of Sutton,12/04/2020,40406234,650,Best at Home Domiciliary Care Services Ltd,30159,Peoples Services Directorate,Home Care,G334
http://opendatacommunities.org/id/london-borough-council/sutton,London Borough of Sutton,12/04/2020,40406235,423,Best at Home Domiciliary Care Services Ltd,30159,Peoples Services Directorate,Home Care,G334
http://opendatacommunities.org/id/london-borough-council/sutton,London Borough of Sutton,12/04/2020,40406267,963.98,Best at Home Domiciliary Care Services Ltd,30159,Peoples Services Directorate,Home Care,G334
http://opendatacommunities.org/id/london-borough-council/sutton,London Borough of Sutton,12/04/2020,40406311,515.5,Best at Home Domiciliary Care Services Ltd,30159,Peoples Services Directorate,Home Care,G334
http://opendatacommunities.org/id/london-borough-council/sutton,London Borough of Sutton,12/04/2020,40406317,423,Best at Home Domiciliary Care Services Ltd,30159,Peoples Services Directorate,Home Care,G334
http://opendatacommunities.org/id/london-borough-council/sutton,London Borough of Sutton,12/04/2020,40406321,420,Best at Home Domiciliary Care Services Ltd,30159,Peoples Services Directorate,Home Care,G334
http://opendatacommunities.org/id/london-borough-council/sutton,London Borough of Sutton,12/04/2020,40406343,423,Best at Home Domiciliary Care Services Ltd,30159,Peoples Services Directorate,Home Care,G334
http://opendatacommunities.org/id/london-borough-council/sutton,London Borough of Sutton,12/04/2020,40406368,929.97,Best at Home Domiciliary Care Services Ltd,30159,Peoples Services Directorate,Home Care,G334
http://opendatacommunities.org/id/london-borough-council/sutton,London Borough of Sutton,12/04/2020,40406369,437,Best at Home Domiciliary Care Services Ltd,30159,Peoples Services Directorate,Home Care,G334
http://opendatacommunities.org/id/london-borough-council/sutton,London Borough of Sutton,12/04/2020,40406373,696,Best at Home Domiciliary Care Services Ltd,30159,Peoples Services Directorate,Home Care,G334
http://opendatacommunities.org/id/london-borough-council/sutton,London Borough of Sutton,12/04/2020,40406381,487.99,Best at Home Domiciliary Care Services Ltd,30159,Peoples Services Directorate,Home Care,G334
http://opendatacommunities.org/id/london-borough-council/sutton,London Borough of Sutton,19/04/2020,40408543,471.5,Best at Home Domiciliary Care Services Ltd,30159,Peoples Services Directorate,Home Care,G334
http://opendatacommunities.org/id/london-borough-council/sutton,London Borough of Sutton,19/04/2020,40408545,650,Best at Home Domiciliary Care Services Ltd,30159,Peoples Services Directorate,Home Care,G334
http://opendatacommunities.org/id/london-borough-council/sutton,London Borough of Sutton,19/04/2020,40408547,423,Best at Home Domiciliary Care Services Ltd,30159,Peoples Services Directorate,Home Care,G334
http://opendatacommunities.org/id/london-borough-council/sutton,London Borough of Sutton,19/04/2020,40408558,963.98,Best at Home Domiciliary Care Services Ltd,30159,Peoples Services Directorate,Home Care,G334
http://opendatacommunities.org/id/london-borough-council/sutton,London Borough of Sutton,19/04/2020,40408574,515.5,Best at Home Domiciliary Care Services Ltd,30159,Peoples Services Directorate,Home Care,G334
http://opendatacommunities.org/id/london-borough-council/sutton,London Borough of Sutton,19/04/2020,40408580,423,Best at Home Domiciliary Care Services Ltd,30159,Peoples Services Directorate,Home Care,G334
http://opendatacommunities.org/id/london-borough-council/sutton,London Borough of Sutton,19/04/2020,40408584,420,Best at Home Domiciliary Care Services Ltd,30159,Peoples Services Directorate,Home Care,G334
http://opendatacommunities.org/id/london-borough-council/sutton,London Borough of Sutton,19/04/2020,40408594,485,Best at Home Domiciliary Care Services Ltd,30159,Peoples Services Directorate,Home Care,G334
http://opendatacommunities.org/id/london-borough-council/sutton,London Borough of Sutton,19/04/2020,40408611,929.97,Best at Home Domiciliary Care Services Ltd,30159,Peoples Services Directorate,Home Care,G334
http://opendatacommunities.org/id/london-borough-council/sutton,London Borough of Sutton,19/04/2020,40408612,437,Best at Home Domiciliary Care Services Ltd,30159,Peoples Services Directorate,Home Care,G334
http://opendatacommunities.org/id/london-borough-council/sutton,London Borough of Sutton,19/04/2020,40408616,696,Best at Home Domiciliary Care Services Ltd,30159,Peoples Services Directorate,Home Care,G334
http://opendatacommunities.org/id/london-borough-council/sutton,London Borough of Sutton,19/04/2020,40408623,811.99,Best at Home Domiciliary Care Services Ltd,30159,Peoples Services Directorate,Home Care,G334
http://opendatacommunities.org/id/london-borough-council/sutton,London Borough of Sutton,19/04/2020,40408626,606,Best at Home Domiciliary Care Services Ltd,30159,Peoples Services Directorate,Home Care,G334
http://opendatacommunities.org/id/london-borough-council/sutton,London Borough of Sutton,24/04/2020,40409422,614,Best at Home Domiciliary Care Services Ltd,30159,Peoples Services Directorate,Home Care,G334
http://opendatacommunities.org/id/london-borough-council/sutton,London Borough of Sutton,24/04/2020,40409438,502.5,Best at Home Domiciliary Care Services Ltd,30159,Peoples Services Directorate,Home Care,G334
http://opendatacommunities.org/id/london-borough-council/sutton,London Borough of Sutton,24/04/2020,40409442,884,Best at Home Domiciliary Care Services Ltd,30159,Peoples Services Directorate,Home Care,G334
http://opendatacommunities.org/id/london-borough-council/sutton,London Borough of Sutton,24/04/2020,40409448,912,Best at Home Domiciliary Care Services Ltd,30159,Peoples Services Directorate,Home Care,G334
http://opendatacommunities.org/id/london-borough-council/sutton,London Borough of Sutton,24/04/2020,40409451,488.5,Best at Home Domiciliary Care Services Ltd,30159,Peoples Services Directorate,Home Care,G334
http://opendatacommunities.org/id/london-borough-council/sutton,London Borough of Sutton,30/03/2020,40411423,436.75,Best at Home Domiciliary Care Services Ltd,30159,Peoples Services Directorate,Home Care,G334
http://opendatacommunities.org/id/london-borough-council/sutton,London Borough of Sutton,30/03/2020,40411512,532,Best at Home Domiciliary Care Services Ltd,30159,Peoples Services Directorate,Home Care,G334
http://opendatacommunities.org/id/london-borough-council/sutton,London Borough of Sutton,30/03/2020,40411516,502.5,Best at Home Domiciliary Care Services Ltd,30159,Peoples Services Directorate,Home Care,G334
http://opendatacommunities.org/id/london-borough-council/sutton,London Borough of Sutton,30/03/2020,40411517,884,Best at Home Domiciliary Care Services Ltd,30159,Peoples Services Directorate,Home Care,G334
http://opendatacommunities.org/id/london-borough-council/sutton,London Borough of Sutton,30/03/2020,40411520,912,Best at Home Domiciliary Care Services Ltd,30159,Peoples Services Directorate,Home Care,G334
http://opendatacommunities.org/id/london-borough-council/sutton,London Borough of Sutton,30/03/2020,40411526,488.5,Best at Home Domiciliary Care Services Ltd,30159,Peoples Services Directorate,Home Care,G334
http://opendatacommunities.org/id/london-borough-council/sutton,London Borough of Sutton,26/04/2020,40411916,446.5,Best at Home Domiciliary Care Services Ltd,30159,Peoples Services Directorate,Home Care,G334
http://opendatacommunities.org/id/london-borough-council/sutton,London Borough of Sutton,26/04/2020,40411918,614,Best at Home Domiciliary Care Services Ltd,30159,Peoples Services Directorate,Home Care,G334
http://opendatacommunities.org/id/london-borough-council/sutton,London Borough of Sutton,26/04/2020,40411946,912,Best at Home Domiciliary Care Services Ltd,30159,Peoples Services Directorate,Home Care,G334
http://opendatacommunities.org/id/london-borough-council/sutton,London Borough of Sutton,26/04/2020,40411961,488.5,Best at Home Domiciliary Care Services Ltd,30159,Peoples Services Directorate,Home Care,G334
http://opendatacommunities.org/id/london-borough-council/sutton,London Borough of Sutton,26/04/2020,40411981,456,Best at Home Domiciliary Care Services Ltd,30159,Peoples Services Directorate,Home Care,G334
http://opendatacommunities.org/id/london-borough-council/sutton,London Borough of Sutton,26/04/2020,40412007,884,Best at Home Domiciliary Care Services Ltd,30159,Peoples Services Directorate,Home Care,G334
http://opendatacommunities.org/id/london-borough-council/sutton,London Borough of Sutton,26/04/2020,40412012,656,Best at Home Domiciliary Care Services Ltd,30159,Peoples Services Directorate,Home Care,G334
http://opendatacommunities.org/id/london-borough-council/sutton,London Borough of Sutton,26/04/2020,40412018,772,Best at Home Domiciliary Care Services Ltd,30159,Peoples Services Directorate,Home Care,G334
http://opendatacommunities.org/id/london-borough-council/sutton,London Borough of Sutton,26/04/2020,40412020,800,Best at Home Domiciliary Care Services Ltd,30159,Peoples Services Directorate,Home Care,G334
http://opendatacommunities.org/id/london-borough-council/sutton,London Borough of Sutton,31/03/2020,6969610,"3,174.00",Bestcourt UK Ltd,10441,"Environment, Housing & Regeneration Directorate",Bed and Breakfast Accommodation,G400
http://opendatacommunities.org/id/london-borough-council/sutton,London Borough of Sutton,25/03/2020,6969470,"2,661.50",Bevan Brittan LLP,28285,"Environment, Housing & Regeneration Directorate",Fees - Consultants (Ad Hoc),F283
http://opendatacommunities.org/id/london-borough-council/sutton,London Borough of Sutton,08/04/2020,1292439,"21,501.83",Beyond Autism,17692,Peoples Services Directorate,Independent Schools,G325
http://opendatacommunities.org/id/london-borough-council/sutton,London Borough of Sutton,08/04/2020,1292440,"29,680.99",Beyond Autism,17692,Peoples Services Directorate,Independent Schools,G325
http://opendatacommunities.org/id/london-borough-council/sutton,London Borough of Sutton,08/04/2020,1292441,"21,810.16",Beyond Autism,17692,Peoples Services Directorate,Independent Schools,G325
http://opendatacommunities.org/id/london-borough-council/sutton,London Borough of Sutton,08/04/2020,1292442,"18,852.57",Beyond Autism,17692,Peoples Services Directorate,Independent Schools,G325
http://opendatacommunities.org/id/london-borough-council/sutton,London Borough of Sutton,08/04/2020,1292443,"21,810.16",Beyond Autism,17692,Peoples Services Directorate,Independent Schools,G325
http://opendatacommunities.org/id/london-borough-council/sutton,London Borough of Sutton,08/04/2020,1292444,"21,347.66",Beyond Autism,17692,Peoples Services Directorate,Independent Schools,G325
http://opendatacommunities.org/id/london-borough-council/sutton,London Borough of Sutton,02/04/2020,6969503,901.18,BFS Group T/A Bidfood,14589,Chief Executive's Directorate,Refreshments,F155
http://opendatacommunities.org/id/london-borough-council/sutton,London Borough of Sutton,09/04/2020,6969808,648.4,BFS Group T/A Bidfood,14589,Chief Executive's Directorate,Refreshments,F155
http://opendatacommunities.org/id/london-borough-council/sutton,London Borough of Sutton,23/04/2020,6970427,815.1,BFS Group T/A Bidfood,14589,Chief Executive's Directorate,Refreshments,F155
http://opendatacommunities.org/id/london-borough-council/sutton,London Borough of Sutton,06/04/2020,40402812,"6,090.00",Bibliographic Data Services Ltd,10492,Chief Executive's Directorate,Books,F006
http://opendatacommunities.org/id/london-borough-council/sutton,London Borough of Sutton,02/04/2020,1290877,"3,763.90",REDACTED - PERSONAL DATA,35363,Peoples Services Directorate,Approved Lodgings,H323
http://opendatacommunities.org/id/london-borough-council/sutton,London Borough of Sutton,21/02/2020,6970329,"1,200.00",Bindmans LLP,35160,Peoples Services Directorate,Personal Requisites,F106
http://opendatacommunities.org/id/london-borough-council/sutton,London Borough of Sutton,01/04/2020,1291266,"16,250.00",Blossom House Lower School,10507,Peoples Services Directorate,Independent Schools,G325
http://opendatacommunities.org/id/london-borough-council/sutton,London Borough of Sutton,01/04/2020,1291267,"11,008.80",Blossom House Lower School,10507,Peoples Services Directorate,Independent Schools,G325
http://opendatacommunities.org/id/london-borough-council/sutton,London Borough of Sutton,01/04/2020,1291268,"9,416.66",Blossom House Lower School,10507,Peoples Services Directorate,Independent Schools,G325
http://opendatacommunities.org/id/london-borough-council/sutton,London Borough of Sutton,01/04/2020,1291269,"14,850.00",Blossom House Lower School,10507,Peoples Services Directorate,Independent Schools,G325
http://opendatacommunities.org/id/london-borough-council/sutton,London Borough of Sutton,01/04/2020,1291270,"11,008.80",Blossom House Lower School,10507,Peoples Services Directorate,Independent Schools,G325
http://opendatacommunities.org/id/london-borough-council/sutton,London Borough of Sutton,01/04/2020,1291271,"19,516.67",Blossom House Lower School,10507,Peoples Services Directorate,Independent Schools,G325
http://opendatacommunities.org/id/london-borough-council/sutton,London Borough of Sutton,01/04/2020,1291272,"14,850.00",Blossom House Lower School,10507,Peoples Services Directorate,Independent Schools,G325
http://opendatacommunities.org/id/london-borough-council/sutton,London Borough of Sutton,01/04/2020,1291273,"14,350.00",Blossom House Lower School,10507,Peoples Services Directorate,Independent Schools,G325
http://opendatacommunities.org/id/london-borough-council/sutton,London Borough of Sutton,01/04/2020,1291274,"15,250.00",Blossom House Lower School,10507,Peoples Services Directorate,Independent Schools,G325
http://opendatacommunities.org/id/london-borough-council/sutton,London Borough of Sutton,01/04/2020,1291275,"15,250.00",Blossom House Lower School,10507,Peoples Services Directorate,Independent Schools,G325
http://opendatacommunities.org/id/london-borough-council/sutton,London Borough of Sutton,01/04/2020,1291276,"13,950.00",Blossom House Lower School,10507,Peoples Services Directorate,Independent Schools,G325
http://opendatacommunities.org/id/london-borough-council/sutton,London Borough of Sutton,01/04/2020,1291277,"13,150.00",Blossom House Lower School,10507,Peoples Services Directorate,Independent Schools,G325
http://opendatacommunities.org/id/london-borough-council/sutton,London Borough of Sutton,01/04/2020,1291278,"11,008.80",Blossom House Lower School,10507,Peoples Services Directorate,Independent Schools,G325
http://opendatacommunities.org/id/london-borough-council/sutton,London Borough of Sutton,01/04/2020,1291279,"12,750.00",Blossom House Lower School,10507,Peoples Services Directorate,Independent Schools,G325
http://opendatacommunities.org/id/london-borough-council/sutton,London Borough of Sutton,01/04/2020,1291280,"13,950.00",Blossom House Lower School,10507,Peoples Services Directorate,Independent Schools,G325
http://opendatacommunities.org/id/london-borough-council/sutton,London Borough of Sutton,01/04/2020,1291281,"13,150.00",Blossom House Lower School,10507,Peoples Services Directorate,Independent Schools,G325
http://opendatacommunities.org/id/london-borough-council/sutton,London Borough of Sutton,27/04/2020,40411856,"1,000.00",Bolinda UK Ltd,10558,Chief Executive's Directorate,Books,F006
http://opendatacommunities.org/id/london-borough-council/sutton,London Borough of Sutton,01/04/2020,6970352,720,Brandex Publishing Limited,35389,Peoples Services Directorate,Subscriptions - General,F450
http://opendatacommunities.org/id/london-borough-council/sutton,London Borough of Sutton,31/03/2020,6970353,686,Brandex Publishing Limited,35389,Peoples Services Directorate,Subscriptions - General,F450
http://opendatacommunities.org/id/london-borough-council/sutton,London Borough of Sutton,30/03/2020,6970452,"62,306.80",Breyer Group Plc,97044,"Environment, Housing & Regeneration Directorate",Building Works -Main Contractor,Y350
http://opendatacommunities.org/id/london-borough-council/sutton,London Borough of Sutton,20/03/2020,6970453,"32,114.30",Breyer Group Plc,97044,"Environment, Housing & Regeneration Directorate",Building Works -Main Contractor,Y350
http://opendatacommunities.org/id/london-borough-council/sutton,London Borough of Sutton,17/04/2020,40406948,"3,472.00",Bridge House Care Centre,10620,Peoples Services Directorate,Nursing Care - Ext Provider,G311
http://opendatacommunities.org/id/london-borough-council/sutton,London Borough of Sutton,17/04/2020,40406983,"3,472.00",Bridge House Care Centre,10620,Peoples Services Directorate,Nursing Care - Ext Provider,G311
http://opendatacommunities.org/id/london-borough-council/sutton,London Borough of Sutton,17/04/2020,40406984,"3,472.00",Bridge House Care Centre,10620,Peoples Services Directorate,Nursing Care - Ext Provider,G311
http://opendatacommunities.org/id/london-borough-council/sutton,London Borough of Sutton,17/04/2020,40406985,"3,502.24",Bridge House Care Centre,10620,Peoples Services Directorate,Nursing Care - Ext Provider,G311
http://opendatacommunities.org/id/london-borough-council/sutton,London Borough of Sutton,17/04/2020,40407012,"2,122.96",Bridge House Care Centre,10620,Peoples Services Directorate,Nursing Care - Ext Provider,G311
http://opendatacommunities.org/id/london-borough-council/sutton,London Borough of Sutton,17/04/2020,40407035,"3,502.24",Bridge House Care Centre,10620,Peoples Services Directorate,Nursing Care - Ext Provider,G311
http://opendatacommunities.org/id/london-borough-council/sutton,London Borough of Sutton,17/04/2020,40407036,879.16,Bridge House Care Centre,10620,Peoples Services Directorate,Nursing Care - Ext Provider,G311
http://opendatacommunities.org/id/london-borough-council/sutton,London Borough of Sutton,17/04/2020,40407037,"3,472.64",Bridge House Care Centre,10620,Peoples Services Directorate,Nursing Care - Ext Provider,G311
http://opendatacommunities.org/id/london-borough-council/sutton,London Borough of Sutton,17/04/2020,40407038,"3,502.24",Bridge House Care Centre,10620,Peoples Services Directorate,Nursing Care - Ext Provider,G311
http://opendatacommunities.org/id/london-borough-council/sutton,London Borough of Sutton,17/04/2020,40407074,"3,688.00",Bridge House Care Centre,10620,Peoples Services Directorate,Nursing Care - Ext Provider,G311
http://opendatacommunities.org/id/london-borough-council/sutton,London Borough of Sutton,17/04/2020,40407146,"2,108.00",Bridge House Care Centre,10620,Peoples Services Directorate,Nursing Care - Ext Provider,G311
http://opendatacommunities.org/id/london-borough-council/sutton,London Borough of Sutton,17/04/2020,40407147,750.48,Bridge House Care Centre,10620,Peoples Services Directorate,Nursing Care - Short Term Placements,G328
http://opendatacommunities.org/id/london-borough-council/sutton,London Borough of Sutton,17/04/2020,40407172,"2,026.48",Bridge House Care Centre,10620,Peoples Services Directorate,Nursing Care - Ext Provider,G311
http://opendatacommunities.org/id/london-borough-council/sutton,London Borough of Sutton,17/04/2020,40407187,"1,250.80",Bridge House Care Centre,10620,Peoples Services Directorate,Nursing Care - Short Term Placements,G328
http://opendatacommunities.org/id/london-borough-council/sutton,London Borough of Sutton,17/04/2020,40407188,"3,472.64",Bridge House Care Centre,10620,Peoples Services Directorate,Nursing Care - Ext Provider,G311
http://opendatacommunities.org/id/london-borough-council/sutton,London Borough of Sutton,17/04/2020,40407189,"1,876.20",Bridge House Care Centre,10620,Peoples Services Directorate,Nursing Care - Short Term Placements,G328
http://opendatacommunities.org/id/london-borough-council/sutton,London Borough of Sutton,17/04/2020,40407227,"2,376.52",Bridge House Care Centre,10620,Peoples Services Directorate,Respite Care,G333
http://opendatacommunities.org/id/london-borough-council/sutton,London Borough of Sutton,17/04/2020,40407239,"3,502.24",Bridge House Care Centre,10620,Peoples Services Directorate,Nursing Care - Ext Provider,G311
http://opendatacommunities.org/id/london-borough-council/sutton,London Borough of Sutton,17/04/2020,40407240,"4,002.56",Bridge House Care Centre,10620,Peoples Services Directorate,Nursing Care - Ext Provider,G311
http://opendatacommunities.org/id/london-borough-council/sutton,London Borough of Sutton,17/04/2020,40407242,"1,217.14",Bridge House Care Centre,10620,Peoples Services Directorate,Nursing Care - Short Term Placements,G328
http://opendatacommunities.org/id/london-borough-council/sutton,London Borough of Sutton,17/04/2020,40407282,"3,268.00",Bridge House Care Centre,10620,Peoples Services Directorate,Nursing Care - Ext Provider,G311
http://opendatacommunities.org/id/london-borough-council/sutton,London Borough of Sutton,17/04/2020,40407315,"2,840.00",Bridge House Care Centre,10620,Peoples Services Directorate,Nursing Care - Ext Provider,G311
http://opendatacommunities.org/id/london-borough-council/sutton,London Borough of Sutton,07/04/2020,6970253,486.05,British Gas,10641,HRA,Electricity - Anti Hypothermia Heating,D622
http://opendatacommunities.org/id/london-borough-council/sutton,London Borough of Sutton,17/04/2020,6970585,"1,146.00",British Gas Plc,10577,Peoples Services Directorate,Electricity - General,D620
http://opendatacommunities.org/id/london-borough-council/sutton,London Borough of Sutton,17/04/2020,6970586,"1,652.96",British Gas Plc,10577,Peoples Services Directorate,Electricity - General,D620
http://opendatacommunities.org/id/london-borough-council/sutton,London Borough of Sutton,17/04/2020,40407093,"2,439.36",British Home & Hospital For Incurables,10589,Peoples Services Directorate,Nursing Care - Ext Provider,G311
http://opendatacommunities.org/id/london-borough-council/sutton,London Borough of Sutton,17/04/2020,40407214,"2,710.40",British Home & Hospital For Incurables,10589,Peoples Services Directorate,Nursing Care - Ext Provider,G311
http://opendatacommunities.org/id/london-borough-council/sutton,London Borough of Sutton,23/04/2020,6970385,668,British Parking Association,10607,"Environment, Housing & Regeneration Directorate",Subscriptions - General,F450
http://opendatacommunities.org/id/london-borough-council/sutton,London Borough of Sutton,17/04/2020,40407040,"3,285.16",Broadlands Nursing Home,10586,Peoples Services Directorate,Nursing Care - Ext Provider,G311
http://opendatacommunities.org/id/london-borough-council/sutton,London Borough of Sutton,17/04/2020,40407041,"3,502.24",Broadlands Nursing Home,10586,Peoples Services Directorate,Nursing Care - Ext Provider,G311
http://opendatacommunities.org/id/london-borough-council/sutton,London Borough of Sutton,17/04/2020,40407086,"3,752.64",Broadlands Nursing Home,10586,Peoples Services Directorate,Nursing Care - Ext Provider,G311
http://opendatacommunities.org/id/london-borough-council/sutton,London Borough of Sutton,17/04/2020,40407191,"3,460.00",Broadlands Nursing Home,10586,Peoples Services Directorate,Nursing Care - Ext Provider,G311
http://opendatacommunities.org/id/london-borough-council/sutton,London Borough of Sutton,17/04/2020,40407192,"3,460.00",Broadlands Nursing Home,10586,Peoples Services Directorate,Nursing Care - Ext Provider,G311
http://opendatacommunities.org/id/london-borough-council/sutton,London Borough of Sutton,07/04/2020,6969590,614.56,Bunzl Catering Supplies,10706,Chief Executive's Directorate,Refreshments,F155
http://opendatacommunities.org/id/london-borough-council/sutton,London Borough of Sutton,31/01/2020,6969451,860.33,Busy Bees Nurseries Ltd - Croydon,35369,Peoples Services Directorate,Personal Requisites,F106
http://opendatacommunities.org/id/london-borough-council/sutton,London Borough of Sutton,17/04/2020,40407098,"7,824.28",Butterfly's Care Homes Ltd,28860,Peoples Services Directorate,Residential Care - Ext Provider,G310
http://opendatacommunities.org/id/london-borough-council/sutton,London Borough of Sutton,01/11/2019,6968709,"2,000.50",By The Bridge Ltd,25655,Peoples Services Directorate,Client Care/Assistance,H301
http://opendatacommunities.org/id/london-borough-council/sutton,London Borough of Sutton,01/11/2019,6968710,450.2,By The Bridge Ltd,25655,Peoples Services Directorate,Client Care/Assistance,H301
http://opendatacommunities.org/id/london-borough-council/sutton,London Borough of Sutton,01/11/2019,6968742,"2,000.50",By The Bridge Ltd,25655,Peoples Services Directorate,Client Care/Assistance,H301
http://opendatacommunities.org/id/london-borough-council/sutton,London Borough of Sutton,10/03/2020,6969826,"13,250.00",Calibre Conservation,97630,"Environment, Housing & Regeneration Directorate",Building Works -Main Contractor,Y350
http://opendatacommunities.org/id/london-borough-council/sutton,London Borough of Sutton,10/03/2020,6969826,"2,100.00",Calibre Conservation,97630,"Environment, Housing & Regeneration Directorate",Building Works -Main Contractor,Y350
http://opendatacommunities.org/id/london-borough-council/sutton,London Borough of Sutton,09/12/2019,6970421,"1,447.10",Canon (UK) Ltd,13275,Resources Directorate,Suspense/Holding Accounts,X550
http://opendatacommunities.org/id/london-borough-council/sutton,London Borough of Sutton,27/03/2020,6970577,"11,653.59",Canon (UK) Ltd,13275,Resources Directorate,Printing - General,F215
http://opendatacommunities.org/id/london-borough-council/sutton,London Borough of Sutton,17/04/2020,40406919,"3,821.84",Canterbury Oast Trust,10755,Peoples Services Directorate,Residential Care - Ext Provider,G310
http://opendatacommunities.org/id/london-borough-council/sutton,London Borough of Sutton,10/03/2020,6968393,690,Capita Business Services Ltd,10780,Resources Directorate,Fees - Computer Software,F384
http://opendatacommunities.org/id/london-borough-council/sutton,London Borough of Sutton,10/03/2020,6968402,"18,810.00",Capita Business Services Ltd,10780,Resources Directorate,Fees - Computer Software,F384
http://opendatacommunities.org/id/london-borough-council/sutton,London Borough of Sutton,08/04/2020,6969813,"39,419.11",Capita Business Services Ltd,10780,Chief Executive's Directorate,General Office Expenses,F235
http://opendatacommunities.org/id/london-borough-council/sutton,London Borough of Sutton,06/03/2020,6969988,"12,390.97",Capita Business Services Ltd,10780,Peoples Services Directorate,Fees - Computer Software,F384
http://opendatacommunities.org/id/london-borough-council/sutton,London Borough of Sutton,30/03/2020,40404544,"3,432.32",Capstone Foster Care (South East) Ltd,16360,Peoples Services Directorate,Foster Parents,G326
http://opendatacommunities.org/id/london-borough-council/sutton,London Borough of Sutton,30/03/2020,40404558,"5,739.34",Capstone Foster Care (South East) Ltd,16360,Peoples Services Directorate,Foster Parents,G326
http://opendatacommunities.org/id/london-borough-council/sutton,London Borough of Sutton,03/03/2020,40400729,"9,200.00",Care Advocates Ltd,34664,Peoples Services Directorate,Supported Living - Ext Provider,G306
http://opendatacommunities.org/id/london-borough-council/sutton,London Borough of Sutton,12/03/2020,40404125,"3,531.43",Care Advocates Ltd,34664,Peoples Services Directorate,Supported Living - Ext Provider,G306
http://opendatacommunities.org/id/london-borough-council/sutton,London Borough of Sutton,17/04/2020,40407215,"3,080.00",Care Direct Uk Ltd  (David House),27080,Peoples Services Directorate,Residential Care - Ext Provider,G310
http://opendatacommunities.org/id/london-borough-council/sutton,London Borough of Sutton,14/04/2020,1291519,"3,760.00",Care More Ltd,33872,Peoples Services Directorate,Home Care,G334
http://opendatacommunities.org/id/london-borough-council/sutton,London Borough of Sutton,09/03/2020,40401625,431,Care More Ltd,33872,Peoples Services Directorate,Home Care,G334
http://opendatacommunities.org/id/london-borough-council/sutton,London Borough of Sutton,09/03/2020,40401626,854,Care More Ltd,33872,Peoples Services Directorate,Home Care,G334
http://opendatacommunities.org/id/london-borough-council/sutton,London Borough of Sutton,09/03/2020,40401627,"1,344.00",Care More Ltd,33872,Peoples Services Directorate,Home Care,G334
http://opendatacommunities.org/id/london-borough-council/sutton,London Borough of Sutton,09/03/2020,40401628,770,Care More Ltd,33872,Peoples Services Directorate,Home Care,G334
http://opendatacommunities.org/id/london-borough-council/sutton,London Borough of Sutton,09/03/2020,40401630,672,Care More Ltd,33872,Peoples Services Directorate,Home Care,G334
http://opendatacommunities.org/id/london-borough-council/sutton,London Borough of Sutton,09/03/2020,40401632,546,Care More Ltd,33872,Peoples Services Directorate,Home Care,G334
http://opendatacommunities.org/id/london-borough-council/sutton,London Borough of Sutton,09/03/2020,40401634,666,Care More Ltd,33872,Peoples Services Directorate,Home Care,G334
http://opendatacommunities.org/id/london-borough-council/sutton,London Borough of Sutton,09/03/2020,40401635,"1,708.00",Care More Ltd,33872,Peoples Services Directorate,Home Care,G334
http://opendatacommunities.org/id/london-borough-council/sutton,London Borough of Sutton,09/03/2020,40401636,420,Care More Ltd,33872,Peoples Services Directorate,Home Care,G334
http://opendatacommunities.org/id/london-borough-council/sutton,London Borough of Sutton,09/03/2020,40401636,892,Care More Ltd,33872,Peoples Services Directorate,Home Care,G334
http://opendatacommunities.org/id/london-borough-council/sutton,London Borough of Sutton,09/03/2020,40401637,672,Care More Ltd,33872,Peoples Services Directorate,Home Care,G334
http://opendatacommunities.org/id/london-borough-council/sutton,London Borough of Sutton,09/03/2020,40401638,530,Care More Ltd,33872,Peoples Services Directorate,Home Care,G334
http://opendatacommunities.org/id/london-borough-council/sutton,London Borough of Sutton,09/03/2020,40401644,"1,344.00",Care More Ltd,33872,Peoples Services Directorate,Home Care,G334
http://opendatacommunities.org/id/london-borough-council/sutton,London Borough of Sutton,09/03/2020,40401648,568,Care More Ltd,33872,Peoples Services Directorate,Home Care,G334
http://opendatacommunities.org/id/london-borough-council/sutton,London Borough of Sutton,09/03/2020,40401652,"1,428.00",Care More Ltd,33872,Peoples Services Directorate,Home Care,G334
http://opendatacommunities.org/id/london-borough-council/sutton,London Borough of Sutton,09/03/2020,40401653,717,Care More Ltd,33872,Peoples Services Directorate,Home Care,G334
http://opendatacommunities.org/id/london-borough-council/sutton,London Borough of Sutton,09/03/2020,40401654,"1,485.00",Care More Ltd,33872,Peoples Services Directorate,Home Care,G334
http://opendatacommunities.org/id/london-borough-council/sutton,London Borough of Sutton,09/03/2020,40401655,542.25,Care More Ltd,33872,Peoples Services Directorate,Home Care,G334
http://opendatacommunities.org/id/london-borough-council/sutton,London Borough of Sutton,09/03/2020,40401656,420,Care More Ltd,33872,Peoples Services Directorate,Home Care,G334
http://opendatacommunities.org/id/london-borough-council/sutton,London Borough of Sutton,09/03/2020,40401658,"1,092.00",Care More Ltd,33872,Peoples Services Directorate,Home Care,G334
http://opendatacommunities.org/id/london-borough-council/sutton,London Borough of Sutton,09/03/2020,40401659,752,Care More Ltd,33872,Peoples Services Directorate,Home Care,G334
http://opendatacommunities.org/id/london-borough-council/sutton,London Borough of Sutton,09/03/2020,40401660,588,Care More Ltd,33872,Peoples Services Directorate,Home Care,G334
http://opendatacommunities.org/id/london-borough-council/sutton,London Borough of Sutton,09/03/2020,40401661,504,Care More Ltd,33872,Peoples Services Directorate,Home Care,G334
http://opendatacommunities.org/id/london-borough-council/sutton,London Borough of Sutton,09/03/2020,40401662,751,Care More Ltd,33872,Peoples Services Directorate,Home Care,G334
http://opendatacommunities.org/id/london-borough-council/sutton,London Borough of Sutton,09/03/2020,40401666,546,Care More Ltd,33872,Peoples Services Directorate,Home Care,G334
http://opendatacommunities.org/id/london-borough-council/sutton,London Borough of Sutton,09/03/2020,40401667,648,Care More Ltd,33872,Peoples Services Directorate,Home Care,G334
http://opendatacommunities.org/id/london-borough-council/sutton,London Borough of Sutton,09/03/2020,40401672,884,Care More Ltd,33872,Peoples Services Directorate,Home Care,G334
http://opendatacommunities.org/id/london-borough-council/sutton,London Borough of Sutton,09/03/2020,40401673,621,Care More Ltd,33872,Peoples Services Directorate,Home Care,G334
http://opendatacommunities.org/id/london-borough-council/sutton,London Borough of Sutton,09/03/2020,40401674,476,Care More Ltd,33872,Peoples Services Directorate,Home Care,G334
http://opendatacommunities.org/id/london-borough-council/sutton,London Borough of Sutton,05/04/2020,40402866,854,Care More Ltd,33872,Peoples Services Directorate,Home Care,G334
http://opendatacommunities.org/id/london-borough-council/sutton,London Borough of Sutton,05/04/2020,40402891,476,Care More Ltd,33872,Peoples Services Directorate,Home Care,G334
http://opendatacommunities.org/id/london-borough-council/sutton,London Borough of Sutton,05/04/2020,40402930,546,Care More Ltd,33872,Peoples Services Directorate,Home Care,G334
http://opendatacommunities.org/id/london-borough-council/sutton,London Borough of Sutton,05/04/2020,40402942,423,Care More Ltd,33872,Peoples Services Directorate,Home Care,G334
http://opendatacommunities.org/id/london-borough-council/sutton,London Borough of Sutton,05/04/2020,40402948,790,Care More Ltd,33872,Peoples Services Directorate,Home Care,G334
http://opendatacommunities.org/id/london-borough-council/sutton,London Borough of Sutton,05/04/2020,40402959,672,Care More Ltd,33872,Peoples Services Directorate,Home Care,G334
http://opendatacommunities.org/id/london-borough-council/sutton,London Borough of Sutton,05/04/2020,40402988,427,Care More Ltd,33872,Peoples Services Directorate,Home Care,G334
http://opendatacommunities.org/id/london-borough-council/sutton,London Borough of Sutton,05/04/2020,40403016,678,Care More Ltd,33872,Peoples Services Directorate,Home Care,G334
http://opendatacommunities.org/id/london-borough-council/sutton,London Borough of Sutton,05/04/2020,40403020,714,Care More Ltd,33872,Peoples Services Directorate,Home Care,G334
http://opendatacommunities.org/id/london-borough-council/sutton,London Borough of Sutton,12/04/2020,40406236,546,Care More Ltd,33872,Peoples Services Directorate,Home Care,G334
http://opendatacommunities.org/id/london-borough-council/sutton,London Borough of Sutton,12/04/2020,40406252,423,Care More Ltd,33872,Peoples Services Directorate,Home Care,G334
http://opendatacommunities.org/id/london-borough-council/sutton,London Borough of Sutton,12/04/2020,40406253,672,Care More Ltd,33872,Peoples Services Directorate,Home Care,G334
http://opendatacommunities.org/id/london-borough-council/sutton,London Borough of Sutton,12/04/2020,40406270,427,Care More Ltd,33872,Peoples Services Directorate,Home Care,G334
http://opendatacommunities.org/id/london-borough-council/sutton,London Borough of Sutton,12/04/2020,40406283,678,Care More Ltd,33872,Peoples Services Directorate,Home Care,G334
http://opendatacommunities.org/id/london-borough-council/sutton,London Borough of Sutton,12/04/2020,40406285,854,Care More Ltd,33872,Peoples Services Directorate,Home Care,G334
http://opendatacommunities.org/id/london-borough-council/sutton,London Borough of Sutton,12/04/2020,40406316,476,Care More Ltd,33872,Peoples Services Directorate,Home Care,G334
http://opendatacommunities.org/id/london-borough-council/sutton,London Borough of Sutton,12/04/2020,40406320,714,Care More Ltd,33872,Peoples Services Directorate,Home Care,G334
http://opendatacommunities.org/id/london-borough-council/sutton,London Borough of Sutton,12/04/2020,40406354,790,Care More Ltd,33872,Peoples Services Directorate,Home Care,G334
http://opendatacommunities.org/id/london-borough-council/sutton,London Borough of Sutton,23/03/2020,40406910,672,Care More Ltd,33872,Peoples Services Directorate,Home Care,G334
http://opendatacommunities.org/id/london-borough-council/sutton,London Borough of Sutton,23/03/2020,40406912,"1,485.00",Care More Ltd,33872,Peoples Services Directorate,Home Care,G334
http://opendatacommunities.org/id/london-borough-council/sutton,London Borough of Sutton,23/03/2020,40406914,884,Care More Ltd,33872,Peoples Services Directorate,Home Care,G334
http://opendatacommunities.org/id/london-borough-council/sutton,London Borough of Sutton,23/03/2020,40406915,"1,092.00",Care More Ltd,33872,Peoples Services Directorate,Home Care,G334
http://opendatacommunities.org/id/london-borough-council/sutton,London Borough of Sutton,23/03/2020,40406917,"1,344.00",Care More Ltd,33872,Peoples Services Directorate,Home Care,G334
http://opendatacommunities.org/id/london-borough-council/sutton,London Borough of Sutton,23/03/2020,40407323,488,Care More Ltd,33872,Peoples Services Directorate,Home Care,G334
http://opendatacommunities.org/id/london-borough-council/sutton,London Borough of Sutton,23/03/2020,40407324,"1,708.00",Care More Ltd,33872,Peoples Services Directorate,Home Care,G334
http://opendatacommunities.org/id/london-borough-council/sutton,London Borough of Sutton,23/03/2020,40407325,636,Care More Ltd,33872,Peoples Services Directorate,Home Care,G334
http://opendatacommunities.org/id/london-borough-council/sutton,London Borough of Sutton,23/03/2020,40407330,"1,344.00",Care More Ltd,33872,Peoples Services Directorate,Home Care,G334
http://opendatacommunities.org/id/london-borough-council/sutton,London Borough of Sutton,23/03/2020,40407332,672,Care More Ltd,33872,Peoples Services Directorate,Home Care,G334
http://opendatacommunities.org/id/london-borough-council/sutton,London Borough of Sutton,23/03/2020,40407334,666,Care More Ltd,33872,Peoples Services Directorate,Home Care,G334
http://opendatacommunities.org/id/london-borough-council/sutton,London Borough of Sutton,23/03/2020,40407335,770,Care More Ltd,33872,Peoples Services Directorate,Home Care,G334
http://opendatacommunities.org/id/london-borough-council/sutton,London Borough of Sutton,23/03/2020,40407336,599,Care More Ltd,33872,Peoples Services Directorate,Home Care,G334
http://opendatacommunities.org/id/london-borough-council/sutton,London Borough of Sutton,23/03/2020,40407337,530,Care More Ltd,33872,Peoples Services Directorate,Home Care,G334
http://opendatacommunities.org/id/london-borough-council/sutton,London Borough of Sutton,23/03/2020,40407340,546,Care More Ltd,33872,Peoples Services Directorate,Home Care,G334
http://opendatacommunities.org/id/london-borough-council/sutton,London Borough of Sutton,23/03/2020,40407341,546,Care More Ltd,33872,Peoples Services Directorate,Home Care,G334
http://opendatacommunities.org/id/london-borough-council/sutton,London Borough of Sutton,23/03/2020,40407342,854,Care More Ltd,33872,Peoples Services Directorate,Home Care,G334
http://opendatacommunities.org/id/london-borough-council/sutton,London Borough of Sutton,23/03/2020,40407344,420,Care More Ltd,33872,Peoples Services Directorate,Home Care,G334
http://opendatacommunities.org/id/london-borough-council/sutton,London Borough of Sutton,23/03/2020,40407344,892,Care More Ltd,33872,Peoples Services Directorate,Home Care,G334
http://opendatacommunities.org/id/london-borough-council/sutton,London Borough of Sutton,23/03/2020,40407345,714,Care More Ltd,33872,Peoples Services Directorate,Home Care,G334
http://opendatacommunities.org/id/london-borough-council/sutton,London Borough of Sutton,23/03/2020,40407346,603,Care More Ltd,33872,Peoples Services Directorate,Home Care,G334
http://opendatacommunities.org/id/london-borough-council/sutton,London Borough of Sutton,23/03/2020,40407347,546,Care More Ltd,33872,Peoples Services Directorate,Home Care,G334
http://opendatacommunities.org/id/london-borough-council/sutton,London Borough of Sutton,23/03/2020,40407350,"1,428.00",Care More Ltd,33872,Peoples Services Directorate,Home Care,G334
http://opendatacommunities.org/id/london-borough-council/sutton,London Borough of Sutton,23/03/2020,40407351,480,Care More Ltd,33872,Peoples Services Directorate,Home Care,G334
http://opendatacommunities.org/id/london-borough-council/sutton,London Borough of Sutton,23/03/2020,40407352,672,Care More Ltd,33872,Peoples Services Directorate,Home Care,G334
http://opendatacommunities.org/id/london-borough-council/sutton,London Borough of Sutton,23/03/2020,40408379,788,Care More Ltd,33872,Peoples Services Directorate,Home Care,G334
http://opendatacommunities.org/id/london-borough-council/sutton,London Borough of Sutton,19/04/2020,40408548,546,Care More Ltd,33872,Peoples Services Directorate,Home Care,G334
http://opendatacommunities.org/id/london-borough-council/sutton,London Borough of Sutton,19/04/2020,40408552,423,Care More Ltd,33872,Peoples Services Directorate,Home Care,G334
http://opendatacommunities.org/id/london-borough-council/sutton,London Borough of Sutton,19/04/2020,40408553,672,Care More Ltd,33872,Peoples Services Directorate,Home Care,G334
http://opendatacommunities.org/id/london-borough-council/sutton,London Borough of Sutton,19/04/2020,40408562,427,Care More Ltd,33872,Peoples Services Directorate,Home Care,G334
http://opendatacommunities.org/id/london-borough-council/sutton,London Borough of Sutton,19/04/2020,40408569,678,Care More Ltd,33872,Peoples Services Directorate,Home Care,G334
http://opendatacommunities.org/id/london-borough-council/sutton,London Borough of Sutton,19/04/2020,40408571,854,Care More Ltd,33872,Peoples Services Directorate,Home Care,G334
http://opendatacommunities.org/id/london-borough-council/sutton,London Borough of Sutton,19/04/2020,40408579,476,Care More Ltd,33872,Peoples Services Directorate,Home Care,G334
http://opendatacommunities.org/id/london-borough-council/sutton,London Borough of Sutton,19/04/2020,40408583,714,Care More Ltd,33872,Peoples Services Directorate,Home Care,G334
http://opendatacommunities.org/id/london-borough-council/sutton,London Borough of Sutton,19/04/2020,40408603,790,Care More Ltd,33872,Peoples Services Directorate,Home Care,G334
http://opendatacommunities.org/id/london-borough-council/sutton,London Borough of Sutton,23/03/2020,40411347,770,Care More Ltd,33872,Peoples Services Directorate,Home Care,G334
http://opendatacommunities.org/id/london-borough-council/sutton,London Borough of Sutton,26/04/2020,40411931,546,Care More Ltd,33872,Peoples Services Directorate,Home Care,G334
http://opendatacommunities.org/id/london-borough-council/sutton,London Borough of Sutton,26/04/2020,40411935,423,Care More Ltd,33872,Peoples Services Directorate,Home Care,G334
http://opendatacommunities.org/id/london-borough-council/sutton,London Borough of Sutton,26/04/2020,40411936,672,Care More Ltd,33872,Peoples Services Directorate,Home Care,G334
http://opendatacommunities.org/id/london-borough-council/sutton,London Borough of Sutton,26/04/2020,40411949,427,Care More Ltd,33872,Peoples Services Directorate,Home Care,G334
http://opendatacommunities.org/id/london-borough-council/sutton,London Borough of Sutton,26/04/2020,40411956,678,Care More Ltd,33872,Peoples Services Directorate,Home Care,G334
http://opendatacommunities.org/id/london-borough-council/sutton,London Borough of Sutton,26/04/2020,40411958,854,Care More Ltd,33872,Peoples Services Directorate,Home Care,G334
http://opendatacommunities.org/id/london-borough-council/sutton,London Borough of Sutton,26/04/2020,40411966,476,Care More Ltd,33872,Peoples Services Directorate,Home Care,G334
http://opendatacommunities.org/id/london-borough-council/sutton,London Borough of Sutton,26/04/2020,40411970,714,Care More Ltd,33872,Peoples Services Directorate,Home Care,G334
http://opendatacommunities.org/id/london-borough-council/sutton,London Borough of Sutton,26/04/2020,40411990,790,Care More Ltd,33872,Peoples Services Directorate,Home Care,G334
http://opendatacommunities.org/id/london-borough-council/sutton,London Borough of Sutton,17/04/2020,40406883,"3,400.00",Care UK Homecare Ltd,10853,Peoples Services Directorate,Nursing Care - Ext Provider,G311
http://opendatacommunities.org/id/london-borough-council/sutton,London Borough of Sutton,17/04/2020,40407025,"3,502.24",Care UK Homecare Ltd,10853,Peoples Services Directorate,Nursing Care - Ext Provider,G311
http://opendatacommunities.org/id/london-borough-council/sutton,London Borough of Sutton,17/04/2020,40407069,"3,472.00",Care UK Homecare Ltd,10853,Peoples Services Directorate,Nursing Care - Ext Provider,G311
http://opendatacommunities.org/id/london-borough-council/sutton,London Borough of Sutton,20/04/2020,40407358,"23,821.43",Care UK Homecare Ltd,10853,Peoples Services Directorate,Residential Care - Ext Provider,G310
http://opendatacommunities.org/id/london-borough-council/sutton,London Borough of Sutton,14/04/2020,1291504,"2,240.00",Caremark (Sutton),25541,Peoples Services Directorate,Home Care,G334
http://opendatacommunities.org/id/london-borough-council/sutton,London Borough of Sutton,09/03/2020,1291734,512.5,Caremark (Sutton),25541,Peoples Services Directorate,Hired Peoples Transport (Children),E072
http://opendatacommunities.org/id/london-borough-council/sutton,London Borough of Sutton,07/04/2020,6969685,500,Caremark (Sutton),25541,Peoples Services Directorate,Home Care,G334
http://opendatacommunities.org/id/london-borough-council/sutton,London Borough of Sutton,21/04/2020,6970218,778,Caremark (Sutton),25541,Peoples Services Directorate,Home Care,G334
http://opendatacommunities.org/id/london-borough-council/sutton,London Borough of Sutton,08/10/2018,40400524,"2,610.00",Caremark (Sutton),25541,Peoples Services Directorate,Home Care,G334
http://opendatacommunities.org/id/london-borough-council/sutton,London Borough of Sutton,08/03/2020,40403352,490.62,Caremark (Sutton),25541,Peoples Services Directorate,Home Care,G334
http://opendatacommunities.org/id/london-borough-council/sutton,London Borough of Sutton,08/03/2020,40403370,767.03,Caremark (Sutton),25541,Peoples Services Directorate,Home Care,G334
http://opendatacommunities.org/id/london-borough-council/sutton,London Borough of Sutton,22/03/2020,40403371,767.03,Caremark (Sutton),25541,Peoples Services Directorate,Home Care,G334
http://opendatacommunities.org/id/london-borough-council/sutton,London Borough of Sutton,29/03/2020,40403372,767.03,Caremark (Sutton),25541,Peoples Services Directorate,Home Care,G334
http://opendatacommunities.org/id/london-borough-council/sutton,London Borough of Sutton,08/03/2020,40403402,442.5,Caremark (Sutton),25541,Peoples Services Directorate,Home Care,G334
http://opendatacommunities.org/id/london-borough-council/sutton,London Borough of Sutton,22/03/2020,40403403,420,Caremark (Sutton),25541,Peoples Services Directorate,Home Care,G334
http://opendatacommunities.org/id/london-borough-council/sutton,London Borough of Sutton,29/03/2020,40403404,442.5,Caremark (Sutton),25541,Peoples Services Directorate,Home Care,G334
http://opendatacommunities.org/id/london-borough-council/sutton,London Borough of Sutton,08/03/2020,40403451,826,Caremark (Sutton),25541,Peoples Services Directorate,Home Care,G334
http://opendatacommunities.org/id/london-borough-council/sutton,London Borough of Sutton,22/03/2020,40403452,826,Caremark (Sutton),25541,Peoples Services Directorate,Home Care,G334
http://opendatacommunities.org/id/london-borough-council/sutton,London Borough of Sutton,29/03/2020,40403453,826,Caremark (Sutton),25541,Peoples Services Directorate,Home Care,G334
http://opendatacommunities.org/id/london-borough-council/sutton,London Borough of Sutton,22/03/2020,40403456,705.15,Caremark (Sutton),25541,Peoples Services Directorate,Home Care,G334
http://opendatacommunities.org/id/london-borough-council/sutton,London Borough of Sutton,29/03/2020,40403457,772.25,Caremark (Sutton),25541,Peoples Services Directorate,Home Care,G334
http://opendatacommunities.org/id/london-borough-council/sutton,London Borough of Sutton,08/03/2020,40403458,767.03,Caremark (Sutton),25541,Peoples Services Directorate,Home Care,G334
http://opendatacommunities.org/id/london-borough-council/sutton,London Borough of Sutton,22/03/2020,40403459,767.03,Caremark (Sutton),25541,Peoples Services Directorate,Home Care,G334
http://opendatacommunities.org/id/london-borough-council/sutton,London Borough of Sutton,29/03/2020,40403460,767.03,Caremark (Sutton),25541,Peoples Services Directorate,Home Care,G334
http://opendatacommunities.org/id/london-borough-council/sutton,London Borough of Sutton,08/03/2020,40403461,767.03,Caremark (Sutton),25541,Peoples Services Directorate,Home Care,G334
http://opendatacommunities.org/id/london-borough-council/sutton,London Borough of Sutton,22/03/2020,40403462,748.05,Caremark (Sutton),25541,Peoples Services Directorate,Home Care,G334
http://opendatacommunities.org/id/london-borough-council/sutton,London Borough of Sutton,29/03/2020,40403463,767.03,Caremark (Sutton),25541,Peoples Services Directorate,Home Care,G334
http://opendatacommunities.org/id/london-borough-council/sutton,London Borough of Sutton,08/03/2020,40403483,"1,833.50",Caremark (Sutton),25541,Peoples Services Directorate,Home Care,G334
http://opendatacommunities.org/id/london-borough-council/sutton,London Borough of Sutton,22/03/2020,40403484,"1,831.50",Caremark (Sutton),25541,Peoples Services Directorate,Home Care,G334
http://opendatacommunities.org/id/london-borough-council/sutton,London Borough of Sutton,29/03/2020,40403485,"1,811.00",Caremark (Sutton),25541,Peoples Services Directorate,Home Care,G334
http://opendatacommunities.org/id/london-borough-council/sutton,London Borough of Sutton,08/03/2020,40403513,960.67,Caremark (Sutton),25541,Peoples Services Directorate,Home Care,G334
http://opendatacommunities.org/id/london-borough-council/sutton,London Borough of Sutton,22/03/2020,40403514,917.79,Caremark (Sutton),25541,Peoples Services Directorate,Home Care,G334
http://opendatacommunities.org/id/london-borough-council/sutton,London Borough of Sutton,29/03/2020,40403515,853.47,Caremark (Sutton),25541,Peoples Services Directorate,Home Care,G334
http://opendatacommunities.org/id/london-borough-council/sutton,London Borough of Sutton,08/03/2020,40403525,526.5,Caremark (Sutton),25541,Peoples Services Directorate,Home Care,G334
http://opendatacommunities.org/id/london-borough-council/sutton,London Borough of Sutton,05/04/2020,40403566,424.5,Caremark (Sutton),25541,Peoples Services Directorate,Home Care,G334
http://opendatacommunities.org/id/london-borough-council/sutton,London Borough of Sutton,05/04/2020,40403579,442.5,Caremark (Sutton),25541,Peoples Services Directorate,Home Care,G334
http://opendatacommunities.org/id/london-borough-council/sutton,London Borough of Sutton,05/04/2020,40403619,508,Caremark (Sutton),25541,Peoples Services Directorate,Home Care,G334
http://opendatacommunities.org/id/london-borough-council/sutton,London Borough of Sutton,05/04/2020,40403647,826,Caremark (Sutton),25541,Peoples Services Directorate,Home Care,G334
http://opendatacommunities.org/id/london-borough-council/sutton,London Borough of Sutton,05/04/2020,40403649,826,Caremark (Sutton),25541,Peoples Services Directorate,Home Care,G334
http://opendatacommunities.org/id/london-borough-council/sutton,London Borough of Sutton,05/04/2020,40403650,767.05,Caremark (Sutton),25541,Peoples Services Directorate,Home Care,G334
http://opendatacommunities.org/id/london-borough-council/sutton,London Borough of Sutton,05/04/2020,40403651,767.05,Caremark (Sutton),25541,Peoples Services Directorate,Home Care,G334
http://opendatacommunities.org/id/london-borough-council/sutton,London Borough of Sutton,05/04/2020,40403662,"1,831.50",Caremark (Sutton),25541,Peoples Services Directorate,Home Care,G334
http://opendatacommunities.org/id/london-borough-council/sutton,London Borough of Sutton,05/04/2020,40403671,973.5,Caremark (Sutton),25541,Peoples Services Directorate,Home Care,G334
http://opendatacommunities.org/id/london-borough-council/sutton,London Borough of Sutton,05/04/2020,40403682,767.05,Caremark (Sutton),25541,Peoples Services Directorate,Home Care,G334
http://opendatacommunities.org/id/london-borough-council/sutton,London Borough of Sutton,12/04/2020,40405573,442.5,Caremark (Sutton),25541,Peoples Services Directorate,Home Care,G334
http://opendatacommunities.org/id/london-borough-council/sutton,London Borough of Sutton,12/04/2020,40405602,826,Caremark (Sutton),25541,Peoples Services Directorate,Home Care,G334
http://opendatacommunities.org/id/london-borough-council/sutton,London Borough of Sutton,12/04/2020,40405603,826.4,Caremark (Sutton),25541,Peoples Services Directorate,Home Care,G334
http://opendatacommunities.org/id/london-borough-council/sutton,London Borough of Sutton,12/04/2020,40405604,767.45,Caremark (Sutton),25541,Peoples Services Directorate,Home Care,G334
http://opendatacommunities.org/id/london-borough-council/sutton,London Borough of Sutton,12/04/2020,40405605,767.81,Caremark (Sutton),25541,Peoples Services Directorate,Home Care,G334
http://opendatacommunities.org/id/london-borough-council/sutton,London Borough of Sutton,12/04/2020,40405625,"1,831.50",Caremark (Sutton),25541,Peoples Services Directorate,Home Care,G334
http://opendatacommunities.org/id/london-borough-council/sutton,London Borough of Sutton,12/04/2020,40405650,975.18,Caremark (Sutton),25541,Peoples Services Directorate,Home Care,G334
http://opendatacommunities.org/id/london-borough-council/sutton,London Borough of Sutton,12/04/2020,40405661,424.5,Caremark (Sutton),25541,Peoples Services Directorate,Home Care,G334
http://opendatacommunities.org/id/london-borough-council/sutton,London Borough of Sutton,12/04/2020,40405664,508.53,Caremark (Sutton),25541,Peoples Services Directorate,Home Care,G334
http://opendatacommunities.org/id/london-borough-council/sutton,London Borough of Sutton,12/04/2020,40405668,767.05,Caremark (Sutton),25541,Peoples Services Directorate,Home Care,G334
http://opendatacommunities.org/id/london-borough-council/sutton,London Borough of Sutton,01/03/2020,40407788,442.5,Caremark (Sutton),25541,Peoples Services Directorate,Home Care,G334
http://opendatacommunities.org/id/london-borough-council/sutton,London Borough of Sutton,01/03/2020,40407794,826,Caremark (Sutton),25541,Peoples Services Directorate,Home Care,G334
http://opendatacommunities.org/id/london-borough-council/sutton,London Borough of Sutton,01/03/2020,40407795,767.03,Caremark (Sutton),25541,Peoples Services Directorate,Home Care,G334
http://opendatacommunities.org/id/london-borough-council/sutton,London Borough of Sutton,01/03/2020,40407796,790.98,Caremark (Sutton),25541,Peoples Services Directorate,Home Care,G334
http://opendatacommunities.org/id/london-borough-council/sutton,London Borough of Sutton,01/03/2020,40407801,"1,811.00",Caremark (Sutton),25541,Peoples Services Directorate,Home Care,G334
http://opendatacommunities.org/id/london-borough-council/sutton,London Borough of Sutton,01/03/2020,40407807,832.03,Caremark (Sutton),25541,Peoples Services Directorate,Home Care,G334
http://opendatacommunities.org/id/london-borough-council/sutton,London Borough of Sutton,01/03/2020,40407808,526.5,Caremark (Sutton),25541,Peoples Services Directorate,Home Care,G334
http://opendatacommunities.org/id/london-borough-council/sutton,London Borough of Sutton,01/03/2020,40407813,490.62,Caremark (Sutton),25541,Peoples Services Directorate,Home Care,G334
http://opendatacommunities.org/id/london-borough-council/sutton,London Borough of Sutton,01/03/2020,40407814,553.82,Caremark (Sutton),25541,Peoples Services Directorate,Home Care,G334
http://opendatacommunities.org/id/london-borough-council/sutton,London Borough of Sutton,19/04/2020,40408118,448.5,Caremark (Sutton),25541,Peoples Services Directorate,Home Care,G334
http://opendatacommunities.org/id/london-borough-council/sutton,London Borough of Sutton,19/04/2020,40408142,837.2,Caremark (Sutton),25541,Peoples Services Directorate,Home Care,G334
http://opendatacommunities.org/id/london-borough-council/sutton,London Borough of Sutton,19/04/2020,40408143,837.2,Caremark (Sutton),25541,Peoples Services Directorate,Home Care,G334
http://opendatacommunities.org/id/london-borough-council/sutton,London Borough of Sutton,19/04/2020,40408144,777.44,Caremark (Sutton),25541,Peoples Services Directorate,Home Care,G334
http://opendatacommunities.org/id/london-borough-council/sutton,London Borough of Sutton,19/04/2020,40408146,777.44,Caremark (Sutton),25541,Peoples Services Directorate,Home Care,G334
http://opendatacommunities.org/id/london-borough-council/sutton,London Borough of Sutton,19/04/2020,40408151,"1,855.50",Caremark (Sutton),25541,Peoples Services Directorate,Home Care,G334
http://opendatacommunities.org/id/london-borough-council/sutton,London Borough of Sutton,19/04/2020,40408167,986.7,Caremark (Sutton),25541,Peoples Services Directorate,Home Care,G334
http://opendatacommunities.org/id/london-borough-council/sutton,London Borough of Sutton,19/04/2020,40408168,429.7,Caremark (Sutton),25541,Peoples Services Directorate,Home Care,G334
http://opendatacommunities.org/id/london-borough-council/sutton,London Borough of Sutton,19/04/2020,40408172,777.44,Caremark (Sutton),25541,Peoples Services Directorate,Home Care,G334
http://opendatacommunities.org/id/london-borough-council/sutton,London Borough of Sutton,26/04/2020,40412577,826,Caremark (Sutton),25541,Peoples Services Directorate,Home Care,G334
http://opendatacommunities.org/id/london-borough-council/sutton,London Borough of Sutton,26/04/2020,40412578,767.05,Caremark (Sutton),25541,Peoples Services Directorate,Home Care,G334
http://opendatacommunities.org/id/london-borough-council/sutton,London Borough of Sutton,26/04/2020,40412580,767.05,Caremark (Sutton),25541,Peoples Services Directorate,Home Care,G334
http://opendatacommunities.org/id/london-borough-council/sutton,London Borough of Sutton,26/04/2020,40412584,"1,831.50",Caremark (Sutton),25541,Peoples Services Directorate,Home Care,G334
http://opendatacommunities.org/id/london-borough-council/sutton,London Borough of Sutton,26/04/2020,40412608,973.5,Caremark (Sutton),25541,Peoples Services Directorate,Home Care,G334
http://opendatacommunities.org/id/london-borough-council/sutton,London Borough of Sutton,26/04/2020,40412615,424.5,Caremark (Sutton),25541,Peoples Services Directorate,Home Care,G334
http://opendatacommunities.org/id/london-borough-council/sutton,London Borough of Sutton,26/04/2020,40412631,767.05,Caremark (Sutton),25541,Peoples Services Directorate,Home Care,G334
http://opendatacommunities.org/id/london-borough-council/sutton,London Borough of Sutton,26/04/2020,40412708,442.5,Caremark (Sutton),25541,Peoples Services Directorate,Home Care,G334
http://opendatacommunities.org/id/london-borough-council/sutton,London Borough of Sutton,07/04/2020,6969689,"2,530.01",Careoline Carers Services Ltd,23798,Peoples Services Directorate,Home Care,G334
http://opendatacommunities.org/id/london-borough-council/sutton,London Borough of Sutton,06/04/2020,6969690,"2,530.01",Careoline Carers Services Ltd,23798,Peoples Services Directorate,Home Care,G334
http://opendatacommunities.org/id/london-borough-council/sutton,London Borough of Sutton,17/04/2020,6970315,548.55,Careoline Carers Services Ltd,23798,Peoples Services Directorate,C.C.A Travel & Subsistance,H212
http://opendatacommunities.org/id/london-borough-council/sutton,London Borough of Sutton,20/04/2020,6970318,"2,516.26",Careoline Carers Services Ltd,23798,Peoples Services Directorate,Home Care,G334
http://opendatacommunities.org/id/london-borough-council/sutton,London Borough of Sutton,21/04/2020,6970319,"2,538.81",Careoline Carers Services Ltd,23798,Peoples Services Directorate,Home Care,G334
http://opendatacommunities.org/id/london-borough-council/sutton,London Borough of Sutton,17/04/2020,40407018,"5,676.16",Caretech Community Services Ltd,10791,Peoples Services Directorate,Residential Care - Ext Provider,G310
http://opendatacommunities.org/id/london-borough-council/sutton,London Borough of Sutton,17/04/2020,40407176,"5,531.60",Caretech Community Services Ltd,10791,Peoples Services Directorate,Residential Care - Ext Provider,G310
http://opendatacommunities.org/id/london-borough-council/sutton,London Borough of Sutton,17/04/2020,40407228,"5,534.00",Caretech Community Services Ltd,10791,Peoples Services Directorate,Residential Care - Ext Provider,G310
http://opendatacommunities.org/id/london-borough-council/sutton,London Borough of Sutton,17/04/2020,40407229,"5,534.00",Caretech Community Services Ltd,10791,Peoples Services Directorate,Residential Care - Ext Provider,G310
http://opendatacommunities.org/id/london-borough-council/sutton,London Borough of Sutton,02/03/2020,40400731,"4,381.95",Carlene House,10763,Peoples Services Directorate,Supported Living - Ext Provider,G306
http://opendatacommunities.org/id/london-borough-council/sutton,London Borough of Sutton,02/03/2020,40400740,"3,160.70",Carlene House,10763,Peoples Services Directorate,Supported Living - Ext Provider,G306
http://opendatacommunities.org/id/london-borough-council/sutton,London Borough of Sutton,02/03/2020,40406076,"5,066.29",Carlene House,10763,Peoples Services Directorate,Supported Living - Ext Provider,G306
http://opendatacommunities.org/id/london-borough-council/sutton,London Borough of Sutton,17/04/2020,40406937,"2,630.60",Carlene House,10763,Peoples Services Directorate,Residential Care - Ext Provider,G310
http://opendatacommunities.org/id/london-borough-council/sutton,London Borough of Sutton,17/04/2020,40406938,"2,654.68",Carlene House,10763,Peoples Services Directorate,Residential Care - Ext Provider,G310
http://opendatacommunities.org/id/london-borough-council/sutton,London Borough of Sutton,17/04/2020,40406939,"4,440.00",Carlene House,10763,Peoples Services Directorate,Residential Care - Ext Provider,G310
http://opendatacommunities.org/id/london-borough-council/sutton,London Borough of Sutton,17/04/2020,40406940,"2,740.64",Carlene House,10763,Peoples Services Directorate,Residential Care - Ext Provider,G310
http://opendatacommunities.org/id/london-borough-council/sutton,London Borough of Sutton,17/04/2020,40406979,"2,625.28",Carlene House,10763,Peoples Services Directorate,Residential Care - Ext Provider,G310
http://opendatacommunities.org/id/london-borough-council/sutton,London Borough of Sutton,17/04/2020,40407222,"2,682.68",Carlene House,10763,Peoples Services Directorate,Residential Care - Ext Provider,G310
http://opendatacommunities.org/id/london-borough-council/sutton,London Borough of Sutton,17/04/2020,40407259,"2,625.28",Carlene House,10763,Peoples Services Directorate,Residential Care - Ext Provider,G310
http://opendatacommunities.org/id/london-borough-council/sutton,London Borough of Sutton,06/04/2020,40413147,"2,528.56",Carlene House,10763,Peoples Services Directorate,Supported Living - Ext Provider,G306
http://opendatacommunities.org/id/london-borough-council/sutton,London Borough of Sutton,06/04/2020,40413148,"3,325.56",Carlene House,10763,Peoples Services Directorate,Supported Living - Ext Provider,G306
http://opendatacommunities.org/id/london-borough-council/sutton,London Borough of Sutton,06/04/2020,40413160,682,Carlene House,10763,Peoples Services Directorate,Supported Living - Ext Provider,G306
http://opendatacommunities.org/id/london-borough-council/sutton,London Borough of Sutton,06/04/2020,40413161,420,Carlene House,10763,Peoples Services Directorate,Supported Living - Ext Provider,G306
http://opendatacommunities.org/id/london-borough-council/sutton,London Borough of Sutton,06/04/2020,40413162,992,Carlene House,10763,Peoples Services Directorate,Supported Living - Ext Provider,G306
http://opendatacommunities.org/id/london-borough-council/sutton,London Borough of Sutton,02/04/2020,40413164,"1,107.01",Carlene House,10763,Peoples Services Directorate,Day Care,G337
http://opendatacommunities.org/id/london-borough-council/sutton,London Borough of Sutton,02/04/2020,40413165,"1,107.01",Carlene House,10763,Peoples Services Directorate,Day Care,G337
http://opendatacommunities.org/id/london-borough-council/sutton,London Borough of Sutton,02/04/2020,40413166,"1,107.01",Carlene House,10763,Peoples Services Directorate,Day Care,G337
http://opendatacommunities.org/id/london-borough-council/sutton,London Borough of Sutton,02/04/2020,40413167,"1,107.01",Carlene House,10763,Peoples Services Directorate,Day Care,G337
http://opendatacommunities.org/id/london-borough-council/sutton,London Borough of Sutton,02/04/2020,40413168,"1,107.01",Carlene House,10763,Peoples Services Directorate,Day Care,G337
http://opendatacommunities.org/id/london-borough-council/sutton,London Borough of Sutton,02/04/2020,40413169,"1,107.01",Carlene House,10763,Peoples Services Directorate,Day Care,G337
http://opendatacommunities.org/id/london-borough-council/sutton,London Borough of Sutton,01/04/2020,1290958,"14,354.16",Carshalton Boys Sports College (Academy),23984,Peoples Services Directorate,Top-up Funding,G064
http://opendatacommunities.org/id/london-borough-council/sutton,London Borough of Sutton,01/04/2020,6969440,"75,000.00",Carshalton Boys Sports College (Academy),23984,Peoples Services Directorate,Building Works -Main Contractor,Y350
http://opendatacommunities.org/id/london-borough-council/sutton,London Borough of Sutton,27/04/2020,40411855,499.46,Carshalton News,10752,Chief Executive's Directorate,Books,F006
http://opendatacommunities.org/id/london-borough-council/sutton,London Borough of Sutton,29/04/2020,6970591,"2,099.00",Carter Jonas LLP,30103,"Environment, Housing & Regeneration Directorate",Surveyors Fees,Y030
http://opendatacommunities.org/id/london-borough-council/sutton,London Borough of Sutton,09/02/2020,6969548,540.4,Castle Water Ltd (collection account - Thames (other),27112,Peoples Services Directorate,Water and Sanitary Services,D424
http://opendatacommunities.org/id/london-borough-council/sutton,London Borough of Sutton,12/04/2020,6969814,880.5,Caysh Enterprise Cic,28016,Peoples Services Directorate,Approved Lodgings,H323
http://opendatacommunities.org/id/london-borough-council/sutton,London Borough of Sutton,26/03/2020,6969943,"4,598.23",Caysh Housing Project,23133,Peoples Services Directorate,Approved Lodgings,H323
http://opendatacommunities.org/id/london-borough-council/sutton,London Borough of Sutton,24/04/2020,6970377,"2,304.00",Cb Properties,99898,"Environment, Housing & Regeneration Directorate",Depositors,X460
http://opendatacommunities.org/id/london-borough-council/sutton,London Borough of Sutton,28/02/2020,6969244,"1,764.83",Central & North West London Nhs Foundation Trust,28976,Chief Executive's Directorate,Provider Contract Payments,F470
http://opendatacommunities.org/id/london-borough-council/sutton,London Borough of Sutton,02/12/2019,6969881,"1,646.23",Central & North West London Nhs Foundation Trust,28976,Chief Executive's Directorate,Provider Contract Payments,F470
http://opendatacommunities.org/id/london-borough-council/sutton,London Borough of Sutton,21/04/2020,6970200,"3,102.62",Central London Community Healthcare NHS Trust,29865,Chief Executive's Directorate,Provider Contract Payments,F470
http://opendatacommunities.org/id/london-borough-council/sutton,London Borough of Sutton,16/03/2020,6970287,"4,995.00",CF Social Work Ltd,25143,Peoples Services Directorate,Children Assessments,G329
http://opendatacommunities.org/id/london-borough-council/sutton,London Borough of Sutton,25/03/2020,6969753,"19,579.35",Charles Taylor Services Ltd,27913,Resources Directorate,Insurance Premiums (Other),F330
http://opendatacommunities.org/id/london-borough-council/sutton,London Borough of Sutton,17/04/2020,40407121,"3,502.24",Charlton Park Care Home T/A Four Seasons (No 7) Ltd.,30290,Peoples Services Directorate,Nursing Care - Ext Provider,G311
http://opendatacommunities.org/id/london-borough-council/sutton,London Borough of Sutton,27/03/2020,6969623,425,Charterhouse Property Professionals Ltd,35364,HRA,Fees - Consultants (Ad Hoc),F283
http://opendatacommunities.org/id/london-borough-council/sutton,London Borough of Sutton,27/03/2020,6969635,425,Charterhouse Property Professionals Ltd,35364,HRA,Fees - Consultants (Ad Hoc),F283
http://opendatacommunities.org/id/london-borough-council/sutton,London Borough of Sutton,27/03/2020,6969636,425,Charterhouse Property Professionals Ltd,35364,HRA,Fees - Consultants (Ad Hoc),F283
http://opendatacommunities.org/id/london-borough-council/sutton,London Borough of Sutton,27/03/2020,6969637,425,Charterhouse Property Professionals Ltd,35364,HRA,Fees - Consultants (Ad Hoc),F283
http://opendatacommunities.org/id/london-borough-council/sutton,London Borough of Sutton,01/04/2020,1290960,"5,354.16",Cheam Common Junior Academy,28932,Peoples Services Directorate,Top-up Funding,G064
http://opendatacommunities.org/id/london-borough-council/sutton,London Borough of Sutton,21/04/2020,6970199,"1,340.00",Cheam Family Practice,10918,Chief Executive's Directorate,Provider Contract Payments,F470
http://opendatacommunities.org/id/london-borough-council/sutton,London Borough of Sutton,01/04/2020,1290962,"63,197.90",Cheam High School (Academy),23996,Peoples Services Directorate,Top-up Funding,G064
http://opendatacommunities.org/id/london-borough-council/sutton,London Borough of Sutton,01/04/2020,1290962,"33,875.00",Cheam High School (Academy),23996,Peoples Services Directorate,Place Funding,G063
http://opendatacommunities.org/id/london-borough-council/sutton,London Borough of Sutton,01/04/2020,1290980,"42,385.41",Cheam High School (Academy),23996,Peoples Services Directorate,Top-up Funding,G064
http://opendatacommunities.org/id/london-borough-council/sutton,London Borough of Sutton,01/04/2020,1290980,"12,687.50",Cheam High School (Academy),23996,Peoples Services Directorate,Top-up Funding,G064
http://opendatacommunities.org/id/london-borough-council/sutton,London Borough of Sutton,01/04/2020,1290980,"320,037.35",Cheam High School (Academy),23996,Peoples Services Directorate,Place Funding,G063
http://opendatacommunities.org/id/london-borough-council/sutton,London Borough of Sutton,01/04/2020,1290963,"21,566.66",Cheam Park Farm Primary School (LEO Academy Trust),23882,Peoples Services Directorate,Top-up Funding,G064
http://opendatacommunities.org/id/london-borough-council/sutton,London Borough of Sutton,17/04/2020,40406949,"3,746.52",Chegworth Nursing Home Bayswift Ltd,10908,Peoples Services Directorate,Nursing Care - Ext Provider,G311
http://opendatacommunities.org/id/london-borough-council/sutton,London Borough of Sutton,17/04/2020,40406950,"3,472.00",Chegworth Nursing Home Bayswift Ltd,10908,Peoples Services Directorate,Nursing Care - Ext Provider,G311
http://opendatacommunities.org/id/london-borough-council/sutton,London Borough of Sutton,17/04/2020,40406989,"3,800.00",Chegworth Nursing Home Bayswift Ltd,10908,Peoples Services Directorate,Nursing Care - Ext Provider,G311
http://opendatacommunities.org/id/london-borough-council/sutton,London Borough of Sutton,17/04/2020,40407067,"2,800.00",Chegworth Nursing Home Bayswift Ltd,10908,Peoples Services Directorate,Nursing Care - Short Term Placements,G328
http://opendatacommunities.org/id/london-borough-council/sutton,London Borough of Sutton,17/04/2020,40407101,"3,472.00",Chegworth Nursing Home Bayswift Ltd,10908,Peoples Services Directorate,Nursing Care - Ext Provider,G311
http://opendatacommunities.org/id/london-borough-council/sutton,London Borough of Sutton,17/04/2020,40407153,"3,472.00",Chegworth Nursing Home Bayswift Ltd,10908,Peoples Services Directorate,Nursing Care - Ext Provider,G311
http://opendatacommunities.org/id/london-borough-council/sutton,London Borough of Sutton,17/04/2020,40407166,"3,800.00",Chegworth Nursing Home Bayswift Ltd,10908,Peoples Services Directorate,Nursing Care - Ext Provider,G311
http://opendatacommunities.org/id/london-borough-council/sutton,London Borough of Sutton,17/04/2020,40407196,"3,462.24",Chegworth Nursing Home Bayswift Ltd,10908,Peoples Services Directorate,Nursing Care - Ext Provider,G311
http://opendatacommunities.org/id/london-borough-council/sutton,London Borough of Sutton,17/04/2020,40407197,"3,472.00",Chegworth Nursing Home Bayswift Ltd,10908,Peoples Services Directorate,Nursing Care - Ext Provider,G311
http://opendatacommunities.org/id/london-borough-council/sutton,London Borough of Sutton,17/04/2020,40407232,"1,603.00",Chegworth Nursing Home Bayswift Ltd,10908,Peoples Services Directorate,Nursing Care - Short Term Placements,G328
http://opendatacommunities.org/id/london-borough-council/sutton,London Borough of Sutton,17/04/2020,40407232,"4,800.00",Chegworth Nursing Home Bayswift Ltd,10908,Peoples Services Directorate,Nursing Care - Short Term Placements,G328
http://opendatacommunities.org/id/london-borough-council/sutton,London Borough of Sutton,14/04/2020,6970065,"13,725.00",Chelsea Studios Ltd,32128,"Environment, Housing & Regeneration Directorate",Temporary Protection - Homeless Persons,H300
http://opendatacommunities.org/id/london-borough-council/sutton,London Borough of Sutton,05/04/2020,40403819,441,Chenash Homecare Specialists And Care Agency,25667,Peoples Services Directorate,Home Care,G334
http://opendatacommunities.org/id/london-borough-council/sutton,London Borough of Sutton,12/04/2020,40405593,441,Chenash Homecare Specialists And Care Agency,25667,Peoples Services Directorate,Home Care,G334
http://opendatacommunities.org/id/london-borough-council/sutton,London Borough of Sutton,15/03/2020,40407396,441,Chenash Homecare Specialists And Care Agency,25667,Peoples Services Directorate,Home Care,G334
http://opendatacommunities.org/id/london-borough-council/sutton,London Borough of Sutton,22/03/2020,40407397,441,Chenash Homecare Specialists And Care Agency,25667,Peoples Services Directorate,Home Care,G334
http://opendatacommunities.org/id/london-borough-council/sutton,London Borough of Sutton,29/03/2020,40407398,441,Chenash Homecare Specialists And Care Agency,25667,Peoples Services Directorate,Home Care,G334
http://opendatacommunities.org/id/london-borough-council/sutton,London Borough of Sutton,19/04/2020,40407951,441,Chenash Homecare Specialists And Care Agency,25667,Peoples Services Directorate,Home Care,G334
http://opendatacommunities.org/id/london-borough-council/sutton,London Borough of Sutton,26/04/2020,40412735,441,Chenash Homecare Specialists And Care Agency,25667,Peoples Services Directorate,Home Care,G334
http://opendatacommunities.org/id/london-borough-council/sutton,London Borough of Sutton,17/04/2020,40407206,"2,725.00",Cherry Lodge,10934,Peoples Services Directorate,Residential Care - Ext Provider,G310
http://opendatacommunities.org/id/london-borough-council/sutton,London Borough of Sutton,17/04/2020,40407265,"3,360.00",Cherry Lodge,10934,Peoples Services Directorate,Residential Care - Ext Provider,G310
http://opendatacommunities.org/id/london-borough-council/sutton,London Borough of Sutton,17/04/2020,40407119,"4,800.00",CHHG Ltd T/A Belmont House,29991,Peoples Services Directorate,Nursing Care - Ext Provider,G311
http://opendatacommunities.org/id/london-borough-council/sutton,London Borough of Sutton,17/04/2020,40407124,"2,936.00",CHHG Ltd T/A Belmont House,29991,Peoples Services Directorate,Residential Care - Ext Provider,G310
http://opendatacommunities.org/id/london-borough-council/sutton,London Borough of Sutton,17/04/2020,40407301,"3,800.00",CHHG Ltd T/A Belmont House,29991,Peoples Services Directorate,Nursing Care - Ext Provider,G311
http://opendatacommunities.org/id/london-borough-council/sutton,London Borough of Sutton,17/04/2020,40406870,"6,356.00",CHHG Ltd t/a Cranmer Court,22562,Peoples Services Directorate,Nursing Care - Ext Provider,G311
http://opendatacommunities.org/id/london-borough-council/sutton,London Borough of Sutton,24/03/2020,1290609,"1,005.46",Chipstead Valey Primary Trust T/A Chipstead Valley Primary School,26265,Peoples Services Directorate,Top-up Funding,G064
http://opendatacommunities.org/id/london-borough-council/sutton,London Borough of Sutton,24/03/2020,1291261,"6,666.65",Chipstead Valey Primary Trust T/A Chipstead Valley Primary School,26265,Peoples Services Directorate,Top-up Funding,G064
http://opendatacommunities.org/id/london-borough-council/sutton,London Borough of Sutton,17/04/2020,40407063,"7,511.00",Choice Care Group (Surrey) Ltd,22029,Peoples Services Directorate,Residential Care - Ext Provider,G310
http://opendatacommunities.org/id/london-borough-council/sutton,London Borough of Sutton,17/04/2020,40407064,"7,526.32",Choice Care Group (Surrey) Ltd,22029,Peoples Services Directorate,Residential Care - Ext Provider,G310
http://opendatacommunities.org/id/london-borough-council/sutton,London Borough of Sutton,17/04/2020,40407138,"7,240.00",Choice Care Group (Surrey) Ltd,22029,Peoples Services Directorate,Residential Care - Ext Provider,G310
http://opendatacommunities.org/id/london-borough-council/sutton,London Borough of Sutton,17/04/2020,40407178,"7,878.28",Choice Care Group (Surrey) Ltd,22029,Peoples Services Directorate,Residential Care - Ext Provider,G310
http://opendatacommunities.org/id/london-borough-council/sutton,London Borough of Sutton,29/02/2020,40404126,790.83,Choice Support,12929,Peoples Services Directorate,Supported Living - Ext Provider,G306
http://opendatacommunities.org/id/london-borough-council/sutton,London Borough of Sutton,29/02/2020,40404126,"4,390.89",Choice Support,12929,Peoples Services Directorate,Supported Living - Ext Provider,G306
http://opendatacommunities.org/id/london-borough-council/sutton,London Borough of Sutton,17/04/2020,40407066,"5,509.00",Choice Support,12929,Peoples Services Directorate,Residential Care - Ext Provider,G310
http://opendatacommunities.org/id/london-borough-council/sutton,London Borough of Sutton,31/03/2020,40409397,887.35,Choice Support,12929,Peoples Services Directorate,Supported Living - Ext Provider,G306
http://opendatacommunities.org/id/london-borough-council/sutton,London Borough of Sutton,31/03/2020,40409397,"5,081.39",Choice Support,12929,Peoples Services Directorate,Supported Living - Ext Provider,G306
http://opendatacommunities.org/id/london-borough-council/sutton,London Borough of Sutton,31/03/2020,40409398,887.35,Choice Support,12929,Peoples Services Directorate,Supported Living - Ext Provider,G306
http://opendatacommunities.org/id/london-borough-council/sutton,London Borough of Sutton,31/03/2020,40409398,"5,439.44",Choice Support,12929,Peoples Services Directorate,Supported Living - Ext Provider,G306
http://opendatacommunities.org/id/london-borough-council/sutton,London Borough of Sutton,31/03/2020,40409399,"3,279.49",Choice Support,12929,Peoples Services Directorate,Supported Living - Ext Provider,G306
http://opendatacommunities.org/id/london-borough-council/sutton,London Borough of Sutton,31/03/2020,40409399,633.82,Choice Support,12929,Peoples Services Directorate,Supported Living - Ext Provider,G306
http://opendatacommunities.org/id/london-borough-council/sutton,London Borough of Sutton,31/03/2020,40409399,"3,019.49",Choice Support,12929,Peoples Services Directorate,Supported Living - Ext Provider,G306
http://opendatacommunities.org/id/london-borough-council/sutton,London Borough of Sutton,31/03/2020,40409400,887.35,Choice Support,12929,Peoples Services Directorate,Supported Living - Ext Provider,G306
http://opendatacommunities.org/id/london-borough-council/sutton,London Borough of Sutton,31/03/2020,40409400,"5,203.22",Choice Support,12929,Peoples Services Directorate,Supported Living - Ext Provider,G306
http://opendatacommunities.org/id/london-borough-council/sutton,London Borough of Sutton,31/03/2020,40409401,887.35,Choice Support,12929,Peoples Services Directorate,Supported Living - Ext Provider,G306
http://opendatacommunities.org/id/london-borough-council/sutton,London Borough of Sutton,31/03/2020,40409401,"5,088.52",Choice Support,12929,Peoples Services Directorate,Supported Living - Ext Provider,G306
http://opendatacommunities.org/id/london-borough-council/sutton,London Borough of Sutton,31/03/2020,40409402,"1,589.59",Choice Support,12929,Peoples Services Directorate,Supported Living - Ext Provider,G306
http://opendatacommunities.org/id/london-borough-council/sutton,London Borough of Sutton,31/03/2020,40409402,633.82,Choice Support,12929,Peoples Services Directorate,Supported Living - Ext Provider,G306
http://opendatacommunities.org/id/london-borough-council/sutton,London Borough of Sutton,31/03/2020,40409402,"1,794.46",Choice Support,12929,Peoples Services Directorate,Supported Living - Ext Provider,G306
http://opendatacommunities.org/id/london-borough-council/sutton,London Borough of Sutton,31/03/2020,40409403,887.35,Choice Support,12929,Peoples Services Directorate,Supported Living - Ext Provider,G306
http://opendatacommunities.org/id/london-borough-council/sutton,London Borough of Sutton,31/03/2020,40409403,"6,463.37",Choice Support,12929,Peoples Services Directorate,Supported Living - Ext Provider,G306
http://opendatacommunities.org/id/london-borough-council/sutton,London Borough of Sutton,31/03/2020,40409404,"1,633.17",Choice Support,12929,Peoples Services Directorate,Supported Living - Ext Provider,G306
http://opendatacommunities.org/id/london-borough-council/sutton,London Borough of Sutton,31/03/2020,40409404,633.82,Choice Support,12929,Peoples Services Directorate,Supported Living - Ext Provider,G306
http://opendatacommunities.org/id/london-borough-council/sutton,London Borough of Sutton,31/03/2020,40409404,"1,579.14",Choice Support,12929,Peoples Services Directorate,Supported Living - Ext Provider,G306
http://opendatacommunities.org/id/london-borough-council/sutton,London Borough of Sutton,31/03/2020,40409407,"2,710.29",Choice Support,12929,Peoples Services Directorate,Supported Living - Ext Provider,G306
http://opendatacommunities.org/id/london-borough-council/sutton,London Borough of Sutton,31/03/2020,40409407,633.82,Choice Support,12929,Peoples Services Directorate,Supported Living - Ext Provider,G306
http://opendatacommunities.org/id/london-borough-council/sutton,London Borough of Sutton,31/03/2020,40409407,"1,313.60",Choice Support,12929,Peoples Services Directorate,Supported Living - Ext Provider,G306
http://opendatacommunities.org/id/london-borough-council/sutton,London Borough of Sutton,31/03/2020,40409408,"2,250.11",Choice Support,12929,Peoples Services Directorate,Supported Living - Ext Provider,G306
http://opendatacommunities.org/id/london-borough-council/sutton,London Borough of Sutton,31/03/2020,40409408,633.82,Choice Support,12929,Peoples Services Directorate,Supported Living - Ext Provider,G306
http://opendatacommunities.org/id/london-borough-council/sutton,London Borough of Sutton,31/03/2020,40409408,"1,320.25",Choice Support,12929,Peoples Services Directorate,Supported Living - Ext Provider,G306
http://opendatacommunities.org/id/london-borough-council/sutton,London Borough of Sutton,31/03/2020,40409410,"1,321.04",Choice Support,12929,Peoples Services Directorate,Supported Living - Ext Provider,G306
http://opendatacommunities.org/id/london-borough-council/sutton,London Borough of Sutton,31/03/2020,40409410,633.82,Choice Support,12929,Peoples Services Directorate,Supported Living - Ext Provider,G306
http://opendatacommunities.org/id/london-borough-council/sutton,London Borough of Sutton,31/03/2020,40409410,"1,662.18",Choice Support,12929,Peoples Services Directorate,Supported Living - Ext Provider,G306
http://opendatacommunities.org/id/london-borough-council/sutton,London Borough of Sutton,31/03/2020,40409411,887.35,Choice Support,12929,Peoples Services Directorate,Supported Living - Ext Provider,G306
http://opendatacommunities.org/id/london-borough-council/sutton,London Borough of Sutton,31/03/2020,40409411,"5,460.83",Choice Support,12929,Peoples Services Directorate,Supported Living - Ext Provider,G306
http://opendatacommunities.org/id/london-borough-council/sutton,London Borough of Sutton,31/03/2020,40409412,633.82,Choice Support,12929,Peoples Services Directorate,Supported Living - Ext Provider,G306
http://opendatacommunities.org/id/london-borough-council/sutton,London Borough of Sutton,31/03/2020,40409412,"5,933.49",Choice Support,12929,Peoples Services Directorate,Supported Living - Ext Provider,G306
http://opendatacommunities.org/id/london-borough-council/sutton,London Borough of Sutton,24/04/2020,40410970,"2,342.05",Choice Support,12929,Peoples Services Directorate,Supported Living - Ext Provider,G306
http://opendatacommunities.org/id/london-borough-council/sutton,London Borough of Sutton,24/04/2020,40410970,"1,634.05",Choice Support,12929,Peoples Services Directorate,Supported Living - Ext Provider,G306
http://opendatacommunities.org/id/london-borough-council/sutton,London Borough of Sutton,24/04/2020,40410974,"2,579.65",Choice Support,12929,Peoples Services Directorate,Supported Living - Ext Provider,G306
http://opendatacommunities.org/id/london-borough-council/sutton,London Borough of Sutton,24/04/2020,40410974,"1,643.05",Choice Support,12929,Peoples Services Directorate,Supported Living - Ext Provider,G306
http://opendatacommunities.org/id/london-borough-council/sutton,London Borough of Sutton,24/04/2020,40410975,"2,409.95",Choice Support,12929,Peoples Services Directorate,Supported Living - Ext Provider,G306
http://opendatacommunities.org/id/london-borough-council/sutton,London Borough of Sutton,24/04/2020,40410975,"1,643.05",Choice Support,12929,Peoples Services Directorate,Supported Living - Ext Provider,G306
http://opendatacommunities.org/id/london-borough-council/sutton,London Borough of Sutton,24/04/2020,40410976,"5,023.55",Choice Support,12929,Peoples Services Directorate,Supported Living - Ext Provider,G306
http://opendatacommunities.org/id/london-borough-council/sutton,London Borough of Sutton,24/04/2020,40410976,"1,643.05",Choice Support,12929,Peoples Services Directorate,Supported Living - Ext Provider,G306
http://opendatacommunities.org/id/london-borough-council/sutton,London Borough of Sutton,24/04/2020,40410977,"2,851.20",Choice Support,12929,Peoples Services Directorate,Supported Living - Ext Provider,G306
http://opendatacommunities.org/id/london-borough-council/sutton,London Borough of Sutton,24/04/2020,40410977,"1,154.05",Choice Support,12929,Peoples Services Directorate,Supported Living - Ext Provider,G306
http://opendatacommunities.org/id/london-borough-council/sutton,London Borough of Sutton,24/04/2020,40410978,"3,556.55",Choice Support,12929,Peoples Services Directorate,Supported Living - Ext Provider,G306
http://opendatacommunities.org/id/london-borough-council/sutton,London Borough of Sutton,24/04/2020,40410978,556.33,Choice Support,12929,Peoples Services Directorate,Supported Living - Ext Provider,G306
http://opendatacommunities.org/id/london-borough-council/sutton,London Borough of Sutton,24/04/2020,40410981,"2,647.55",Choice Support,12929,Peoples Services Directorate,Supported Living - Ext Provider,G306
http://opendatacommunities.org/id/london-borough-council/sutton,London Borough of Sutton,24/04/2020,40410981,"1,643.05",Choice Support,12929,Peoples Services Directorate,Supported Living - Ext Provider,G306
http://opendatacommunities.org/id/london-borough-council/sutton,London Borough of Sutton,24/04/2020,40410982,"2,409.95",Choice Support,12929,Peoples Services Directorate,Supported Living - Ext Provider,G306
http://opendatacommunities.org/id/london-borough-council/sutton,London Borough of Sutton,24/04/2020,40410982,"1,643.05",Choice Support,12929,Peoples Services Directorate,Supported Living - Ext Provider,G306
http://opendatacommunities.org/id/london-borough-council/sutton,London Borough of Sutton,24/04/2020,40410983,"6,079.12",Choice Support,12929,Peoples Services Directorate,Supported Living - Ext Provider,G306
http://opendatacommunities.org/id/london-borough-council/sutton,London Borough of Sutton,24/04/2020,40410983,919.28,Choice Support,12929,Peoples Services Directorate,Supported Living - Ext Provider,G306
http://opendatacommunities.org/id/london-borough-council/sutton,London Borough of Sutton,24/04/2020,40410984,"4,998.43",Choice Support,12929,Peoples Services Directorate,Supported Living - Ext Provider,G306
http://opendatacommunities.org/id/london-borough-council/sutton,London Borough of Sutton,24/04/2020,40410984,431.75,Choice Support,12929,Peoples Services Directorate,Supported Living - Ext Provider,G306
http://opendatacommunities.org/id/london-borough-council/sutton,London Borough of Sutton,24/04/2020,40410985,"2,211.73",Choice Support,12929,Peoples Services Directorate,Supported Living - Ext Provider,G306
http://opendatacommunities.org/id/london-borough-council/sutton,London Borough of Sutton,24/04/2020,40410985,468.9,Choice Support,12929,Peoples Services Directorate,Supported Living - Ext Provider,G306
http://opendatacommunities.org/id/london-borough-council/sutton,London Borough of Sutton,24/04/2020,40410985,"1,564.75",Choice Support,12929,Peoples Services Directorate,Supported Living - Ext Provider,G306
http://opendatacommunities.org/id/london-borough-council/sutton,London Borough of Sutton,24/04/2020,40410986,"2,274.17",Choice Support,12929,Peoples Services Directorate,Supported Living - Ext Provider,G306
http://opendatacommunities.org/id/london-borough-council/sutton,London Borough of Sutton,24/04/2020,40410986,468.9,Choice Support,12929,Peoples Services Directorate,Supported Living - Ext Provider,G306
http://opendatacommunities.org/id/london-borough-council/sutton,London Borough of Sutton,24/04/2020,40410986,"1,598.70",Choice Support,12929,Peoples Services Directorate,Supported Living - Ext Provider,G306
http://opendatacommunities.org/id/london-borough-council/sutton,London Borough of Sutton,24/04/2020,40410991,"1,934.75",Choice Support,12929,Peoples Services Directorate,Supported Living - Ext Provider,G306
http://opendatacommunities.org/id/london-borough-council/sutton,London Borough of Sutton,24/04/2020,40410991,"1,018.28",Choice Support,12929,Peoples Services Directorate,Supported Living - Ext Provider,G306
http://opendatacommunities.org/id/london-borough-council/sutton,London Borough of Sutton,24/04/2020,40410992,"3,937.37",Choice Support,12929,Peoples Services Directorate,Supported Living - Ext Provider,G306
http://opendatacommunities.org/id/london-borough-council/sutton,London Borough of Sutton,24/04/2020,40410992,"1,634.05",Choice Support,12929,Peoples Services Directorate,Supported Living - Ext Provider,G306
http://opendatacommunities.org/id/london-borough-council/sutton,London Borough of Sutton,24/04/2020,40410993,"3,937.37",Choice Support,12929,Peoples Services Directorate,Supported Living - Ext Provider,G306
http://opendatacommunities.org/id/london-borough-council/sutton,London Borough of Sutton,24/04/2020,40410993,844.33,Choice Support,12929,Peoples Services Directorate,Supported Living - Ext Provider,G306
http://opendatacommunities.org/id/london-borough-council/sutton,London Borough of Sutton,24/04/2020,40410996,"3,054.85",Choice Support,12929,Peoples Services Directorate,Supported Living - Ext Provider,G306
http://opendatacommunities.org/id/london-borough-council/sutton,London Borough of Sutton,24/04/2020,40410996,"1,643.05",Choice Support,12929,Peoples Services Directorate,Supported Living - Ext Provider,G306
http://opendatacommunities.org/id/london-borough-council/sutton,London Borough of Sutton,24/04/2020,40410997,"3,292.45",Choice Support,12929,Peoples Services Directorate,Supported Living - Ext Provider,G306
http://opendatacommunities.org/id/london-borough-council/sutton,London Borough of Sutton,24/04/2020,40410997,"1,634.05",Choice Support,12929,Peoples Services Directorate,Supported Living - Ext Provider,G306
http://opendatacommunities.org/id/london-borough-council/sutton,London Borough of Sutton,24/04/2020,40410998,"3,801.60",Choice Support,12929,Peoples Services Directorate,Supported Living - Ext Provider,G306
http://opendatacommunities.org/id/london-borough-council/sutton,London Borough of Sutton,24/04/2020,40410998,"1,634.05",Choice Support,12929,Peoples Services Directorate,Supported Living - Ext Provider,G306
http://opendatacommunities.org/id/london-borough-council/sutton,London Borough of Sutton,24/04/2020,40411002,"2,579.65",Choice Support,12929,Peoples Services Directorate,Supported Living - Ext Provider,G306
http://opendatacommunities.org/id/london-borough-council/sutton,London Borough of Sutton,24/04/2020,40411002,"1,643.05",Choice Support,12929,Peoples Services Directorate,Supported Living - Ext Provider,G306
http://opendatacommunities.org/id/london-borough-council/sutton,London Borough of Sutton,24/04/2020,40411003,"2,701.85",Choice Support,12929,Peoples Services Directorate,Supported Living - Ext Provider,G306
http://opendatacommunities.org/id/london-borough-council/sutton,London Borough of Sutton,24/04/2020,40411003,"1,384.88",Choice Support,12929,Peoples Services Directorate,Supported Living - Ext Provider,G306
http://opendatacommunities.org/id/london-borough-council/sutton,London Borough of Sutton,24/04/2020,40411003,844.33,Choice Support,12929,Peoples Services Directorate,Supported Living - Ext Provider,G306
http://opendatacommunities.org/id/london-borough-council/sutton,London Borough of Sutton,24/04/2020,40411004,"2,856.22",Choice Support,12929,Peoples Services Directorate,Supported Living - Ext Provider,G306
http://opendatacommunities.org/id/london-borough-council/sutton,London Borough of Sutton,24/04/2020,40411004,"1,634.05",Choice Support,12929,Peoples Services Directorate,Supported Living - Ext Provider,G306
http://opendatacommunities.org/id/london-borough-council/sutton,London Borough of Sutton,24/04/2020,40411005,"1,357.72",Choice Support,12929,Peoples Services Directorate,Supported Living - Ext Provider,G306
http://opendatacommunities.org/id/london-borough-council/sutton,London Borough of Sutton,24/04/2020,40411005,"2,323.03",Choice Support,12929,Peoples Services Directorate,Supported Living - Ext Provider,G306
http://opendatacommunities.org/id/london-borough-council/sutton,London Borough of Sutton,24/04/2020,40411005,468.9,Choice Support,12929,Peoples Services Directorate,Supported Living - Ext Provider,G306
http://opendatacommunities.org/id/london-borough-council/sutton,London Borough of Sutton,24/04/2020,40411006,"2,044.28",Choice Support,12929,Peoples Services Directorate,Supported Living - Ext Provider,G306
http://opendatacommunities.org/id/london-borough-council/sutton,London Borough of Sutton,24/04/2020,40411006,468.9,Choice Support,12929,Peoples Services Directorate,Supported Living - Ext Provider,G306
http://opendatacommunities.org/id/london-borough-council/sutton,London Borough of Sutton,24/04/2020,40411006,"1,820.75",Choice Support,12929,Peoples Services Directorate,Supported Living - Ext Provider,G306
http://opendatacommunities.org/id/london-borough-council/sutton,London Borough of Sutton,24/04/2020,40411012,"3,054.85",Choice Support,12929,Peoples Services Directorate,Supported Living - Ext Provider,G306
http://opendatacommunities.org/id/london-borough-council/sutton,London Borough of Sutton,24/04/2020,40411012,"1,643.05",Choice Support,12929,Peoples Services Directorate,Supported Living - Ext Provider,G306
http://opendatacommunities.org/id/london-borough-council/sutton,London Borough of Sutton,24/04/2020,40411013,"2,240.23",Choice Support,12929,Peoples Services Directorate,Supported Living - Ext Provider,G306
http://opendatacommunities.org/id/london-borough-council/sutton,London Borough of Sutton,24/04/2020,40411013,468.9,Choice Support,12929,Peoples Services Directorate,Supported Living - Ext Provider,G306
http://opendatacommunities.org/id/london-borough-council/sutton,London Borough of Sutton,24/04/2020,40411013,"1,573.58",Choice Support,12929,Peoples Services Directorate,Supported Living - Ext Provider,G306
http://opendatacommunities.org/id/london-borough-council/sutton,London Borough of Sutton,24/04/2020,40411014,"2,002.63",Choice Support,12929,Peoples Services Directorate,Supported Living - Ext Provider,G306
http://opendatacommunities.org/id/london-borough-council/sutton,London Borough of Sutton,24/04/2020,40411014,"1,547.78",Choice Support,12929,Peoples Services Directorate,Supported Living - Ext Provider,G306
http://opendatacommunities.org/id/london-borough-council/sutton,London Borough of Sutton,24/04/2020,40411014,468.9,Choice Support,12929,Peoples Services Directorate,Supported Living - Ext Provider,G306
http://opendatacommunities.org/id/london-borough-council/sutton,London Borough of Sutton,28/02/2020,6970655,487,CICM Services LTD,35187,Peoples Services Directorate,Fees - Consultants (Ad Hoc),F283
http://opendatacommunities.org/id/london-borough-council/sutton,London Borough of Sutton,01/04/2020,1290955,"37,624.97",Cirrus Primary Academy Trust t/a Barrow Hedges Primary School Academy,30237,Peoples Services Directorate,Top-up Funding,G064
http://opendatacommunities.org/id/london-borough-council/sutton,London Borough of Sutton,06/04/2020,6969568,"120,245.75",Citizens Advice Bureau,10969,Chief Executive's Directorate,Provider Contract Payments,F470
http://opendatacommunities.org/id/london-borough-council/sutton,London Borough of Sutton,07/04/2020,6969593,"3,133.00",City Suburban Tree Surgeons,24817,"Environment, Housing & Regeneration Directorate",Emergency Repairs,D540
http://opendatacommunities.org/id/london-borough-council/sutton,London Borough of Sutton,08/04/2020,6969596,"1,043.00",City Suburban Tree Surgeons,24817,"Environment, Housing & Regeneration Directorate",Assistance to Voluntary Organisations,F471
http://opendatacommunities.org/id/london-borough-council/sutton,London Borough of Sutton,01/04/2020,6969657,"11,958.00",Cityglen Ltd T/A Hytyme ltd,24115,"Environment, Housing & Regeneration Directorate",Bed and Breakfast Accommodation,G400
http://opendatacommunities.org/id/london-borough-council/sutton,London Borough of Sutton,17/04/2020,6970155,"2,775.60",Civica UK Ltd,10978,Resources Directorate,IT Licences,F385
http://opendatacommunities.org/id/london-borough-council/sutton,London Borough of Sutton,17/04/2020,40406987,"4,374.00",Claremont Care Svs Ltd,18724,Peoples Services Directorate,Nursing Care - Ext Provider,G311
http://opendatacommunities.org/id/london-borough-council/sutton,London Borough of Sutton,17/04/2020,40406988,450,Claremont Care Svs Ltd,18724,Peoples Services Directorate,Nursing Care - Ext Provider,G311
http://opendatacommunities.org/id/london-borough-council/sutton,London Borough of Sutton,17/04/2020,40407193,"3,432.64",Claremont Care Svs Ltd,18724,Peoples Services Directorate,Nursing Care - Ext Provider,G311
http://opendatacommunities.org/id/london-borough-council/sutton,London Borough of Sutton,17/04/2020,40407194,714.29,Claremont Care Svs Ltd,18724,Peoples Services Directorate,Nursing Care - Ext Provider,G311
http://opendatacommunities.org/id/london-borough-council/sutton,London Borough of Sutton,25/03/2020,1290619,750,Classroom Teachers Ltd,32358,Peoples Services Directorate,Independent Schools,G325
http://opendatacommunities.org/id/london-borough-council/sutton,London Borough of Sutton,16/04/2020,6969926,"4,012.50",Cleaner Greener Safer Happier Ltd,29981,"Environment, Housing & Regeneration Directorate",Fees - Consultants (Ad Hoc),F283
http://opendatacommunities.org/id/london-borough-council/sutton,London Borough of Sutton,14/04/2020,1291518,"1,360.00",Clovecare Ltd,33431,Peoples Services Directorate,Home Care,G334
http://opendatacommunities.org/id/london-borough-council/sutton,London Borough of Sutton,09/03/2020,40401547,803,Clovecare Ltd,33431,Peoples Services Directorate,Home Care,G334
http://opendatacommunities.org/id/london-borough-council/sutton,London Borough of Sutton,09/03/2020,40401548,451.5,Clovecare Ltd,33431,Peoples Services Directorate,Home Care,G334
http://opendatacommunities.org/id/london-borough-council/sutton,London Borough of Sutton,09/03/2020,40401549,445.25,Clovecare Ltd,33431,Peoples Services Directorate,Home Care,G334
http://opendatacommunities.org/id/london-borough-council/sutton,London Borough of Sutton,09/03/2020,40401550,469,Clovecare Ltd,33431,Peoples Services Directorate,Home Care,G334
http://opendatacommunities.org/id/london-borough-council/sutton,London Borough of Sutton,09/03/2020,40403338,434,Clovecare Ltd,33431,Peoples Services Directorate,Home Care,G334
http://opendatacommunities.org/id/london-borough-council/sutton,London Borough of Sutton,05/04/2020,40403622,454.75,Clovecare Ltd,33431,Peoples Services Directorate,Home Care,G334
http://opendatacommunities.org/id/london-borough-council/sutton,London Borough of Sutton,05/04/2020,40403643,802.95,Clovecare Ltd,33431,Peoples Services Directorate,Home Care,G334
http://opendatacommunities.org/id/london-borough-council/sutton,London Borough of Sutton,05/04/2020,40403658,445.25,Clovecare Ltd,33431,Peoples Services Directorate,Home Care,G334
http://opendatacommunities.org/id/london-borough-council/sutton,London Borough of Sutton,05/04/2020,40403679,469,Clovecare Ltd,33431,Peoples Services Directorate,Home Care,G334
http://opendatacommunities.org/id/london-borough-council/sutton,London Borough of Sutton,02/03/2020,40404605,445.25,Clovecare Ltd,33431,Peoples Services Directorate,Home Care,G334
http://opendatacommunities.org/id/london-borough-council/sutton,London Borough of Sutton,02/03/2020,40404606,803,Clovecare Ltd,33431,Peoples Services Directorate,Home Care,G334
http://opendatacommunities.org/id/london-borough-council/sutton,London Borough of Sutton,02/03/2020,40404609,469,Clovecare Ltd,33431,Peoples Services Directorate,Home Care,G334
http://opendatacommunities.org/id/london-borough-council/sutton,London Borough of Sutton,02/03/2020,40404610,451.5,Clovecare Ltd,33431,Peoples Services Directorate,Home Care,G334
http://opendatacommunities.org/id/london-borough-council/sutton,London Borough of Sutton,12/04/2020,40405587,454.75,Clovecare Ltd,33431,Peoples Services Directorate,Home Care,G334
http://opendatacommunities.org/id/london-borough-council/sutton,London Borough of Sutton,12/04/2020,40405599,802.95,Clovecare Ltd,33431,Peoples Services Directorate,Home Care,G334
http://opendatacommunities.org/id/london-borough-council/sutton,London Borough of Sutton,12/04/2020,40405624,445.25,Clovecare Ltd,33431,Peoples Services Directorate,Home Care,G334
http://opendatacommunities.org/id/london-borough-council/sutton,London Borough of Sutton,12/04/2020,40405667,469,Clovecare Ltd,33431,Peoples Services Directorate,Home Care,G334
http://opendatacommunities.org/id/london-borough-council/sutton,London Borough of Sutton,17/03/2020,40406135,445.25,Clovecare Ltd,33431,Peoples Services Directorate,Home Care,G334
http://opendatacommunities.org/id/london-borough-council/sutton,London Borough of Sutton,17/03/2020,40406137,456.5,Clovecare Ltd,33431,Peoples Services Directorate,Home Care,G334
http://opendatacommunities.org/id/london-borough-council/sutton,London Borough of Sutton,17/03/2020,40406144,466.5,Clovecare Ltd,33431,Peoples Services Directorate,Home Care,G334
http://opendatacommunities.org/id/london-borough-council/sutton,London Borough of Sutton,17/03/2020,40406149,803,Clovecare Ltd,33431,Peoples Services Directorate,Home Care,G334
http://opendatacommunities.org/id/london-borough-council/sutton,London Borough of Sutton,17/03/2020,40406827,431.5,Clovecare Ltd,33431,Peoples Services Directorate,Home Care,G334
http://opendatacommunities.org/id/london-borough-council/sutton,London Borough of Sutton,23/03/2020,40406828,469,Clovecare Ltd,33431,Peoples Services Directorate,Home Care,G334
http://opendatacommunities.org/id/london-borough-council/sutton,London Borough of Sutton,23/03/2020,40406829,803,Clovecare Ltd,33431,Peoples Services Directorate,Home Care,G334
http://opendatacommunities.org/id/london-borough-council/sutton,London Borough of Sutton,23/03/2020,40406833,529.25,Clovecare Ltd,33431,Peoples Services Directorate,Home Care,G334
http://opendatacommunities.org/id/london-borough-council/sutton,London Borough of Sutton,23/03/2020,40406836,473.25,Clovecare Ltd,33431,Peoples Services Directorate,Home Care,G334
http://opendatacommunities.org/id/london-borough-council/sutton,London Borough of Sutton,23/03/2020,40406838,434,Clovecare Ltd,33431,Peoples Services Directorate,Home Care,G334
http://opendatacommunities.org/id/london-borough-council/sutton,London Borough of Sutton,19/04/2020,40407945,479.75,Clovecare Ltd,33431,Peoples Services Directorate,Home Care,G334
http://opendatacommunities.org/id/london-borough-council/sutton,London Borough of Sutton,19/04/2020,40407955,428.75,Clovecare Ltd,33431,Peoples Services Directorate,Home Care,G334
http://opendatacommunities.org/id/london-borough-council/sutton,London Borough of Sutton,19/04/2020,40407956,857.46,Clovecare Ltd,33431,Peoples Services Directorate,Home Care,G334
http://opendatacommunities.org/id/london-borough-council/sutton,London Borough of Sutton,19/04/2020,40407959,472.5,Clovecare Ltd,33431,Peoples Services Directorate,Home Care,G334
http://opendatacommunities.org/id/london-borough-council/sutton,London Borough of Sutton,19/04/2020,40407969,501,Clovecare Ltd,33431,Peoples Services Directorate,Home Care,G334
http://opendatacommunities.org/id/london-borough-council/sutton,London Borough of Sutton,19/04/2020,40407970,444.75,Clovecare Ltd,33431,Peoples Services Directorate,Home Care,G334
http://opendatacommunities.org/id/london-borough-council/sutton,London Borough of Sutton,30/03/2020,40411582,451.5,Clovecare Ltd,33431,Peoples Services Directorate,Home Care,G334
http://opendatacommunities.org/id/london-borough-council/sutton,London Borough of Sutton,30/03/2020,40411584,469,Clovecare Ltd,33431,Peoples Services Directorate,Home Care,G334
http://opendatacommunities.org/id/london-borough-council/sutton,London Borough of Sutton,30/03/2020,40411586,434,Clovecare Ltd,33431,Peoples Services Directorate,Home Care,G334
http://opendatacommunities.org/id/london-borough-council/sutton,London Borough of Sutton,30/03/2020,40411587,803,Clovecare Ltd,33431,Peoples Services Directorate,Home Care,G334
http://opendatacommunities.org/id/london-borough-council/sutton,London Borough of Sutton,26/04/2020,40412129,461.5,Clovecare Ltd,33431,Peoples Services Directorate,Home Care,G334
http://opendatacommunities.org/id/london-borough-council/sutton,London Borough of Sutton,26/04/2020,40412143,802.95,Clovecare Ltd,33431,Peoples Services Directorate,Home Care,G334
http://opendatacommunities.org/id/london-borough-council/sutton,London Borough of Sutton,26/04/2020,40412145,445.25,Clovecare Ltd,33431,Peoples Services Directorate,Home Care,G334
http://opendatacommunities.org/id/london-borough-council/sutton,London Borough of Sutton,26/04/2020,40412162,469,Clovecare Ltd,33431,Peoples Services Directorate,Home Care,G334
http://opendatacommunities.org/id/london-borough-council/sutton,London Borough of Sutton,26/04/2020,40412163,416.5,Clovecare Ltd,33431,Peoples Services Directorate,Home Care,G334
http://opendatacommunities.org/id/london-borough-council/sutton,London Borough of Sutton,17/04/2020,40407235,"2,600.00",Cloyda Limited,20402,Peoples Services Directorate,Residential Care - Ext Provider,G310
http://opendatacommunities.org/id/london-borough-council/sutton,London Borough of Sutton,17/04/2020,40406958,"7,036.00",Cmg Homes Ltd,11026,Peoples Services Directorate,Residential Care - Ext Provider,G310
http://opendatacommunities.org/id/london-borough-council/sutton,London Borough of Sutton,17/04/2020,40407177,"5,416.92",Cmg Homes Ltd,11026,Peoples Services Directorate,Residential Care - Ext Provider,G310
http://opendatacommunities.org/id/london-borough-council/sutton,London Borough of Sutton,24/04/2020,40410980,"3,060.00",Cmg Homes Ltd,11026,Peoples Services Directorate,Supported Living - Ext Provider,G306
http://opendatacommunities.org/id/london-borough-council/sutton,London Borough of Sutton,24/04/2020,40410988,"3,544.28",Cmg Homes Ltd,11026,Peoples Services Directorate,Supported Living - Ext Provider,G306
http://opendatacommunities.org/id/london-borough-council/sutton,London Borough of Sutton,24/04/2020,40410989,"3,557.15",Cmg Homes Ltd,11026,Peoples Services Directorate,Supported Living - Ext Provider,G306
http://opendatacommunities.org/id/london-borough-council/sutton,London Borough of Sutton,24/04/2020,40411000,"4,444.28",Cmg Homes Ltd,11026,Peoples Services Directorate,Supported Living - Ext Provider,G306
http://opendatacommunities.org/id/london-borough-council/sutton,London Borough of Sutton,31/03/2020,6969250,"66,000.00",Cognus Ltd,26829,Peoples Services Directorate,Agency Services,G431
http://opendatacommunities.org/id/london-borough-council/sutton,London Borough of Sutton,31/03/2020,6969591,"17,267.53",Cognus Ltd,26829,Peoples Services Directorate,Other Services,F340
http://opendatacommunities.org/id/london-borough-council/sutton,London Borough of Sutton,14/04/2020,6969755,"198,700.00",Cognus Ltd,26829,Peoples Services Directorate,Contractual Consultant Fees,G430
http://opendatacommunities.org/id/london-borough-council/sutton,London Borough of Sutton,14/04/2020,6969755,"167,950.00",Cognus Ltd,26829,Peoples Services Directorate,Contractual Consultant Fees,G430
http://opendatacommunities.org/id/london-borough-council/sutton,London Borough of Sutton,31/03/2020,6969974,"847,771.00",Cognus Ltd,26829,Peoples Services Directorate,Special Educational Needs,G331
http://opendatacommunities.org/id/london-borough-council/sutton,London Borough of Sutton,14/04/2020,1291643,"13,910.94",Coleg Elidyr Camphill Communities,28764,Peoples Services Directorate,Independent Schools,G325
http://opendatacommunities.org/id/london-borough-council/sutton,London Borough of Sutton,17/04/2020,40406922,"2,590.17",Coleg Elidyr Camphill Communities,28764,Peoples Services Directorate,Interim Placements - Ext Provider,G317
http://opendatacommunities.org/id/london-borough-council/sutton,London Borough of Sutton,03/03/2020,6968779,"6,275.00",Community Action Sutton,14439,"Environment, Housing & Regeneration Directorate",Community Initiatives,F322
http://opendatacommunities.org/id/london-borough-council/sutton,London Borough of Sutton,31/03/2020,6969577,"300,000.00",Community Action Sutton,14439,Chief Executive's Directorate,Provider Contract Payments,F470
http://opendatacommunities.org/id/london-borough-council/sutton,London Borough of Sutton,23/04/2020,6970313,"80,000.00",Community Action Sutton,14439,Chief Executive's Directorate,Assistance to Voluntary Organisations,F471
http://opendatacommunities.org/id/london-borough-council/sutton,London Borough of Sutton,14/04/2020,1291500,"1,200.00",Community Home Care Provider,11097,Peoples Services Directorate,Home Care,G334
http://opendatacommunities.org/id/london-borough-council/sutton,London Borough of Sutton,09/03/2020,40401552,560,Community Home Care Provider,11097,Peoples Services Directorate,Home Care,G334
http://opendatacommunities.org/id/london-borough-council/sutton,London Borough of Sutton,09/03/2020,40401553,504,Community Home Care Provider,11097,Peoples Services Directorate,Home Care,G334
http://opendatacommunities.org/id/london-borough-council/sutton,London Borough of Sutton,09/03/2020,40401567,816,Community Home Care Provider,11097,Peoples Services Directorate,Home Care,G334
http://opendatacommunities.org/id/london-borough-council/sutton,London Borough of Sutton,09/03/2020,40401569,472,Community Home Care Provider,11097,Peoples Services Directorate,Home Care,G334
http://opendatacommunities.org/id/london-borough-council/sutton,London Borough of Sutton,09/03/2020,40401570,560,Community Home Care Provider,11097,Peoples Services Directorate,Home Care,G334
http://opendatacommunities.org/id/london-borough-council/sutton,London Borough of Sutton,05/04/2020,40403585,560,Community Home Care Provider,11097,Peoples Services Directorate,Home Care,G334
http://opendatacommunities.org/id/london-borough-council/sutton,London Borough of Sutton,05/04/2020,40403601,816,Community Home Care Provider,11097,Peoples Services Directorate,Home Care,G334
http://opendatacommunities.org/id/london-borough-council/sutton,London Borough of Sutton,05/04/2020,40403605,472,Community Home Care Provider,11097,Peoples Services Directorate,Home Care,G334
http://opendatacommunities.org/id/london-borough-council/sutton,London Borough of Sutton,05/04/2020,40403646,560,Community Home Care Provider,11097,Peoples Services Directorate,Home Care,G334
http://opendatacommunities.org/id/london-borough-council/sutton,London Borough of Sutton,05/04/2020,40403674,504,Community Home Care Provider,11097,Peoples Services Directorate,Home Care,G334
http://opendatacommunities.org/id/london-borough-council/sutton,London Borough of Sutton,16/03/2020,40404617,560,Community Home Care Provider,11097,Peoples Services Directorate,Home Care,G334
http://opendatacommunities.org/id/london-borough-council/sutton,London Borough of Sutton,16/03/2020,40404618,504,Community Home Care Provider,11097,Peoples Services Directorate,Home Care,G334
http://opendatacommunities.org/id/london-borough-council/sutton,London Borough of Sutton,16/03/2020,40404619,816,Community Home Care Provider,11097,Peoples Services Directorate,Home Care,G334
http://opendatacommunities.org/id/london-borough-council/sutton,London Borough of Sutton,16/03/2020,40404620,560,Community Home Care Provider,11097,Peoples Services Directorate,Home Care,G334
http://opendatacommunities.org/id/london-borough-council/sutton,London Borough of Sutton,16/03/2020,40404628,472,Community Home Care Provider,11097,Peoples Services Directorate,Home Care,G334
http://opendatacommunities.org/id/london-borough-council/sutton,London Borough of Sutton,12/04/2020,40405765,560,Community Home Care Provider,11097,Peoples Services Directorate,Home Care,G334
http://opendatacommunities.org/id/london-borough-council/sutton,London Borough of Sutton,12/04/2020,40405782,840,Community Home Care Provider,11097,Peoples Services Directorate,Home Care,G334
http://opendatacommunities.org/id/london-borough-council/sutton,London Borough of Sutton,12/04/2020,40405783,472,Community Home Care Provider,11097,Peoples Services Directorate,Home Care,G334
http://opendatacommunities.org/id/london-borough-council/sutton,London Borough of Sutton,12/04/2020,40405830,560,Community Home Care Provider,11097,Peoples Services Directorate,Home Care,G334
http://opendatacommunities.org/id/london-borough-council/sutton,London Borough of Sutton,12/04/2020,40405863,504,Community Home Care Provider,11097,Peoples Services Directorate,Home Care,G334
http://opendatacommunities.org/id/london-borough-council/sutton,London Borough of Sutton,23/03/2020,40407679,504,Community Home Care Provider,11097,Peoples Services Directorate,Home Care,G334
http://opendatacommunities.org/id/london-borough-council/sutton,London Borough of Sutton,23/03/2020,40407681,472,Community Home Care Provider,11097,Peoples Services Directorate,Home Care,G334
http://opendatacommunities.org/id/london-borough-council/sutton,London Borough of Sutton,23/03/2020,40407682,560,Community Home Care Provider,11097,Peoples Services Directorate,Home Care,G334
http://opendatacommunities.org/id/london-borough-council/sutton,London Borough of Sutton,23/03/2020,40407687,816,Community Home Care Provider,11097,Peoples Services Directorate,Home Care,G334
http://opendatacommunities.org/id/london-borough-council/sutton,London Borough of Sutton,23/03/2020,40407709,560,Community Home Care Provider,11097,Peoples Services Directorate,Home Care,G334
http://opendatacommunities.org/id/london-borough-council/sutton,London Borough of Sutton,19/04/2020,40407931,560,Community Home Care Provider,11097,Peoples Services Directorate,Home Care,G334
http://opendatacommunities.org/id/london-borough-council/sutton,London Borough of Sutton,19/04/2020,40407940,840,Community Home Care Provider,11097,Peoples Services Directorate,Home Care,G334
http://opendatacommunities.org/id/london-borough-council/sutton,London Borough of Sutton,19/04/2020,40407941,472,Community Home Care Provider,11097,Peoples Services Directorate,Home Care,G334
http://opendatacommunities.org/id/london-borough-council/sutton,London Borough of Sutton,19/04/2020,40407958,560,Community Home Care Provider,11097,Peoples Services Directorate,Home Care,G334
http://opendatacommunities.org/id/london-borough-council/sutton,London Borough of Sutton,19/04/2020,40407963,504,Community Home Care Provider,11097,Peoples Services Directorate,Home Care,G334
http://opendatacommunities.org/id/london-borough-council/sutton,London Borough of Sutton,31/03/2020,40412539,504,Community Home Care Provider,11097,Peoples Services Directorate,Home Care,G334
http://opendatacommunities.org/id/london-borough-council/sutton,London Borough of Sutton,26/04/2020,40412544,982.38,Community Home Care Provider,11097,Peoples Services Directorate,Home Care,G334
http://opendatacommunities.org/id/london-borough-council/sutton,London Borough of Sutton,26/04/2020,40412545,552.05,Community Home Care Provider,11097,Peoples Services Directorate,Home Care,G334
http://opendatacommunities.org/id/london-borough-council/sutton,London Borough of Sutton,26/04/2020,40412575,654.85,Community Home Care Provider,11097,Peoples Services Directorate,Home Care,G334
http://opendatacommunities.org/id/london-borough-council/sutton,London Borough of Sutton,31/03/2020,40412589,560,Community Home Care Provider,11097,Peoples Services Directorate,Home Care,G334
http://opendatacommunities.org/id/london-borough-council/sutton,London Borough of Sutton,31/03/2020,40412592,816,Community Home Care Provider,11097,Peoples Services Directorate,Home Care,G334
http://opendatacommunities.org/id/london-borough-council/sutton,London Borough of Sutton,31/03/2020,40412593,560,Community Home Care Provider,11097,Peoples Services Directorate,Home Care,G334
http://opendatacommunities.org/id/london-borough-council/sutton,London Borough of Sutton,26/04/2020,40412609,589.4,Community Home Care Provider,11097,Peoples Services Directorate,Home Care,G334
http://opendatacommunities.org/id/london-borough-council/sutton,London Borough of Sutton,31/03/2020,40412645,472,Community Home Care Provider,11097,Peoples Services Directorate,Home Care,G334
http://opendatacommunities.org/id/london-borough-council/sutton,London Borough of Sutton,26/04/2020,40412710,654.85,Community Home Care Provider,11097,Peoples Services Directorate,Home Care,G334
http://opendatacommunities.org/id/london-borough-council/sutton,London Borough of Sutton,31/03/2020,1291229,"3,542.99",Compass Children's Homes Ltd,26810,Peoples Services Directorate,Independent Schools,G325
http://opendatacommunities.org/id/london-borough-council/sutton,London Borough of Sutton,09/03/2020,6969649,833.09,Contract Security Services,23827,Resources Directorate,Security - Cash In Transit,G410
http://opendatacommunities.org/id/london-borough-council/sutton,London Borough of Sutton,31/03/2020,6969282,"5,425.00",Cornerstone Property Assets Limited,35046,Resources Directorate,Fees - Consultants (Ad Hoc),F283
http://opendatacommunities.org/id/london-borough-council/sutton,London Borough of Sutton,08/04/2020,6970308,"1,436.03",Corona Energy,11163,Resources Directorate,Gas - General,D610
http://opendatacommunities.org/id/london-borough-council/sutton,London Borough of Sutton,01/04/2020,6969706,"151,231.67",Cranstoun,11184,Chief Executive's Directorate,Provider Contract Payments,F470
http://opendatacommunities.org/id/london-borough-council/sutton,London Borough of Sutton,01/01/2020,6970013,"4,300.00",Crest Manor Ltd,25469,Peoples Services Directorate,Approved Lodgings,H323
http://opendatacommunities.org/id/london-borough-council/sutton,London Borough of Sutton,15/01/2020,6970014,483.17,Crest Manor Ltd,25469,Peoples Services Directorate,Approved Lodgings,H323
http://opendatacommunities.org/id/london-borough-council/sutton,London Borough of Sutton,15/02/2020,6970015,483.17,Crest Manor Ltd,25469,Peoples Services Directorate,Approved Lodgings,H323
http://opendatacommunities.org/id/london-borough-council/sutton,London Borough of Sutton,17/04/2020,40406954,"3,420.00",CRNH Ltd T/A St Judes Nursing Home,14297,Peoples Services Directorate,Nursing Care - Ext Provider,G311
http://opendatacommunities.org/id/london-borough-council/sutton,London Borough of Sutton,17/04/2020,40406955,"3,472.00",CRNH Ltd T/A St Judes Nursing Home,14297,Peoples Services Directorate,Nursing Care - Ext Provider,G311
http://opendatacommunities.org/id/london-borough-council/sutton,London Borough of Sutton,17/04/2020,40406995,"3,502.24",CRNH Ltd T/A St Judes Nursing Home,14297,Peoples Services Directorate,Nursing Care - Ext Provider,G311
http://opendatacommunities.org/id/london-borough-council/sutton,London Borough of Sutton,17/04/2020,40406996,"3,472.64",CRNH Ltd T/A St Judes Nursing Home,14297,Peoples Services Directorate,Nursing Care - Ext Provider,G311
http://opendatacommunities.org/id/london-borough-council/sutton,London Borough of Sutton,17/04/2020,40407091,"1,585.71",CRNH Ltd T/A St Judes Nursing Home,14297,Peoples Services Directorate,Nursing Care - Ext Provider,G311
http://opendatacommunities.org/id/london-borough-council/sutton,London Borough of Sutton,17/04/2020,40407092,"3,502.24",CRNH Ltd T/A St Judes Nursing Home,14297,Peoples Services Directorate,Nursing Care - Ext Provider,G311
http://opendatacommunities.org/id/london-borough-council/sutton,London Borough of Sutton,17/04/2020,40407107,"2,840.00",CRNH Ltd T/A St Judes Nursing Home,14297,Peoples Services Directorate,Nursing Care - Ext Provider,G311
http://opendatacommunities.org/id/london-borough-council/sutton,London Borough of Sutton,17/04/2020,40407200,"3,600.00",CRNH Ltd T/A St Judes Nursing Home,14297,Peoples Services Directorate,Nursing Care - Ext Provider,G311
http://opendatacommunities.org/id/london-borough-council/sutton,London Borough of Sutton,17/04/2020,40407201,"3,872.00",CRNH Ltd T/A St Judes Nursing Home,14297,Peoples Services Directorate,Nursing Care - Ext Provider,G311
http://opendatacommunities.org/id/london-borough-council/sutton,London Borough of Sutton,17/04/2020,40407022,"2,381.62",Cross Care Services Ltd,12165,Peoples Services Directorate,Nursing Care - Ext Provider,G311
http://opendatacommunities.org/id/london-borough-council/sutton,London Borough of Sutton,17/04/2020,40407023,"3,171.44",Cross Care Services Ltd,12165,Peoples Services Directorate,Nursing Care - Ext Provider,G311
http://opendatacommunities.org/id/london-borough-council/sutton,London Borough of Sutton,17/04/2020,40407024,500.32,Cross Care Services Ltd,12165,Peoples Services Directorate,Nursing Care - Short Term Placements,G328
http://opendatacommunities.org/id/london-borough-council/sutton,London Borough of Sutton,17/04/2020,40407078,"3,400.00",Cross Care Services Ltd,12165,Peoples Services Directorate,Nursing Care - Ext Provider,G311
http://opendatacommunities.org/id/london-borough-council/sutton,London Borough of Sutton,17/04/2020,40407140,"2,361.91",Cross Care Services Ltd,12165,Peoples Services Directorate,Nursing Care - Ext Provider,G311
http://opendatacommunities.org/id/london-borough-council/sutton,London Borough of Sutton,17/04/2020,40407216,"3,420.00",Cross Care Services Ltd,12165,Peoples Services Directorate,Nursing Care - Ext Provider,G311
http://opendatacommunities.org/id/london-borough-council/sutton,London Borough of Sutton,17/04/2020,40407271,"3,462.24",Cross Care Services Ltd,12165,Peoples Services Directorate,Nursing Care - Ext Provider,G311
http://opendatacommunities.org/id/london-borough-council/sutton,London Borough of Sutton,17/04/2020,40407272,"6,288.57",Cross Care Services Ltd,12165,Peoples Services Directorate,Nursing Care - Short Term Placements,G328
http://opendatacommunities.org/id/london-borough-council/sutton,London Borough of Sutton,17/04/2020,40407170,"2,498.04",Crossways Community,11187,Peoples Services Directorate,Residential Care - Ext Provider,G310
http://opendatacommunities.org/id/london-borough-council/sutton,London Borough of Sutton,17/04/2020,40407209,"4,168.24",Crossways Community,11187,Peoples Services Directorate,Residential Care - Ext Provider,G310
http://opendatacommunities.org/id/london-borough-council/sutton,London Borough of Sutton,06/03/2020,6968148,"635,393.85",Croydon Council,11227,"Environment, Housing & Regeneration Directorate",Veolia - Contract Payment,G255
http://opendatacommunities.org/id/london-borough-council/sutton,London Borough of Sutton,30/03/2020,6969714,"580,912.39",Croydon Council,11227,"Environment, Housing & Regeneration Directorate",Veolia - Contract Payment,G255
http://opendatacommunities.org/id/london-borough-council/sutton,London Borough of Sutton,30/03/2020,6969731,"35,315.78",Croydon Council,11227,"Environment, Housing & Regeneration Directorate",Civic Amenity,G172
http://opendatacommunities.org/id/london-borough-council/sutton,London Borough of Sutton,15/04/2020,6970100,"34,175.52",Croydon Council,11227,"Environment, Housing & Regeneration Directorate",Idverde - Contract Payment,G250
http://opendatacommunities.org/id/london-borough-council/sutton,London Borough of Sutton,28/02/2020,1291731,"2,310.00",Cruisers Ltd,18087,Peoples Services Directorate,Hired Peoples Transport (Children),E072
http://opendatacommunities.org/id/london-borough-council/sutton,London Borough of Sutton,01/04/2020,6969738,677.5,CSL Dualcom Ltd,28014,Resources Directorate,FM - Planned Maintenance Contract - Mitie,G613
http://opendatacommunities.org/id/london-borough-council/sutton,London Borough of Sutton,17/04/2020,40406946,"7,200.00",CSS Ltd t/a Grove Care,19184,Peoples Services Directorate,Residential Care - Ext Provider,G310
http://opendatacommunities.org/id/london-borough-council/sutton,London Borough of Sutton,22/03/2020,40409424,520,CSS LTD t/a Tandridge Hall Farm,30132,Peoples Services Directorate,Day Care,G337
http://opendatacommunities.org/id/london-borough-council/sutton,London Borough of Sutton,01/04/2020,1290964,"8,208.34",Culvers House Primary School,11252,Peoples Services Directorate,Top-up Funding,G064
http://opendatacommunities.org/id/london-borough-council/sutton,London Borough of Sutton,20/03/2020,6970064,"3,735.00",Currys PC World Business,99863,Peoples Services Directorate,Equipment It,Y523
http://opendatacommunities.org/id/london-borough-council/sutton,London Borough of Sutton,03/04/2020,6970040,746,D Karapinar,26474,"Environment, Housing & Regeneration Directorate",Temporary Protection - Homeless Persons,H300
http://opendatacommunities.org/id/london-borough-council/sutton,London Borough of Sutton,06/04/2020,6969557,"1,676.02",Dabriba Design Ltd,99815,"Environment, Housing & Regeneration Directorate",Grants -Made,Y610
http://opendatacommunities.org/id/london-borough-council/sutton,London Borough of Sutton,31/03/2020,1291227,"2,304.00",REDACTED - PERSONAL DATA,35068,Peoples Services Directorate,Special Educational Needs,G331
http://opendatacommunities.org/id/london-borough-council/sutton,London Borough of Sutton,01/04/2020,6969941,"2,822.04",David Rea T/A Angel Lettings,18658,"Environment, Housing & Regeneration Directorate",Temporary Protection - Homeless Persons,H300
http://opendatacommunities.org/id/london-borough-council/sutton,London Borough of Sutton,01/04/2020,6969942,"2,822.04",David Rea T/A Dreamlettings,11391,"Environment, Housing & Regeneration Directorate",Temporary Protection - Homeless Persons,H300
http://opendatacommunities.org/id/london-borough-council/sutton,London Borough of Sutton,18/04/2020,6970038,"1,209.00",David V.  Randall,29122,"Environment, Housing & Regeneration Directorate",Temporary Protection - Homeless Persons,H300
http://opendatacommunities.org/id/london-borough-council/sutton,London Borough of Sutton,14/04/2020,1291508,"3,440.00",Day and Nite Services,26773,Peoples Services Directorate,Home Care,G334
http://opendatacommunities.org/id/london-borough-council/sutton,London Borough of Sutton,15/03/2020,40403413,424,Day and Nite Services,26773,Peoples Services Directorate,Home Care,G334
http://opendatacommunities.org/id/london-borough-council/sutton,London Borough of Sutton,08/03/2020,40403414,424,Day and Nite Services,26773,Peoples Services Directorate,Home Care,G334
http://opendatacommunities.org/id/london-borough-council/sutton,London Borough of Sutton,15/03/2020,40403415,672,Day and Nite Services,26773,Peoples Services Directorate,Home Care,G334
http://opendatacommunities.org/id/london-borough-council/sutton,London Borough of Sutton,08/03/2020,40403416,672,Day and Nite Services,26773,Peoples Services Directorate,Home Care,G334
http://opendatacommunities.org/id/london-borough-council/sutton,London Borough of Sutton,15/03/2020,40403520,560,Day and Nite Services,26773,Peoples Services Directorate,Home Care,G334
http://opendatacommunities.org/id/london-borough-council/sutton,London Borough of Sutton,08/03/2020,40403521,560,Day and Nite Services,26773,Peoples Services Directorate,Home Care,G334
http://opendatacommunities.org/id/london-borough-council/sutton,London Borough of Sutton,05/04/2020,40403588,424,Day and Nite Services,26773,Peoples Services Directorate,Home Care,G334
http://opendatacommunities.org/id/london-borough-council/sutton,London Borough of Sutton,05/04/2020,40403597,672,Day and Nite Services,26773,Peoples Services Directorate,Home Care,G334
http://opendatacommunities.org/id/london-borough-council/sutton,London Borough of Sutton,05/04/2020,40403676,560,Day and Nite Services,26773,Peoples Services Directorate,Home Care,G334
http://opendatacommunities.org/id/london-borough-council/sutton,London Borough of Sutton,12/04/2020,40405538,560,Day and Nite Services,26773,Peoples Services Directorate,Home Care,G334
http://opendatacommunities.org/id/london-borough-council/sutton,London Borough of Sutton,12/04/2020,40405617,424,Day and Nite Services,26773,Peoples Services Directorate,Home Care,G334
http://opendatacommunities.org/id/london-borough-council/sutton,London Borough of Sutton,12/04/2020,40405629,672,Day and Nite Services,26773,Peoples Services Directorate,Home Care,G334
http://opendatacommunities.org/id/london-borough-council/sutton,London Borough of Sutton,22/03/2020,40407692,424,Day and Nite Services,26773,Peoples Services Directorate,Home Care,G334
http://opendatacommunities.org/id/london-borough-council/sutton,London Borough of Sutton,29/03/2020,40407693,424,Day and Nite Services,26773,Peoples Services Directorate,Home Care,G334
http://opendatacommunities.org/id/london-borough-council/sutton,London Borough of Sutton,22/03/2020,40407694,672,Day and Nite Services,26773,Peoples Services Directorate,Home Care,G334
http://opendatacommunities.org/id/london-borough-council/sutton,London Borough of Sutton,29/03/2020,40407695,672,Day and Nite Services,26773,Peoples Services Directorate,Home Care,G334
http://opendatacommunities.org/id/london-borough-council/sutton,London Borough of Sutton,22/03/2020,40407735,560,Day and Nite Services,26773,Peoples Services Directorate,Home Care,G334
http://opendatacommunities.org/id/london-borough-council/sutton,London Borough of Sutton,29/03/2020,40407736,560,Day and Nite Services,26773,Peoples Services Directorate,Home Care,G334
http://opendatacommunities.org/id/london-borough-council/sutton,London Borough of Sutton,19/04/2020,40408197,472,Day and Nite Services,26773,Peoples Services Directorate,Home Care,G334
http://opendatacommunities.org/id/london-borough-council/sutton,London Borough of Sutton,19/04/2020,40408198,768,Day and Nite Services,26773,Peoples Services Directorate,Home Care,G334
http://opendatacommunities.org/id/london-borough-council/sutton,London Borough of Sutton,19/04/2020,40408231,640,Day and Nite Services,26773,Peoples Services Directorate,Home Care,G334
http://opendatacommunities.org/id/london-borough-council/sutton,London Borough of Sutton,19/04/2020,40408233,480,Day and Nite Services,26773,Peoples Services Directorate,Home Care,G334
http://opendatacommunities.org/id/london-borough-council/sutton,London Borough of Sutton,26/04/2020,40412734,560,Day and Nite Services,26773,Peoples Services Directorate,Home Care,G334
http://opendatacommunities.org/id/london-borough-council/sutton,London Borough of Sutton,26/04/2020,40412874,424,Day and Nite Services,26773,Peoples Services Directorate,Home Care,G334
http://opendatacommunities.org/id/london-borough-council/sutton,London Borough of Sutton,26/04/2020,40412875,672,Day and Nite Services,26773,Peoples Services Directorate,Home Care,G334
http://opendatacommunities.org/id/london-borough-council/sutton,London Borough of Sutton,31/03/2020,6970019,"5,000.00",Debbie Owen Consulting Ltd,27635,Peoples Services Directorate,Contractual Consultant Fees,G430
http://opendatacommunities.org/id/london-borough-council/sutton,London Borough of Sutton,28/02/2020,6970020,"7,200.00",Debbie Owen Consulting Ltd,27635,Peoples Services Directorate,Contractual Consultant Fees,G430
http://opendatacommunities.org/id/london-borough-council/sutton,London Borough of Sutton,29/02/2020,6970028,"8,000.00",Debbie Owen Consulting Ltd,27635,Peoples Services Directorate,Contractual Consultant Fees,G430
http://opendatacommunities.org/id/london-borough-council/sutton,London Borough of Sutton,16/04/2020,1291488,"1,258.72",DeMontfort University,34889,Peoples Services Directorate,Approved Lodgings,H323
http://opendatacommunities.org/id/london-borough-council/sutton,London Borough of Sutton,17/04/2020,40407010,464.29,Denville Hall 2012,35324,Peoples Services Directorate,Residential Care - Ext Provider,G310
http://opendatacommunities.org/id/london-borough-council/sutton,London Borough of Sutton,01/04/2020,1290965,"3,541.66",Devonshire Primary School,11321,Peoples Services Directorate,Top-up Funding,G064
http://opendatacommunities.org/id/london-borough-council/sutton,London Borough of Sutton,22/04/2020,6969900,"1,300.00",D'Gama Ltd,26438,"Environment, Housing & Regeneration Directorate",Temporary Protection - Homeless Persons,H300
http://opendatacommunities.org/id/london-borough-council/sutton,London Borough of Sutton,22/03/2020,6969901,"1,300.00",D'Gama Ltd,26438,"Environment, Housing & Regeneration Directorate",Temporary Protection - Homeless Persons,H300
http://opendatacommunities.org/id/london-borough-council/sutton,London Borough of Sutton,29/08/2018,6936607,"6,895.96",DHP (UK) Ltd,27763,Peoples Services Directorate,External Fees  - Psa,Y131
http://opendatacommunities.org/id/london-borough-council/sutton,London Borough of Sutton,14/04/2020,6970163,"1,376.97",DHP (UK) Ltd,27763,Peoples Services Directorate,External Fees  - Psa,Y131
http://opendatacommunities.org/id/london-borough-council/sutton,London Borough of Sutton,17/04/2020,6970032,"4,410.00",Digital Catapult Services Ltd,32157,"Environment, Housing & Regeneration Directorate",Other Services,F340
http://opendatacommunities.org/id/london-borough-council/sutton,London Borough of Sutton,01/04/2020,40401643,"1,570.80",Direct Care And Support Services,23268,Peoples Services Directorate,Supported Living - Ext Provider,G306
http://opendatacommunities.org/id/london-borough-council/sutton,London Borough of Sutton,01/04/2020,40401657,"1,570.80",Direct Care And Support Services,23268,Peoples Services Directorate,Supported Living - Ext Provider,G306
http://opendatacommunities.org/id/london-borough-council/sutton,London Borough of Sutton,05/04/2020,40402845,802.54,Direct Care And Support Services,23268,Peoples Services Directorate,Home Care,G334
http://opendatacommunities.org/id/london-borough-council/sutton,London Borough of Sutton,12/04/2020,40406132,802.54,Direct Care And Support Services,23268,Peoples Services Directorate,Home Care,G334
http://opendatacommunities.org/id/london-borough-council/sutton,London Borough of Sutton,19/04/2020,40408469,802.54,Direct Care And Support Services,23268,Peoples Services Directorate,Home Care,G334
http://opendatacommunities.org/id/london-borough-council/sutton,London Borough of Sutton,08/04/2020,40409396,"1,299.48",Direct Care And Support Services,23268,Peoples Services Directorate,Supported Living - Ext Provider,G306
http://opendatacommunities.org/id/london-borough-council/sutton,London Borough of Sutton,08/04/2020,40409405,"3,132.80",Direct Care And Support Services,23268,Peoples Services Directorate,Supported Living - Ext Provider,G306
http://opendatacommunities.org/id/london-borough-council/sutton,London Borough of Sutton,08/04/2020,40409406,"2,128.28",Direct Care And Support Services,23268,Peoples Services Directorate,Supported Living - Ext Provider,G306
http://opendatacommunities.org/id/london-borough-council/sutton,London Borough of Sutton,08/04/2020,40409409,"2,116.80",Direct Care And Support Services,23268,Peoples Services Directorate,Supported Living - Ext Provider,G306
http://opendatacommunities.org/id/london-borough-council/sutton,London Borough of Sutton,08/04/2020,40409413,"5,428.00",Direct Care And Support Services,23268,Peoples Services Directorate,Supported Living - Ext Provider,G306
http://opendatacommunities.org/id/london-borough-council/sutton,London Borough of Sutton,08/04/2020,40409414,"1,570.80",Direct Care And Support Services,23268,Peoples Services Directorate,Supported Living - Ext Provider,G306
http://opendatacommunities.org/id/london-borough-council/sutton,London Borough of Sutton,08/04/2020,40409420,"2,256.24",Direct Care And Support Services,23268,Peoples Services Directorate,Supported Living - Ext Provider,G306
http://opendatacommunities.org/id/london-borough-council/sutton,London Borough of Sutton,08/04/2020,40409431,"5,514.48",Direct Care And Support Services,23268,Peoples Services Directorate,Supported Living - Ext Provider,G306
http://opendatacommunities.org/id/london-borough-council/sutton,London Borough of Sutton,08/04/2020,40409432,"5,514.48",Direct Care And Support Services,23268,Peoples Services Directorate,Supported Living - Ext Provider,G306
http://opendatacommunities.org/id/london-borough-council/sutton,London Borough of Sutton,08/04/2020,40409444,"2,450.00",Direct Care And Support Services,23268,Peoples Services Directorate,Supported Living - Ext Provider,G306
http://opendatacommunities.org/id/london-borough-council/sutton,London Borough of Sutton,08/04/2020,40409445,"3,496.00",Direct Care And Support Services,23268,Peoples Services Directorate,Supported Living - Ext Provider,G306
http://opendatacommunities.org/id/london-borough-council/sutton,London Borough of Sutton,08/04/2020,40409446,"2,232.44",Direct Care And Support Services,23268,Peoples Services Directorate,Supported Living - Ext Provider,G306
http://opendatacommunities.org/id/london-borough-council/sutton,London Borough of Sutton,08/04/2020,40409454,"4,062.24",Direct Care And Support Services,23268,Peoples Services Directorate,Supported Living - Ext Provider,G306
http://opendatacommunities.org/id/london-borough-council/sutton,London Borough of Sutton,08/04/2020,40409455,"2,204.16",Direct Care And Support Services,23268,Peoples Services Directorate,Supported Living - Ext Provider,G306
http://opendatacommunities.org/id/london-borough-council/sutton,London Borough of Sutton,08/04/2020,40411350,"7,669.20",Direct Care And Support Services,23268,Peoples Services Directorate,Supported Living - Ext Provider,G306
http://opendatacommunities.org/id/london-borough-council/sutton,London Borough of Sutton,26/04/2020,40411860,802.54,Direct Care And Support Services,23268,Peoples Services Directorate,Home Care,G334
http://opendatacommunities.org/id/london-borough-council/sutton,London Borough of Sutton,01/04/2020,1290966,"40,104.15",Dorchester Primary School,11376,Peoples Services Directorate,Top-up Funding,G064
http://opendatacommunities.org/id/london-borough-council/sutton,London Borough of Sutton,30/04/2020,1292457,600,Downham Church of England Primary School,35848,Peoples Services Directorate,Payments to Schools,G065
http://opendatacommunities.org/id/london-borough-council/sutton,London Borough of Sutton,18/04/2020,6970039,"1,000.00",Dr Bilikisu A Alatishe,27008,"Environment, Housing & Regeneration Directorate",Temporary Protection - Homeless Persons,H300
http://opendatacommunities.org/id/london-borough-council/sutton,London Borough of Sutton,30/03/2020,6969481,"3,720.00",Dr M O Oladinni,26649,Peoples Services Directorate,Fees - Other,F299
